Body Name,Body,Organisational unit,Service division,Expenditure category,Date,Transacton number,Net amount,Supplier,Narrative
Tendring DC,http://statistics.data.gov.uk/id/local-authority-district/22UN,Corporate Services,1000 - Community Services Service Unit,1430 - Manpower Initiatives,28/05/2013,1052340-1,22895.19,REDACTED PERSONAL DATA,REDACTED PERSONAL DATA
Tendring DC,http://statistics.data.gov.uk/id/local-authority-district/22UN,Corporate Services,1950 - Transport,3062 - Running Costs - Petrol,21/05/2013,2109006-1,119.16,2101825 - Allstar Business Solutions Ltd,Courier Fuel
Tendring DC,http://statistics.data.gov.uk/id/local-authority-district/22UN,Corporate Services,1950 - Transport,3062 - Running Costs - Petrol,21/05/2013,2109007-1,57.91,2101825 - Allstar Business Solutions Ltd,Courier Fuel
Tendring DC,http://statistics.data.gov.uk/id/local-authority-district/22UN,Corporate Services,1815 - Personnel and Human Resources Issues,1500 - Advertising - Recruitment,07/05/2013,2108993-1,1250,2113036 - Aquabridge Law LLP,Legal Advise
Tendring DC,http://statistics.data.gov.uk/id/local-authority-district/22UN,Corporate Services,1320 - Print Unit Service Unit,4080 - Materials & Consumables,21/05/2013,1052000-1,28.02,2100111 - Banner Business Supplies Ltd,STATIONERY
Tendring DC,http://statistics.data.gov.uk/id/local-authority-district/22UN,Corporate Services,1100 - Head of Corporate Services and Admin Service Unit,4300 - Printing & Stationery,07/05/2013,2108951-1,17.62,2100111 - Banner Business Supplies Ltd,Stationery
Tendring DC,http://statistics.data.gov.uk/id/local-authority-district/22UN,Corporate Services,6580 - Member Support Cost,4300 - Printing & Stationery,07/05/2013,2108951-2,132.08,2100111 - Banner Business Supplies Ltd,Stationery
Tendring DC,http://statistics.data.gov.uk/id/local-authority-district/22UN,Corporate Services,1100 - Head of Corporate Services and Admin Service Unit,4300 - Printing & Stationery,21/05/2013,2108999-1,2.76,2100111 - Banner Business Supplies Ltd,Misc Items
Tendring DC,http://statistics.data.gov.uk/id/local-authority-district/22UN,Corporate Services,6560 - Other Democratic Costs,4110 - General Provisions,21/05/2013,2108999-2,7.09,2100111 - Banner Business Supplies Ltd,Misc Items
Tendring DC,http://statistics.data.gov.uk/id/local-authority-district/22UN,Corporate Services,6580 - Member Support Cost,4300 - Printing & Stationery,21/05/2013,2108999-3,81.68,2100111 - Banner Business Supplies Ltd,Misc Items
Tendring DC,http://statistics.data.gov.uk/id/local-authority-district/22UN,Corporate Services,1100 - Head of Corporate Services and Admin Service Unit,4300 - Printing & Stationery,21/05/2013,2109053-1,176.02,2100111 - Banner Business Supplies Ltd,Banner
Tendring DC,http://statistics.data.gov.uk/id/local-authority-district/22UN,Corporate Services,1180 - Benefit Fraud Investigation Service Unit,4880 - Subscriptions Paid,07/05/2013,2108995-1,643.68,2102227 - Brighton & Hove City Council,NAFN Charges
Tendring DC,http://statistics.data.gov.uk/id/local-authority-district/22UN,Corporate Services,1180 - Benefit Fraud Investigation Service Unit,4880 - Subscriptions Paid,07/05/2013,2108995-2,134,2102227 - Brighton & Hove City Council,NAFN Charges
Tendring DC,http://statistics.data.gov.uk/id/local-authority-district/22UN,Corporate Services,1760 - IT Direct Service Costs,4715 - Data Communication Charge,07/05/2013,2108996-1,225,2100168 - British Telecommunications plc,BT Internet
Tendring DC,http://statistics.data.gov.uk/id/local-authority-district/22UN,Corporate Services,9900 - General Fund Balance Sheet,B879 - Charges made by Merchant Acquirer,07/05/2013,1052267-1,28.08,2100202 - Capita Business Services Ltd,CAPITA APR 13
Tendring DC,http://statistics.data.gov.uk/id/local-authority-district/22UN,Corporate Services,9900 - General Fund Balance Sheet,B879 - Charges made by Merchant Acquirer,07/05/2013,1052267-2,36.85,2100202 - Capita Business Services Ltd,CAPITA APR 13
Tendring DC,http://statistics.data.gov.uk/id/local-authority-district/22UN,Corporate Services,9900 - General Fund Balance Sheet,B879 - Charges made by Merchant Acquirer,07/05/2013,1052267-3,231.84,2100202 - Capita Business Services Ltd,CAPITA APR 13
Tendring DC,http://statistics.data.gov.uk/id/local-authority-district/22UN,Corporate Services,9900 - General Fund Balance Sheet,B879 - Charges made by Merchant Acquirer,07/05/2013,1052267-4,410.05,2100202 - Capita Business Services Ltd,CAPITA APR 13
Tendring DC,http://statistics.data.gov.uk/id/local-authority-district/22UN,Corporate Services,9900 - General Fund Balance Sheet,B879 - Charges made by Merchant Acquirer,07/05/2013,1052267-5,383.76,2100202 - Capita Business Services Ltd,CAPITA APR 13
Tendring DC,http://statistics.data.gov.uk/id/local-authority-district/22UN,Corporate Services,9900 - General Fund Balance Sheet,B879 - Charges made by Merchant Acquirer,07/05/2013,1052267-6,403.03,2100202 - Capita Business Services Ltd,CAPITA APR 13
Tendring DC,http://statistics.data.gov.uk/id/local-authority-district/22UN,Corporate Services,9900 - General Fund Balance Sheet,B879 - Charges made by Merchant Acquirer,07/05/2013,1052267-7,378.54,2100202 - Capita Business Services Ltd,CAPITA APR 13
Tendring DC,http://statistics.data.gov.uk/id/local-authority-district/22UN,Corporate Services,9900 - General Fund Balance Sheet,B879 - Charges made by Merchant Acquirer,07/05/2013,1052267-8,662.39,2100202 - Capita Business Services Ltd,CAPITA APR 13
Tendring DC,http://statistics.data.gov.uk/id/local-authority-district/22UN,Corporate Services,7080 - Chairman Charity Account,8450 - Donations - Outgoing Chairman,21/05/2013,1052141-1,1400,2113038 - Chicks,
Tendring DC,http://statistics.data.gov.uk/id/local-authority-district/22UN,Corporate Services,4660 - Public Health,4080 - Materials & Consumables,01/05/2013,1052265-1,48.68,2100269 - Co operative Bank plc,KLN VISA APR 13
Tendring DC,http://statistics.data.gov.uk/id/local-authority-district/22UN,Corporate Services,1815 - Personnel and Human Resources Issues,1720 - Training - Equality & Diversity,01/05/2013,1052265-2,16.99,2100269 - Co operative Bank plc,KLN VISA APR 13
Tendring DC,http://statistics.data.gov.uk/id/local-authority-district/22UN,Corporate Services,7040 - Civic Ceremonial Expenses,4080 - Materials & Consumables,01/05/2013,1052265-3,43.95,2100269 - Co operative Bank plc,KLN VISA APR 13
Tendring DC,http://statistics.data.gov.uk/id/local-authority-district/22UN,Corporate Services,6620 - Corporate Management - General,5190 - Bank Commission Charges,01/05/2013,1052265-4,2,2100269 - Co operative Bank plc,KLN VISA APR 13
Tendring DC,http://statistics.data.gov.uk/id/local-authority-district/22UN,Corporate Services,6640 - Treasury Management,5192 - Brokerage,01/05/2013,1052266-1,98,2100269 - Co operative Bank plc,FD APR 2013
Tendring DC,http://statistics.data.gov.uk/id/local-authority-district/22UN,Corporate Services,6620 - Corporate Management - General,5190 - Bank Commission Charges,01/05/2013,1052266-2,230,2100269 - Co operative Bank plc,FD APR 2013
Tendring DC,http://statistics.data.gov.uk/id/local-authority-district/22UN,Corporate Services,1560 - Cashiers Service Unit,5186 - Paypoint/post office charges,01/05/2013,1052266-3,1357.81,2100269 - Co operative Bank plc,FD APR 2013
Tendring DC,http://statistics.data.gov.uk/id/local-authority-district/22UN,Corporate Services,1560 - Cashiers Service Unit,5186 - Paypoint/post office charges,01/05/2013,1052266-4,3289.42,2100269 - Co operative Bank plc,FD APR 2013
Tendring DC,http://statistics.data.gov.uk/id/local-authority-district/22UN,Corporate Services,1815 - Personnel and Human Resources Issues,1600 - Medical Expenses,28/05/2013,1052308-1,415.68,2107768 - Colchester Hospital University NHS FT,OCCUPATIONAL HEALTH
Tendring DC,http://statistics.data.gov.uk/id/local-authority-district/22UN,Corporate Services,7300 - Licencing,5500 - Miscellaneous Expenses,28/05/2013,1052308-2,86.4,2107768 - Colchester Hospital University NHS FT,OCCUPATIONAL HEALTH
Tendring DC,http://statistics.data.gov.uk/id/local-authority-district/22UN,Corporate Services,1300 - Legal Services Service Unit,4460 - Legal & Professional Expenses,07/05/2013,1051734-1,35,2113056 - Corgi,
Tendring DC,http://statistics.data.gov.uk/id/local-authority-district/22UN,Corporate Services,6460 - Career Track,4688 - Career Track Exam Fees,28/05/2013,2109139-1,22,REDACTED PERSONAL DATA,REDACTED PERSONAL DATA
Tendring DC,http://statistics.data.gov.uk/id/local-authority-district/22UN,Corporate Services,6980 - Essex Family Needs Project,5500 - Miscellaneous Expenses,21/05/2013,2109054-1,87.5,2102038 - Crispins Sandwich Bar Ltd,RM900351
Tendring DC,http://statistics.data.gov.uk/id/local-authority-district/22UN,Corporate Services,9890 - Collection Fund - NNDR,R125 - NNDR - Payments to DCLG,03/05/2013,1052271-1,1270299,2100432 - DCLG,NNDR AND RSG
Tendring DC,http://statistics.data.gov.uk/id/local-authority-district/22UN,Corporate Services,8984 - Business Rates Tariff and Levy,6990 - Business Rate Tariff and Levy,03/05/2013,1052271-2,534551,2100432 - DCLG,NNDR AND RSG
Tendring DC,http://statistics.data.gov.uk/id/local-authority-district/22UN,Corporate Services,9890 - Collection Fund - NNDR,R135 - NNDR - Transitional Relief Settlement,03/05/2013,1052271-3,-12499,2100432 - DCLG,NNDR AND RSG
Tendring DC,http://statistics.data.gov.uk/id/local-authority-district/22UN,Corporate Services,1300 - Legal Services Service Unit,4360 - DX Payments,14/05/2013,1051792-1,801.75,2100684 - DX Network Services Ltd,DX SERVICE
Tendring DC,http://statistics.data.gov.uk/id/local-authority-district/22UN,Corporate Services,1090 - Chief Executive and Support Service Unit,4400 - Maintenance Under Service Agreements,28/05/2013,1052318-1,20.08,2102826 - Eden Springs UK Ltd,BOTTLED WATER SUPPLIES
Tendring DC,http://statistics.data.gov.uk/id/local-authority-district/22UN,Corporate Services,6460 - Career Track,4688 - Career Track Exam Fees,07/05/2013,1051660-1,14.5,2100425 - EDI,EDI-CANDIDATE REG
Tendring DC,http://statistics.data.gov.uk/id/local-authority-district/22UN,Corporate Services,6460 - Career Track,4688 - Career Track Exam Fees,07/05/2013,1051661-1,47.5,2100425 - EDI,EDI-CANDIDATE REG
Tendring DC,http://statistics.data.gov.uk/id/local-authority-district/22UN,Corporate Services,6460 - Career Track,4688 - Career Track Exam Fees,07/05/2013,1051662-1,42.5,REDACTED PERSONAL DATA,REDACTED PERSONAL DATA
Tendring DC,http://statistics.data.gov.uk/id/local-authority-district/22UN,Corporate Services,6460 - Career Track,4688 - Career Track Exam Fees,07/05/2013,1051663-1,76.5,REDACTED PERSONAL DATA,REDACTED PERSONAL DATA
Tendring DC,http://statistics.data.gov.uk/id/local-authority-district/22UN,Corporate Services,6460 - Career Track,4688 - Career Track Exam Fees,28/05/2013,2109140-1,14.5,2100425 - EDI,EDI Functional Skill Reg
Tendring DC,http://statistics.data.gov.uk/id/local-authority-district/22UN,Corporate Services,1925 - Central Purchasing,4753 - Computer - Application Software,14/05/2013,1051781-1,17000,2100455 - E-Government Solutions Ltd,MARKETPLACE SLA
Tendring DC,http://statistics.data.gov.uk/id/local-authority-district/22UN,Corporate Services,1815 - Personnel and Human Resources Issues,4460 - Legal & Professional Expenses,28/05/2013,1052403-1,250,2100406 - Ellisons,COMPROMISE AGREEMENT
Tendring DC,http://statistics.data.gov.uk/id/local-authority-district/22UN,Corporate Services,1760 - IT Direct Service Costs,4715 - Data Communication Charge,07/05/2013,1051657-1,6457.23,2100498 - Essex County Council,ECC-GCSX RECHARGE
Tendring DC,http://statistics.data.gov.uk/id/local-authority-district/22UN,Corporate Services,8971 - MIRS - Contributions Payable to the Pension Scheme,1822 - Superannuation - Port Health Pensions etc.,07/05/2013,1051722-1,795.22,2100419 - Essex County Council,PORT HEALTH AUTHORITY
Tendring DC,http://statistics.data.gov.uk/id/local-authority-district/22UN,Corporate Services,8971 - MIRS - Contributions Payable to the Pension Scheme,1816 - Superannuation Deficiency Contribution,07/05/2013,1051731-4,137750,2100419 - Essex County Council,PENSION 00013
Tendring DC,http://statistics.data.gov.uk/id/local-authority-district/22UN,Corporate Services,8971 - MIRS - Contributions Payable to the Pension Scheme,1810 - Superannuation - Financial Strain/Added Years,07/05/2013,1051731-5,17401.1,2100419 - Essex County Council,PENSION 00013
Tendring DC,http://statistics.data.gov.uk/id/local-authority-district/22UN,Corporate Services,8660 - Fit for Purpose,5500 - Miscellaneous Expenses,14/05/2013,1051930-1,22827.53,REDACTED PERSONAL DATA,REDACTED PERSONAL DATA
Tendring DC,http://statistics.data.gov.uk/id/local-authority-district/22UN,Corporate Services,9900 - General Fund Balance Sheet,B382 - Rechargeable Works - Other,28/05/2013,1052317-1,1400,2100498 - Essex County Council,SAFER ESSEX FUNDING EDAP
Tendring DC,http://statistics.data.gov.uk/id/local-authority-district/22UN,Corporate Services,1180 - Benefit Fraud Investigation Service Unit,5500 - Miscellaneous Expenses,28/05/2013,1052381-1,10,2100429 - Essex County Council,BIRTH CERTIFICATE FOR FRAUD INVESTIGATION
Tendring DC,http://statistics.data.gov.uk/id/local-authority-district/22UN,Corporate Services,1660 - Other Apportionable Overheads,4609 - Child Care Vouchers Management Fee,07/05/2013,1051740-2,71.66,2104459 - Fideliti Ltd,MAY 13 VOUCHERS
Tendring DC,http://statistics.data.gov.uk/id/local-authority-district/22UN,Corporate Services,H880 - New Build Initiatives and Acquisitions,C200 - Main Contractor,14/05/2013,1051939-1,99.43,2113057 - Geodesys,
Tendring DC,http://statistics.data.gov.uk/id/local-authority-district/22UN,Corporate Services,1815 - Personnel and Human Resources Issues,1610 - Counselling,07/05/2013,2108994-1,680,2100517 - Geraldine Craig,Counselling
Tendring DC,http://statistics.data.gov.uk/id/local-authority-district/22UN,Corporate Services,1180 - Benefit Fraud Investigation Service Unit,4460 - Legal & Professional Expenses,07/05/2013,2108997-1,4078.5,2100672 - Harris Cuffaro & Nichols Solicitors,Solicitor Costs
Tendring DC,http://statistics.data.gov.uk/id/local-authority-district/22UN,Corporate Services,1180 - Benefit Fraud Investigation Service Unit,4460 - Legal & Professional Expenses,07/05/2013,2108997-2,24,2100672 - Harris Cuffaro & Nichols Solicitors,Solicitor Costs
Tendring DC,http://statistics.data.gov.uk/id/local-authority-district/22UN,Corporate Services,1180 - Benefit Fraud Investigation Service Unit,4460 - Legal & Professional Expenses,21/05/2013,2109048-1,24650.7,2100672 - Harris Cuffaro & Nichols Solicitors,Solicitors Costs
Tendring DC,http://statistics.data.gov.uk/id/local-authority-district/22UN,Corporate Services,1180 - Benefit Fraud Investigation Service Unit,4460 - Legal & Professional Expenses,21/05/2013,2109048-2,44.2,2100672 - Harris Cuffaro & Nichols Solicitors,Solicitors Costs
Tendring DC,http://statistics.data.gov.uk/id/local-authority-district/22UN,Corporate Services,6980 - Essex Family Needs Project,5500 - Miscellaneous Expenses,28/05/2013,1052296-1,12,2100604 - Harwich Taxis,TAXI
Tendring DC,http://statistics.data.gov.uk/id/local-authority-district/22UN,Corporate Services,1660 - Other Apportionable Overheads,5222 - General Write Offs/Adjustments,07/05/2013,1051733-2,0.31,REDACTED PERSONAL DATA,REDACTED PERSONAL DATA
Tendring DC,http://statistics.data.gov.uk/id/local-authority-district/22UN,Corporate Services,1210 - Facilities Management Service Unit,3302 - Car Allowances - Officers,28/05/2013,1052233-1,50,REDACTED PERSONAL DATA,REDACTED PERSONAL DATA
Tendring DC,http://statistics.data.gov.uk/id/local-authority-district/22UN,Corporate Services,1320 - Print Unit Service Unit,4080 - Materials & Consumables,07/05/2013,2108886-1,71.84,2100864 - Leston Stationery Ltd,Autofill Envelopes
Tendring DC,http://statistics.data.gov.uk/id/local-authority-district/22UN,Corporate Services,1320 - Print Unit Service Unit,4080 - Materials & Consumables,07/05/2013,2108887-1,93.6,2100864 - Leston Stationery Ltd,A3 White
Tendring DC,http://statistics.data.gov.uk/id/local-authority-district/22UN,Corporate Services,1320 - Print Unit Service Unit,4080 - Materials & Consumables,28/05/2013,2109135-1,30,2100864 - Leston Stationery Ltd,Flash Drives
Tendring DC,http://statistics.data.gov.uk/id/local-authority-district/22UN,Corporate Services,1320 - Print Unit Service Unit,4080 - Materials & Consumables,28/05/2013,2109136-1,188.8,2100864 - Leston Stationery Ltd,100g Paper & 250g Card
Tendring DC,http://statistics.data.gov.uk/id/local-authority-district/22UN,Corporate Services,1320 - Print Unit Service Unit,4080 - Materials & Consumables,28/05/2013,2109137-1,19.6,2100864 - Leston Stationery Ltd,Envelopes
Tendring DC,http://statistics.data.gov.uk/id/local-authority-district/22UN,Corporate Services,1320 - Print Unit Service Unit,4080 - Materials & Consumables,28/05/2013,2109138-1,59.8,2100864 - Leston Stationery Ltd,A4 Cream Paper
Tendring DC,http://statistics.data.gov.uk/id/local-authority-district/22UN,Corporate Services,1150 - Other Corporate Services Mgt & Central Admin Service Unit,3311 - Travelling Career Track,07/05/2013,1051737-1,60.4,REDACTED PERSONAL DATA,REDACTED PERSONAL DATA
Tendring DC,http://statistics.data.gov.uk/id/local-authority-district/22UN,Corporate Services,1760 - IT Direct Service Costs,6320 - IT Services Agreements Payment,21/05/2013,1052194-1,51622.01,2108077 - Liberata Financial Services Ltd,ICT CONTRACT-MAY 13
Tendring DC,http://statistics.data.gov.uk/id/local-authority-district/22UN,Corporate Services,6980 - Essex Family Needs Project,5500 - Miscellaneous Expenses,14/05/2013,1051794-1,120,2111855 - Little Pals Childrens Centre Nursery Ltd,CRECHE SERVICES
Tendring DC,http://statistics.data.gov.uk/id/local-authority-district/22UN,Corporate Services,1300 - Legal Services Service Unit,4460 - Legal & Professional Expenses,28/05/2013,1052261-1,209.3,2113100 - Merrill Legal Solutions,TRANSCRIPTION SERVICES
Tendring DC,http://statistics.data.gov.uk/id/local-authority-district/22UN,Corporate Services,1320 - Print Unit Service Unit,4302 - External Print Unit Expenses,07/05/2013,2108884-1,25,2111479 - Neil Goss Litho Printing,Job 654
Tendring DC,http://statistics.data.gov.uk/id/local-authority-district/22UN,Corporate Services,1320 - Print Unit Service Unit,4302 - External Print Unit Expenses,07/05/2013,2108885-1,65,2111479 - Neil Goss Litho Printing,Jobs 054/060
Tendring DC,http://statistics.data.gov.uk/id/local-authority-district/22UN,Corporate Services,6460 - Career Track,4688 - Career Track Exam Fees,07/05/2013,1051659-1,87.3,2101071 - OCR,OCR-CANDIDATE REG
Tendring DC,http://statistics.data.gov.uk/id/local-authority-district/22UN,Corporate Services,6460 - Career Track,4688 - Career Track Exam Fees,21/05/2013,1052164-1,-98.3,REDACTED PERSONAL DATA,REDACTED PERSONAL DATA
Tendring DC,http://statistics.data.gov.uk/id/local-authority-district/22UN,Corporate Services,6460 - Career Track,4688 - Career Track Exam Fees,21/05/2013,7009270-1,145.7,REDACTED PERSONAL DATA,REDACTED PERSONAL DATA
Tendring DC,http://statistics.data.gov.uk/id/local-authority-district/22UN,Corporate Services,1320 - Print Unit Service Unit,4302 - External Print Unit Expenses,21/05/2013,1052001-1,10,2111844 - Optimumprint,JOB 086
Tendring DC,http://statistics.data.gov.uk/id/local-authority-district/22UN,Corporate Services,1320 - Print Unit Service Unit,4302 - External Print Unit Expenses,28/05/2013,2109133-1,25,2111844 - Optimumprint,Job 086
Tendring DC,http://statistics.data.gov.uk/id/local-authority-district/22UN,Corporate Services,1815 - Personnel and Human Resources Issues,1500 - Advertising - Recruitment,28/05/2013,1052404-1,4196.14,2101097 - Peter Lockyer Advertising Ltd,PRODUCTION CHARGE
Tendring DC,http://statistics.data.gov.uk/id/local-authority-district/22UN,Corporate Services,1815 - Personnel and Human Resources Issues,1500 - Advertising - Recruitment,07/05/2013,2108992-1,1029.43,2101097 - Peter Lockyer Advertising Ltd,Daily Times Adverts
Tendring DC,http://statistics.data.gov.uk/id/local-authority-district/22UN,Corporate Services,1661 - Other Apportionable Overheads - Corporate Support,4700 - Postage,21/05/2013,2109069-1,1199.53,2104077 - Pitney Bowes Ltd,Franking Consumables
Tendring DC,http://statistics.data.gov.uk/id/local-authority-district/22UN,Corporate Services,1815 - Personnel and Human Resources Issues,1500 - Advertising - Recruitment,28/05/2013,1052402-1,55,2113111 - Portcullis Wealth Management,PRE-RETIREMENT COURSE
Tendring DC,http://statistics.data.gov.uk/id/local-authority-district/22UN,Corporate Services,1930 - Asset Management Service Unit,4460 - Legal & Professional Expenses,28/05/2013,2109158-1,1000.4,2105829 - Prettys Solicitors,Lease of Market at High St
Tendring DC,http://statistics.data.gov.uk/id/local-authority-district/22UN,Corporate Services,1930 - Asset Management Service Unit,4460 - Legal & Professional Expenses,28/05/2013,2109158-2,10,2105829 - Prettys Solicitors,Lease of Market at High St
Tendring DC,http://statistics.data.gov.uk/id/local-authority-district/22UN,Corporate Services,1930 - Asset Management Service Unit,4460 - Legal & Professional Expenses,28/05/2013,2109159-1,1024,2105829 - Prettys Solicitors,Prettys - Legal Advice & Services
Tendring DC,http://statistics.data.gov.uk/id/local-authority-district/22UN,Corporate Services,1930 - Asset Management Service Unit,4460 - Legal & Professional Expenses,28/05/2013,2109159-2,12,2105829 - Prettys Solicitors,Prettys - Legal Advice & Services
Tendring DC,http://statistics.data.gov.uk/id/local-authority-district/22UN,Corporate Services,1930 - Asset Management Service Unit,4460 - Legal & Professional Expenses,28/05/2013,2109160-1,1000.4,2105829 - Prettys Solicitors,Lease of 61 Church St
Tendring DC,http://statistics.data.gov.uk/id/local-authority-district/22UN,Corporate Services,1930 - Asset Management Service Unit,4460 - Legal & Professional Expenses,28/05/2013,2109160-2,10,2105829 - Prettys Solicitors,Lease of 61 Church St
Tendring DC,http://statistics.data.gov.uk/id/local-authority-district/22UN,Corporate Services,1930 - Asset Management Service Unit,4460 - Legal & Professional Expenses,28/05/2013,2109161-1,920,2105829 - Prettys Solicitors,Variation of lease to Frinton & Walton Scouts
Tendring DC,http://statistics.data.gov.uk/id/local-authority-district/22UN,Corporate Services,1930 - Asset Management Service Unit,4460 - Legal & Professional Expenses,28/05/2013,2109161-2,16.4,2105829 - Prettys Solicitors,Variation of lease to Frinton & Walton Scouts
Tendring DC,http://statistics.data.gov.uk/id/local-authority-district/22UN,Corporate Services,1930 - Asset Management Service Unit,4460 - Legal & Professional Expenses,28/05/2013,2109162-1,884.4,2105829 - Prettys Solicitors,Lease of Dovercourt Rugby Club
Tendring DC,http://statistics.data.gov.uk/id/local-authority-district/22UN,Corporate Services,1930 - Asset Management Service Unit,4460 - Legal & Professional Expenses,28/05/2013,2109162-2,33,2105829 - Prettys Solicitors,Lease of Dovercourt Rugby Club
Tendring DC,http://statistics.data.gov.uk/id/local-authority-district/22UN,Corporate Services,1930 - Asset Management Service Unit,4460 - Legal & Professional Expenses,28/05/2013,2109163-1,1000.4,2105829 - Prettys Solicitors,Lease Clacton Rugby Union Club
Tendring DC,http://statistics.data.gov.uk/id/local-authority-district/22UN,Corporate Services,1930 - Asset Management Service Unit,4460 - Legal & Professional Expenses,28/05/2013,2109163-2,16,2105829 - Prettys Solicitors,Lease Clacton Rugby Union Club
Tendring DC,http://statistics.data.gov.uk/id/local-authority-district/22UN,Corporate Services,1930 - Asset Management Service Unit,4460 - Legal & Professional Expenses,28/05/2013,2109164-1,1000.4,2105829 - Prettys Solicitors,Lease of happy Valley bowls Club
Tendring DC,http://statistics.data.gov.uk/id/local-authority-district/22UN,Corporate Services,1930 - Asset Management Service Unit,4460 - Legal & Professional Expenses,28/05/2013,2109164-2,10,2105829 - Prettys Solicitors,Lease of happy Valley bowls Club
Tendring DC,http://statistics.data.gov.uk/id/local-authority-district/22UN,Corporate Services,9930 - Loans Fund Balance Sheet,B551 - Loans Maturing Within One Year - HRA,22/05/2013,1052275-1,170000,2101162 - Public Works Loan Board,PRINCIPAL AND INTEREST PAYMENTS
Tendring DC,http://statistics.data.gov.uk/id/local-authority-district/22UN,Corporate Services,5760 - HRA - Capital & Interest Charges,9831 - HRA Interest (formerly Item 8),22/05/2013,1052275-2,113832,2101162 - Public Works Loan Board,PRINCIPAL AND INTEREST PAYMENTS
Tendring DC,http://statistics.data.gov.uk/id/local-authority-district/22UN,Corporate Services,6540 - Members Allowance,4841 - Members Allowances - Subsistence,14/05/2013,1051876-1,7,2113027 - Regen Offices Limited,NMDG MEETING
Tendring DC,http://statistics.data.gov.uk/id/local-authority-district/22UN,Corporate Services,1180 - Benefit Fraud Investigation Service Unit,5500 - Miscellaneous Expenses,07/05/2013,2108983-1,10,REDACTED PERSONAL DATA,REDACTED PERSONAL DATA
Tendring DC,http://statistics.data.gov.uk/id/local-authority-district/22UN,Corporate Services,1100 - Head of Corporate Services and Admin Service Unit,4400 - Maintenance Under Service Agreements,14/05/2013,1051810-1,83.52,2101090 - Ricoh UK Ltd,B/W COLOUR COPIES
Tendring DC,http://statistics.data.gov.uk/id/local-authority-district/22UN,Corporate Services,1100 - Head of Corporate Services and Admin Service Unit,4400 - Maintenance Under Service Agreements,14/05/2013,1051811-1,520.33,2101090 - Ricoh UK Ltd,B/W COLOUR COPIES
Tendring DC,http://statistics.data.gov.uk/id/local-authority-district/22UN,Corporate Services,6580 - Member Support Cost,4350 - Photocopier Hire,28/05/2013,1052418-1,108.52,2101090 - Ricoh UK Ltd,MEMBERS PHOTOCOPIER
Tendring DC,http://statistics.data.gov.uk/id/local-authority-district/22UN,Corporate Services,7220 - Election Expenses,4486 - Election Expenses,21/05/2013,2109067-1,212.73,2101139 - Royal Mail,Electoral Postage
Tendring DC,http://statistics.data.gov.uk/id/local-authority-district/22UN,Corporate Services,7240 - Electoral Registration Expenses,4700 - Postage,21/05/2013,2109067-2,137.77,2101139 - Royal Mail,Electoral Postage
Tendring DC,http://statistics.data.gov.uk/id/local-authority-district/22UN,Corporate Services,7220 - Election Expenses,4486 - Election Expenses,21/05/2013,2109068-1,313.07,2101139 - Royal Mail,Electoral Postage
Tendring DC,http://statistics.data.gov.uk/id/local-authority-district/22UN,Corporate Services,1760 - IT Direct Service Costs,4753 - Computer - Application Software,21/05/2013,2109055-1,1262.27,2109993 - Sec-1 Ltd,RM900384
Tendring DC,http://statistics.data.gov.uk/id/local-authority-district/22UN,Corporate Services,1760 - IT Direct Service Costs,4751 - Hardware & Service Maintenance,14/05/2013,1051793-1,76.95,2101214 - Seton Ltd,STEPS
Tendring DC,http://statistics.data.gov.uk/id/local-authority-district/22UN,Corporate Services,1815 - Personnel and Human Resources Issues,1500 - Advertising - Recruitment,21/05/2013,2109041-1,11750,2105423 - SHL Group Ltd,SHL On Demand
Tendring DC,http://statistics.data.gov.uk/id/local-authority-district/22UN,Corporate Services,1100 - Head of Corporate Services and Admin Service Unit,1700 - Training - Courses,21/05/2013,2109066-1,472,2104780 - The Association of Electoral Administrators,AEA Course MBK/ACR/CS
Tendring DC,http://statistics.data.gov.uk/id/local-authority-district/22UN,Corporate Services,7025 - CDRP Support,4900 - Grants,28/05/2013,2109132-1,1500,2113099 - The Resource Bank,TD Crucial Crew Booklets
Tendring DC,http://statistics.data.gov.uk/id/local-authority-district/22UN,Corporate Services,1300 - Legal Services Service Unit,4355 - Books & Periodicals,14/05/2013,1051805-1,7600.01,2111580 - Thomson Reuters,WESTLAW SERVICES
Tendring DC,http://statistics.data.gov.uk/id/local-authority-district/22UN,Corporate Services,1300 - Legal Services Service Unit,4355 - Books & Periodicals,07/05/2013,2108925-1,245,2111580 - Thomson Reuters,Rosson licensing
Tendring DC,http://statistics.data.gov.uk/id/local-authority-district/22UN,Corporate Services,1300 - Legal Services Service Unit,4355 - Books & Periodicals,07/05/2013,2108926-1,239,2111580 - Thomson Reuters,Cross on L Government
Tendring DC,http://statistics.data.gov.uk/id/local-authority-district/22UN,Corporate Services,6580 - Member Support Cost,4670 - Hire of Premises,07/05/2013,1051658-1,54,2103335 - Venture Centre,TRAVELLING CABINET LAWFORD
Tendring DC,http://statistics.data.gov.uk/id/local-authority-district/22UN,Corporate Services,1760 - IT Direct Service Costs,4751 - Hardware & Service Maintenance,21/05/2013,1051960-1,34.9,2101521 - Videk Limited,
Tendring DC,http://statistics.data.gov.uk/id/local-authority-district/22UN,Corporate Services,1925 - Central Purchasing,4710 - Telephones - Charges,07/05/2013,1051063-1,-175,2101522 - Vodafone Corporate,
Tendring DC,http://statistics.data.gov.uk/id/local-authority-district/22UN,Corporate Services,"1580 - Benefits, Revenues and Customer Contact SU",4716 - Mobile Telephone Costs,28/05/2013,1052294-1,0.66,2101522 - Vodafone Corporate,VODAFONE APRIL 13 RM
Tendring DC,http://statistics.data.gov.uk/id/local-authority-district/22UN,Corporate Services,"1580 - Benefits, Revenues and Customer Contact SU",4716 - Mobile Telephone Costs,28/05/2013,1052294-2,184.08,2101522 - Vodafone Corporate,VODAFONE APRIL 13 RM
Tendring DC,http://statistics.data.gov.uk/id/local-authority-district/22UN,Corporate Services,1180 - Benefit Fraud Investigation Service Unit,4716 - Mobile Telephone Costs,28/05/2013,1052294-3,23.52,2101522 - Vodafone Corporate,VODAFONE APRIL 13 RM
Tendring DC,http://statistics.data.gov.uk/id/local-authority-district/22UN,Corporate Services,6460 - Career Track,4716 - Mobile Telephone Costs,28/05/2013,1052294-4,279.58,2101522 - Vodafone Corporate,VODAFONE APRIL 13 RM
Tendring DC,http://statistics.data.gov.uk/id/local-authority-district/22UN,Corporate Services,1300 - Legal Services Service Unit,4716 - Mobile Telephone Costs,28/05/2013,1052294-5,11.25,2101522 - Vodafone Corporate,VODAFONE APRIL 13 RM
Tendring DC,http://statistics.data.gov.uk/id/local-authority-district/22UN,Corporate Services,1330 - Human Resources Service Unit,4716 - Mobile Telephone Costs,28/05/2013,1052294-6,206.6,2101522 - Vodafone Corporate,VODAFONE APRIL 13 RM
Tendring DC,http://statistics.data.gov.uk/id/local-authority-district/22UN,Corporate Services,1620 - Corporate Performance - IT Section Service Unit,4716 - Mobile Telephone Costs,28/05/2013,1052294-7,324.46,2101522 - Vodafone Corporate,VODAFONE APRIL 13 RM
Tendring DC,http://statistics.data.gov.uk/id/local-authority-district/22UN,Corporate Services,1100 - Head of Corporate Services and Admin Service Unit,4716 - Mobile Telephone Costs,28/05/2013,1052295-1,24.9,2101522 - Vodafone Corporate,VODAFONE APRIL 13 MB
Tendring DC,http://statistics.data.gov.uk/id/local-authority-district/22UN,Corporate Services,1100 - Head of Corporate Services and Admin Service Unit,4716 - Mobile Telephone Costs,28/05/2013,1052295-2,135.69,2101522 - Vodafone Corporate,VODAFONE APRIL 13 MB
Tendring DC,http://statistics.data.gov.uk/id/local-authority-district/22UN,Corporate Services,6580 - Member Support Cost,4716 - Mobile Telephone Costs,28/05/2013,1052295-3,354.32,2101522 - Vodafone Corporate,VODAFONE APRIL 13 MB
Tendring DC,http://statistics.data.gov.uk/id/local-authority-district/22UN,Corporate Services,1210 - Facilities Management Service Unit,4716 - Mobile Telephone Costs,28/05/2013,1052295-4,354.66,2101522 - Vodafone Corporate,VODAFONE APRIL 13 MB
Tendring DC,http://statistics.data.gov.uk/id/local-authority-district/22UN,Corporate Services,7025 - CDRP Support,4900 - Grants,28/05/2013,1052295-5,11.31,2101522 - Vodafone Corporate,VODAFONE APRIL 13 MB
Tendring DC,http://statistics.data.gov.uk/id/local-authority-district/22UN,Corporate Services,7716 - Jaywick Team,4716 - Mobile Telephone Costs,28/05/2013,1052295-6,97.27,2101522 - Vodafone Corporate,VODAFONE APRIL 13 MB
Tendring DC,http://statistics.data.gov.uk/id/local-authority-district/22UN,Corporate Services,1040 - Regeneration Service Unit,4716 - Mobile Telephone Costs,28/05/2013,1052295-7,145.86,2101522 - Vodafone Corporate,VODAFONE APRIL 13 MB
Tendring DC,http://statistics.data.gov.uk/id/local-authority-district/22UN,Corporate Services,1090 - Chief Executive and Support Service Unit,4716 - Mobile Telephone Costs,28/05/2013,1052295-8,235.62,2101522 - Vodafone Corporate,VODAFONE APRIL 13 MB
Tendring DC,http://statistics.data.gov.uk/id/local-authority-district/22UN,Corporate Services,1925 - Central Purchasing,4710 - Telephones - Charges,07/05/2013,2107659-1,175,2101522 - Vodafone Corporate,
Tendring DC,http://statistics.data.gov.uk/id/local-authority-district/22UN,Corporate Services,1100 - Head of Corporate Services and Admin Service Unit,4716 - Mobile Telephone Costs,07/05/2013,7008938-1,-42.68,2101522 - Vodafone Corporate,VODAFONE 670087200
Tendring DC,http://statistics.data.gov.uk/id/local-authority-district/22UN,Corporate Services,1320 - Print Unit Service Unit,4350 - Photocopier Hire,28/05/2013,2109134-1,1869.9,2101527 - Xerox Finance Ltd,4127 Rental
Tendring DC,http://statistics.data.gov.uk/id/local-authority-district/22UN,Corporate Services,1100 - Head of Corporate Services and Admin Service Unit,4300 - Printing & Stationery,14/05/2013,1051795-1,53.68,2107546 - XMA Limited,LONGBOW 4200 TONERS
Tendring DC,http://statistics.data.gov.uk/id/local-authority-district/22UN,Corporate Services,1100 - Head of Corporate Services and Admin Service Unit,4300 - Printing & Stationery,21/05/2013,2109070-1,148.4,2107546 - XMA Limited,Electoral Ink Cartridge
Tendring DC,http://statistics.data.gov.uk/id/local-authority-district/22UN,Life Opportunities,1240 - Housing Services Service Unit,1700 - Training - Courses,14/05/2013,1051874-1,500,REDACTED COMMERCIAL CONFIDENTIALITY,REDACTED COMMERCIAL CONFIDENTIALITY
Tendring DC,http://statistics.data.gov.uk/id/local-authority-district/22UN,Life Opportunities,1880 - Office Accommodation Expenses,4000 - Furniture,21/05/2013,1051750-1,-175,2112525 - Acorn Essex Ltd,ACORN
Tendring DC,http://statistics.data.gov.uk/id/local-authority-district/22UN,Life Opportunities,1880 - Office Accommodation Expenses,4000 - Furniture,21/05/2013,1051875-1,175,2112525 - Acorn Essex Ltd,ACORN
Tendring DC,http://statistics.data.gov.uk/id/local-authority-district/22UN,Life Opportunities,5480 - HRA - Repair & Maintenance,2017 - Mechanical Equipment /Extract Fans,07/05/2013,1051693-1,121.54,REDACTED PERSONAL DATA,REDACTED PERSONAL DATA
Tendring DC,http://statistics.data.gov.uk/id/local-authority-district/22UN,Life Opportunities,5480 - HRA - Repair & Maintenance,2092 - Plumbing,14/05/2013,1051908-1,360,REDACTED PERSONAL DATA,REDACTED PERSONAL DATA
Tendring DC,http://statistics.data.gov.uk/id/local-authority-district/22UN,Life Opportunities,H730 - Energy & Water Conservation,C200 - Main Contractor,07/05/2013,2108932-1,610,REDACTED COMMERCIAL CONFIDENTIALITY,REDACTED COMMERCIAL CONFIDENTIALITY
Tendring DC,http://statistics.data.gov.uk/id/local-authority-district/22UN,Life Opportunities,H730 - Energy & Water Conservation,C200 - Main Contractor,07/05/2013,2108933-1,6860.7,REDACTED COMMERCIAL CONFIDENTIALITY,REDACTED COMMERCIAL CONFIDENTIALITY
Tendring DC,http://statistics.data.gov.uk/id/local-authority-district/22UN,Life Opportunities,H730 - Energy & Water Conservation,C200 - Main Contractor,07/05/2013,2108934-1,1757,REDACTED COMMERCIAL CONFIDENTIALITY,REDACTED COMMERCIAL CONFIDENTIALITY
Tendring DC,http://statistics.data.gov.uk/id/local-authority-district/22UN,Life Opportunities,H730 - Energy & Water Conservation,C200 - Main Contractor,07/05/2013,2108935-1,2677.4,REDACTED COMMERCIAL CONFIDENTIALITY,REDACTED COMMERCIAL CONFIDENTIALITY
Tendring DC,http://statistics.data.gov.uk/id/local-authority-district/22UN,Life Opportunities,1880 - Office Accommodation Expenses,2100 - Building Repairs,07/05/2013,2108894-1,254,2101609 - Adcock Refrigeration & Air Conditioning Ltd,Adcock
Tendring DC,http://statistics.data.gov.uk/id/local-authority-district/22UN,Life Opportunities,1860 - Depots General,2500 - Water Services - Metered,21/05/2013,1051994-1,159.79,2112518 - Affinity Water Ltd (East Region),AFFINITY-NORTHBOURNE
Tendring DC,http://statistics.data.gov.uk/id/local-authority-district/22UN,Life Opportunities,1860 - Depots General,2520 - Sewerage & Environmental Charges,21/05/2013,1051994-2,192.64,2112518 - Affinity Water Ltd (East Region),AFFINITY-NORTHBOURNE
Tendring DC,http://statistics.data.gov.uk/id/local-authority-district/22UN,Life Opportunities,8520 - Frinton & Walton Swimming Pool,2510 - Water Services - Unmetered,28/05/2013,2109118-1,565.06,2112518 - Affinity Water Ltd (East Region),Frinton Pool
Tendring DC,http://statistics.data.gov.uk/id/local-authority-district/22UN,Life Opportunities,8510 - Dovercourt Swimming Pool & All Weather Facilities,2510 - Water Services - Unmetered,28/05/2013,2109123-1,135.89,2112518 - Affinity Water Ltd (East Region),Dovercourt Pool
Tendring DC,http://statistics.data.gov.uk/id/local-authority-district/22UN,Life Opportunities,1880 - Office Accommodation Expenses,2500 - Water Services - Metered,28/05/2013,2109156-1,493.78,2112518 - Affinity Water Ltd (East Region),Affinity Westleigh
Tendring DC,http://statistics.data.gov.uk/id/local-authority-district/22UN,Life Opportunities,1880 - Office Accommodation Expenses,2520 - Sewerage & Environmental Charges,28/05/2013,2109156-2,469.01,2112518 - Affinity Water Ltd (East Region),Affinity Westleigh
Tendring DC,http://statistics.data.gov.uk/id/local-authority-district/22UN,Life Opportunities,1860 - Depots General,2500 - Water Services - Metered,28/05/2013,2109157-1,176.24,2112518 - Affinity Water Ltd (East Region),Affinity - Northbourne
Tendring DC,http://statistics.data.gov.uk/id/local-authority-district/22UN,Life Opportunities,1860 - Depots General,2520 - Sewerage & Environmental Charges,28/05/2013,2109157-2,206.24,2112518 - Affinity Water Ltd (East Region),Affinity - Northbourne
Tendring DC,http://statistics.data.gov.uk/id/local-authority-district/22UN,Life Opportunities,8510 - Dovercourt Swimming Pool & All Weather Facilities,2510 - Water Services - Unmetered,21/05/2013,7009267-1,1037.88,2112518 - Affinity Water Ltd (East Region),WATER DOVERCOURT POOL
Tendring DC,http://statistics.data.gov.uk/id/local-authority-district/22UN,Life Opportunities,4965 - Local Housing Allowance,4754 - IT Consultancy,28/05/2013,2109127-1,1300,2106864 - Airey Consultancy Services Ltd,Pan Essex Localised C/T Support
Tendring DC,http://statistics.data.gov.uk/id/local-authority-district/22UN,Life Opportunities,4965 - Local Housing Allowance,1700 - Training - Courses,28/05/2013,2109128-1,200,2106864 - Airey Consultancy Services Ltd,Essex Revenues officer Group 2013
Tendring DC,http://statistics.data.gov.uk/id/local-authority-district/22UN,Life Opportunities,5480 - HRA - Repair & Maintenance,2017 - Mechanical Equipment /Extract Fans,14/05/2013,1051823-1,731.5,REDACTED PERSONAL DATA,REDACTED PERSONAL DATA
Tendring DC,http://statistics.data.gov.uk/id/local-authority-district/22UN,Life Opportunities,5480 - HRA - Repair & Maintenance,2017 - Mechanical Equipment /Extract Fans,14/05/2013,1051827-1,478.3,REDACTED PERSONAL DATA,REDACTED PERSONAL DATA
Tendring DC,http://statistics.data.gov.uk/id/local-authority-district/22UN,Life Opportunities,5480 - HRA - Repair & Maintenance,2091 - External Works,07/05/2013,2108930-1,591,REDACTED PERSONAL DATA,REDACTED PERSONAL DATA
Tendring DC,http://statistics.data.gov.uk/id/local-authority-district/22UN,Life Opportunities,5480 - HRA - Repair & Maintenance,2091 - External Works,28/05/2013,2109097-1,295.5,REDACTED PERSONAL DATA,REDACTED PERSONAL DATA
Tendring DC,http://statistics.data.gov.uk/id/local-authority-district/22UN,Life Opportunities,5480 - HRA - Repair & Maintenance,2017 - Mechanical Equipment /Extract Fans,28/05/2013,2109098-1,524.5,REDACTED PERSONAL DATA,REDACTED PERSONAL DATA
Tendring DC,http://statistics.data.gov.uk/id/local-authority-district/22UN,Life Opportunities,H715 - Measures To Combat Condensation,C200 - Main Contractor,28/05/2013,2109105-1,882.8,REDACTED PERSONAL DATA,REDACTED PERSONAL DATA
Tendring DC,http://statistics.data.gov.uk/id/local-authority-district/22UN,Life Opportunities,H715 - Measures To Combat Condensation,C200 - Main Contractor,28/05/2013,2109106-1,453.4,REDACTED PERSONAL DATA,REDACTED PERSONAL DATA
Tendring DC,http://statistics.data.gov.uk/id/local-authority-district/22UN,Life Opportunities,5480 - HRA - Repair & Maintenance,2017 - Mechanical Equipment /Extract Fans,28/05/2013,2109107-1,295.5,REDACTED PERSONAL DATA,REDACTED PERSONAL DATA
Tendring DC,http://statistics.data.gov.uk/id/local-authority-district/22UN,Life Opportunities,H715 - Measures To Combat Condensation,C200 - Main Contractor,28/05/2013,2109108-1,275.5,REDACTED PERSONAL DATA,REDACTED PERSONAL DATA
Tendring DC,http://statistics.data.gov.uk/id/local-authority-district/22UN,Life Opportunities,5480 - HRA - Repair & Maintenance,2017 - Mechanical Equipment /Extract Fans,28/05/2013,2109108-2,464.5,REDACTED PERSONAL DATA,REDACTED PERSONAL DATA
Tendring DC,http://statistics.data.gov.uk/id/local-authority-district/22UN,Life Opportunities,5480 - HRA - Repair & Maintenance,2017 - Mechanical Equipment /Extract Fans,28/05/2013,2109109-1,295.5,REDACTED PERSONAL DATA,REDACTED PERSONAL DATA
Tendring DC,http://statistics.data.gov.uk/id/local-authority-district/22UN,Life Opportunities,6740 - Careline,3060 - Running Costs - Diesel,14/05/2013,1051770-1,344.54,2101825 - Allstar Business Solutions Ltd,FUEL CARDS APRIL 13
Tendring DC,http://statistics.data.gov.uk/id/local-authority-district/22UN,Life Opportunities,5240 - HRA - Managing Tenancies,5242 - Tenant Relations,21/05/2013,1052161-1,10,REDACTED COMMERCIAL CONFIDENTIALITY,REDACTED COMMERCIAL CONFIDENTIALITY
Tendring DC,http://statistics.data.gov.uk/id/local-authority-district/22UN,Life Opportunities,5220 - HRA - Policy & Management,5253 - HRA Health & Safety Expenses,14/05/2013,1051840-1,327.44,REDACTED COMMERCIAL CONFIDENTIALITY,REDACTED COMMERCIAL CONFIDENTIALITY
Tendring DC,http://statistics.data.gov.uk/id/local-authority-district/22UN,Life Opportunities,5220 - HRA - Policy & Management,5253 - HRA Health & Safety Expenses,14/05/2013,1051841-1,37.38,REDACTED COMMERCIAL CONFIDENTIALITY,REDACTED COMMERCIAL CONFIDENTIALITY
Tendring DC,http://statistics.data.gov.uk/id/local-authority-district/22UN,Life Opportunities,6160 - Princes Theatre,4000 - Furniture,28/05/2013,1052212-1,247.9,REDACTED COMMERCIAL CONFIDENTIALITY,REDACTED COMMERCIAL CONFIDENTIALITY
Tendring DC,http://statistics.data.gov.uk/id/local-authority-district/22UN,Life Opportunities,1880 - Office Accommodation Expenses,2100 - Building Repairs,07/05/2013,2108952-1,15.99,2100048 - Argos Business Solutions,Argos
Tendring DC,http://statistics.data.gov.uk/id/local-authority-district/22UN,Life Opportunities,8540 - Leisure Centre Clacton,4000 - Furniture,07/05/2013,2108953-1,47.24,2100048 - Argos Business Solutions,
Tendring DC,http://statistics.data.gov.uk/id/local-authority-district/22UN,Life Opportunities,H860 - Disabled Adaptations,C200 - Main Contractor,07/05/2013,1051687-1,1150,REDACTED PERSONAL DATA,REDACTED PERSONAL DATA
Tendring DC,http://statistics.data.gov.uk/id/local-authority-district/22UN,Life Opportunities,H860 - Disabled Adaptations,C200 - Main Contractor,07/05/2013,1051687-2,4008,REDACTED PERSONAL DATA,REDACTED PERSONAL DATA
Tendring DC,http://statistics.data.gov.uk/id/local-authority-district/22UN,Life Opportunities,H860 - Disabled Adaptations,C200 - Main Contractor,07/05/2013,1051688-1,850,REDACTED PERSONAL DATA,REDACTED PERSONAL DATA
Tendring DC,http://statistics.data.gov.uk/id/local-authority-district/22UN,Life Opportunities,H860 - Disabled Adaptations,C200 - Main Contractor,07/05/2013,1051688-2,2330,REDACTED PERSONAL DATA,REDACTED PERSONAL DATA
Tendring DC,http://statistics.data.gov.uk/id/local-authority-district/22UN,Life Opportunities,H860 - Disabled Adaptations,C200 - Main Contractor,14/05/2013,1051741-1,1150,REDACTED COMMERCIAL CONFIDENTIALITY,REDACTED COMMERCIAL CONFIDENTIALITY
Tendring DC,http://statistics.data.gov.uk/id/local-authority-district/22UN,Life Opportunities,H860 - Disabled Adaptations,C200 - Main Contractor,14/05/2013,1051741-2,4700,REDACTED COMMERCIAL CONFIDENTIALITY,REDACTED COMMERCIAL CONFIDENTIALITY
Tendring DC,http://statistics.data.gov.uk/id/local-authority-district/22UN,Life Opportunities,H860 - Disabled Adaptations,C200 - Main Contractor,28/05/2013,1052242-1,1170,REDACTED PERSONAL DATA,REDACTED PERSONAL DATA
Tendring DC,http://statistics.data.gov.uk/id/local-authority-district/22UN,Life Opportunities,H860 - Disabled Adaptations,C200 - Main Contractor,28/05/2013,1052242-2,4380,REDACTED PERSONAL DATA,REDACTED PERSONAL DATA
Tendring DC,http://statistics.data.gov.uk/id/local-authority-district/22UN,Life Opportunities,8520 - Frinton & Walton Swimming Pool,5300 - Resaleable Items,14/05/2013,1051815-1,16.28,2100088 - ASA Merchandising Ltd,FRINTON WALTON POOL
Tendring DC,http://statistics.data.gov.uk/id/local-authority-district/22UN,Life Opportunities,8520 - Frinton & Walton Swimming Pool,5300 - Resaleable Items,28/05/2013,2109143-1,112.86,2100088 - ASA Merchandising Ltd,Frinton & Walton Pool
Tendring DC,http://statistics.data.gov.uk/id/local-authority-district/22UN,Life Opportunities,8520 - Frinton & Walton Swimming Pool,5300 - Resaleable Items,28/05/2013,2109144-1,246.39,2100088 - ASA Merchandising Ltd,Frinton & Walton Pool
Tendring DC,http://statistics.data.gov.uk/id/local-authority-district/22UN,Life Opportunities,5860 - Manningtree Sports Centre,4597 - Hired Services - Payments to Contractors,14/05/2013,1051831-1,150,2110101 - ASM Ltd,FOOTBALL COACHING APRIL
Tendring DC,http://statistics.data.gov.uk/id/local-authority-district/22UN,Life Opportunities,8510 - Dovercourt Swimming Pool & All Weather Facilities,4400 - Maintenance Under Service Agreements,14/05/2013,1051857-1,126.45,2112129 - Autobar Vending Services Ltd,DOVERCOURT POOL
Tendring DC,http://statistics.data.gov.uk/id/local-authority-district/22UN,Life Opportunities,8520 - Frinton & Walton Swimming Pool,4400 - Maintenance Under Service Agreements,28/05/2013,1052203-1,81.07,2112129 - Autobar Vending Services Ltd,FRINTON WALTON POOL
Tendring DC,http://statistics.data.gov.uk/id/local-authority-district/22UN,Life Opportunities,1880 - Office Accommodation Expenses,4080 - Materials & Consumables,14/05/2013,1051879-1,14.97,2100099 - B & Q Trade Account,BQ
Tendring DC,http://statistics.data.gov.uk/id/local-authority-district/22UN,Life Opportunities,1880 - Office Accommodation Expenses,4080 - Materials & Consumables,28/05/2013,2109154-1,86.28,2100099 - B & Q Trade Account,B&Q
Tendring DC,http://statistics.data.gov.uk/id/local-authority-district/22UN,Life Opportunities,5860 - Manningtree Sports Centre,4040 - Equipment & Tools,28/05/2013,1052328-1,126,2111686 - Banana Fingers Ltd,CLIMBING ROPES
Tendring DC,http://statistics.data.gov.uk/id/local-authority-district/22UN,Life Opportunities,1210 - Facilities Management Service Unit,4300 - Printing & Stationery,14/05/2013,1051766-1,8.4,2100111 - Banner Business Supplies Ltd,BANNER
Tendring DC,http://statistics.data.gov.uk/id/local-authority-district/22UN,Life Opportunities,"1580 - Benefits, Revenues and Customer Contact SU",4800 - Hospitality,14/05/2013,1051769-1,42.8,2100111 - Banner Business Supplies Ltd,PLASTIC CUPS
Tendring DC,http://statistics.data.gov.uk/id/local-authority-district/22UN,Life Opportunities,8510 - Dovercourt Swimming Pool & All Weather Facilities,4300 - Printing & Stationery,14/05/2013,1051836-1,6.28,2100111 - Banner Business Supplies Ltd,DOVERCOURT POOL
Tendring DC,http://statistics.data.gov.uk/id/local-authority-district/22UN,Life Opportunities,5360 - HRA - Sheltered Units,4300 - Printing & Stationery,28/05/2013,1052204-1,20.15,REDACTED COMMERCIAL CONFIDENTIALITY,REDACTED COMMERCIAL CONFIDENTIALITY
Tendring DC,http://statistics.data.gov.uk/id/local-authority-district/22UN,Life Opportunities,1210 - Facilities Management Service Unit,4300 - Printing & Stationery,28/05/2013,1052206-1,28.08,2100111 - Banner Business Supplies Ltd,BANNER
Tendring DC,http://statistics.data.gov.uk/id/local-authority-district/22UN,Life Opportunities,"1580 - Benefits, Revenues and Customer Contact SU",4300 - Printing & Stationery,28/05/2013,1052207-1,15.68,2100111 - Banner Business Supplies Ltd,ERASER/DIVIDERS/BATTERIES
Tendring DC,http://statistics.data.gov.uk/id/local-authority-district/22UN,Life Opportunities,1565 - Careline / CCTV Service Unit,4300 - Printing & Stationery,28/05/2013,1052208-1,86.39,2100111 - Banner Business Supplies Ltd,BANNER STATIONERY-MAY
Tendring DC,http://statistics.data.gov.uk/id/local-authority-district/22UN,Life Opportunities,"1580 - Benefits, Revenues and Customer Contact SU",4300 - Printing & Stationery,28/05/2013,1052209-1,329.1,2100111 - Banner Business Supplies Ltd,LOOP PAPER
Tendring DC,http://statistics.data.gov.uk/id/local-authority-district/22UN,Life Opportunities,8540 - Leisure Centre Clacton,4300 - Printing & Stationery,28/05/2013,1052211-1,83.58,2100111 - Banner Business Supplies Ltd,
Tendring DC,http://statistics.data.gov.uk/id/local-authority-district/22UN,Life Opportunities,1210 - Facilities Management Service Unit,4300 - Printing & Stationery,07/05/2013,2108947-1,27.83,2100111 - Banner Business Supplies Ltd,Banner
Tendring DC,http://statistics.data.gov.uk/id/local-authority-district/22UN,Life Opportunities,"1580 - Benefits, Revenues and Customer Contact SU",4300 - Printing & Stationery,07/05/2013,2108948-1,20.52,2100111 - Banner Business Supplies Ltd,Stationery
Tendring DC,http://statistics.data.gov.uk/id/local-authority-district/22UN,Life Opportunities,5240 - HRA - Managing Tenancies,4312 - Tenancy Stationery,07/05/2013,2108949-1,10.52,2100111 - Banner Business Supplies Ltd,Banner Order 15/4/13
Tendring DC,http://statistics.data.gov.uk/id/local-authority-district/22UN,Life Opportunities,5240 - HRA - Managing Tenancies,4312 - Tenancy Stationery,07/05/2013,2108950-1,101.18,2100111 - Banner Business Supplies Ltd,Banner Order 22/4/13
Tendring DC,http://statistics.data.gov.uk/id/local-authority-district/22UN,Life Opportunities,1050 - Leisure Service Unit,4300 - Printing & Stationery,21/05/2013,2109000-1,8.52,2100111 - Banner Business Supplies Ltd,
Tendring DC,http://statistics.data.gov.uk/id/local-authority-district/22UN,Life Opportunities,5240 - HRA - Managing Tenancies,4312 - Tenancy Stationery,21/05/2013,2109001-1,54.4,REDACTED COMMERCIAL CONFIDENTIALITY,REDACTED COMMERCIAL CONFIDENTIALITY
Tendring DC,http://statistics.data.gov.uk/id/local-authority-district/22UN,Life Opportunities,6160 - Princes Theatre,4040 - Equipment & Tools,21/05/2013,2109001-2,6,REDACTED COMMERCIAL CONFIDENTIALITY,REDACTED COMMERCIAL CONFIDENTIALITY
Tendring DC,http://statistics.data.gov.uk/id/local-authority-district/22UN,Life Opportunities,6160 - Princes Theatre,4080 - Materials & Consumables,21/05/2013,2109002-1,21.53,REDACTED COMMERCIAL CONFIDENTIALITY,REDACTED COMMERCIAL CONFIDENTIALITY
Tendring DC,http://statistics.data.gov.uk/id/local-authority-district/22UN,Life Opportunities,6160 - Princes Theatre,4080 - Materials & Consumables,21/05/2013,2109002-2,14.3,REDACTED COMMERCIAL CONFIDENTIALITY,REDACTED COMMERCIAL CONFIDENTIALITY
Tendring DC,http://statistics.data.gov.uk/id/local-authority-district/22UN,Life Opportunities,5240 - HRA - Managing Tenancies,4312 - Tenancy Stationery,21/05/2013,2109002-3,69.39,REDACTED COMMERCIAL CONFIDENTIALITY,REDACTED COMMERCIAL CONFIDENTIALITY
Tendring DC,http://statistics.data.gov.uk/id/local-authority-district/22UN,Life Opportunities,8540 - Leisure Centre Clacton,2300 - Energy Costs - Fuel Oil,14/05/2013,1051870-1,1878.55,2112681 - BIRLEM Ltd,
Tendring DC,http://statistics.data.gov.uk/id/local-authority-district/22UN,Life Opportunities,8540 - Leisure Centre Clacton,2300 - Energy Costs - Fuel Oil,07/05/2013,2108902-1,2064.64,2112681 - BIRLEM Ltd,
Tendring DC,http://statistics.data.gov.uk/id/local-authority-district/22UN,Life Opportunities,H805 - Major Refurbishment of Heating,C200 - Main Contractor,21/05/2013,1052192-1,45400.17,2100155 - Blue Flame (Colchester) Ltd,HEATING REFURBISHMENT & UPGRADE CONTRACT
Tendring DC,http://statistics.data.gov.uk/id/local-authority-district/22UN,Life Opportunities,5480 - HRA - Repair & Maintenance,2071 - Electric Installation Testing,28/05/2013,1052422-1,1321.19,2100155 - Blue Flame (Colchester) Ltd,
Tendring DC,http://statistics.data.gov.uk/id/local-authority-district/22UN,Life Opportunities,5480 - HRA - Repair & Maintenance,2072 - Planned Partial Refurbishment To Electrical Instal,28/05/2013,1052422-2,2824.18,2100155 - Blue Flame (Colchester) Ltd,
Tendring DC,http://statistics.data.gov.uk/id/local-authority-district/22UN,Life Opportunities,H810 - Electrical Re-wiring,C200 - Main Contractor,28/05/2013,1052422-3,2397.6,2100155 - Blue Flame (Colchester) Ltd,
Tendring DC,http://statistics.data.gov.uk/id/local-authority-district/22UN,Life Opportunities,5140 - Homelessness,4683 - Other Homelessness Expenses,28/05/2013,1052217-1,385,REDACTED PERSONAL DATA,REDACTED PERSONAL DATA
Tendring DC,http://statistics.data.gov.uk/id/local-authority-district/22UN,Life Opportunities,5240 - HRA - Managing Tenancies,5242 - Tenant Relations,21/05/2013,1052159-1,10,REDACTED COMMERCIAL CONFIDENTIALITY,REDACTED COMMERCIAL CONFIDENTIALITY
Tendring DC,http://statistics.data.gov.uk/id/local-authority-district/22UN,Life Opportunities,H805 - Major Refurbishment of Heating,C200 - Main Contractor,07/05/2013,2108871-1,622.33,REDACTED PERSONAL DATA,REDACTED PERSONAL DATA
Tendring DC,http://statistics.data.gov.uk/id/local-authority-district/22UN,Life Opportunities,6740 - Careline,2304 - Energy Costs - Electricity,21/05/2013,2109011-1,140.58,2100197 - British Gas Trading Ltd,British Gas April
Tendring DC,http://statistics.data.gov.uk/id/local-authority-district/22UN,Life Opportunities,6740 - Careline,2304 - Energy Costs - Electricity,21/05/2013,2109011-2,-73.72,2100197 - British Gas Trading Ltd,British Gas April
Tendring DC,http://statistics.data.gov.uk/id/local-authority-district/22UN,Life Opportunities,5440 - HRA - Communal Electricity,2304 - Energy Costs - Electricity,21/05/2013,2109012-1,555.77,2100197 - British Gas Trading Ltd,Apr-13
Tendring DC,http://statistics.data.gov.uk/id/local-authority-district/22UN,Life Opportunities,5440 - HRA - Communal Electricity,2304 - Energy Costs - Electricity,21/05/2013,2109012-2,7199.72,2100197 - British Gas Trading Ltd,Apr-13
Tendring DC,http://statistics.data.gov.uk/id/local-authority-district/22UN,Life Opportunities,5340 - HRA - Communal Central Heating,2304 - Energy Costs - Electricity,21/05/2013,2109012-3,1622.94,2100197 - British Gas Trading Ltd,Apr-13
Tendring DC,http://statistics.data.gov.uk/id/local-authority-district/22UN,Life Opportunities,5360 - HRA - Sheltered Units,2304 - Energy Costs - Electricity,21/05/2013,2109012-4,321.44,2100197 - British Gas Trading Ltd,Apr-13
Tendring DC,http://statistics.data.gov.uk/id/local-authority-district/22UN,Life Opportunities,5440 - HRA - Communal Electricity,2304 - Energy Costs - Electricity,21/05/2013,2109012-5,-623.71,2100197 - British Gas Trading Ltd,Apr-13
Tendring DC,http://statistics.data.gov.uk/id/local-authority-district/22UN,Life Opportunities,5820 - Harwich Sports Centre,2304 - Energy Costs - Electricity,21/05/2013,2109014-1,463.68,2100197 - British Gas Trading Ltd,Leisure April 13
Tendring DC,http://statistics.data.gov.uk/id/local-authority-district/22UN,Life Opportunities,5860 - Manningtree Sports Centre,2304 - Energy Costs - Electricity,21/05/2013,2109014-2,580.83,2100197 - British Gas Trading Ltd,Leisure April 13
Tendring DC,http://statistics.data.gov.uk/id/local-authority-district/22UN,Life Opportunities,5960 - Recreation Grounds,2304 - Energy Costs - Electricity,21/05/2013,2109014-3,380.7,2100197 - British Gas Trading Ltd,Leisure April 13
Tendring DC,http://statistics.data.gov.uk/id/local-authority-district/22UN,Life Opportunities,6080 - Shops & Kiosks,2304 - Energy Costs - Electricity,21/05/2013,2109014-4,71.44,2100197 - British Gas Trading Ltd,Leisure April 13
Tendring DC,http://statistics.data.gov.uk/id/local-authority-district/22UN,Life Opportunities,6040 - Miscellaneous Seafront Activities,2304 - Energy Costs - Electricity,21/05/2013,2109014-5,99.12,2100197 - British Gas Trading Ltd,Leisure April 13
Tendring DC,http://statistics.data.gov.uk/id/local-authority-district/22UN,Life Opportunities,6000 - Beach Hut Sites,2304 - Energy Costs - Electricity,21/05/2013,2109014-6,102.13,2100197 - British Gas Trading Ltd,Leisure April 13
Tendring DC,http://statistics.data.gov.uk/id/local-authority-district/22UN,Life Opportunities,1915 - Low Road Depot,2304 - Energy Costs - Electricity,21/05/2013,2109014-7,45.26,2100197 - British Gas Trading Ltd,Leisure April 13
Tendring DC,http://statistics.data.gov.uk/id/local-authority-district/22UN,Life Opportunities,7600 - Tourist Information Centres,2304 - Energy Costs - Electricity,21/05/2013,2109014-8,12.58,2100197 - British Gas Trading Ltd,Leisure April 13
Tendring DC,http://statistics.data.gov.uk/id/local-authority-district/22UN,Life Opportunities,8540 - Leisure Centre Clacton,4597 - Hired Services - Payments to Contractors,07/05/2013,2108903-1,294,2100148 - British Gymnastics,April - July
Tendring DC,http://statistics.data.gov.uk/id/local-authority-district/22UN,Life Opportunities,6740 - Careline,4710 - Telephones - Charges,28/05/2013,1052297-1,58.43,2100168 - British Telecommunications plc,BT BILL-GREENFIELDS
Tendring DC,http://statistics.data.gov.uk/id/local-authority-district/22UN,Life Opportunities,6740 - Careline,4710 - Telephones - Charges,28/05/2013,1052298-1,92.82,2100168 - British Telecommunications plc,BT BILL-DISASTER RECOVERY
Tendring DC,http://statistics.data.gov.uk/id/local-authority-district/22UN,Life Opportunities,1840 - Central Telephone Service,4710 - Telephones - Charges,28/05/2013,1052299-1,5482.73,2100168 - British Telecommunications plc,BT-686000
Tendring DC,http://statistics.data.gov.uk/id/local-authority-district/22UN,Life Opportunities,6740 - Careline,4710 - Telephones - Charges,21/05/2013,2109052-1,209.7,2100168 - British Telecommunications plc,BT Bill Server Room
Tendring DC,http://statistics.data.gov.uk/id/local-authority-district/22UN,Life Opportunities,8150 - Office Cleaning,4080 - Materials & Consumables,14/05/2013,1051677-1,-17.77,2101624 - Bunzl,BUNZL
Tendring DC,http://statistics.data.gov.uk/id/local-authority-district/22UN,Life Opportunities,8150 - Office Cleaning,4080 - Materials & Consumables,14/05/2013,1051678-1,-35.54,2101624 - Bunzl,BUNZL
Tendring DC,http://statistics.data.gov.uk/id/local-authority-district/22UN,Life Opportunities,5860 - Manningtree Sports Centre,2700 - Cleaning Materials,14/05/2013,1051812-1,262.98,2101624 - Bunzl,CLEANING SUPPLIES
Tendring DC,http://statistics.data.gov.uk/id/local-authority-district/22UN,Life Opportunities,8520 - Frinton & Walton Swimming Pool,2700 - Cleaning Materials,14/05/2013,1051858-1,175.9,2101624 - Bunzl,FRINTON WALTON POOL
Tendring DC,http://statistics.data.gov.uk/id/local-authority-district/22UN,Life Opportunities,8520 - Frinton & Walton Swimming Pool,2700 - Cleaning Materials,14/05/2013,1051859-1,175.9,2101624 - Bunzl,FRINTON WALTON POOL
Tendring DC,http://statistics.data.gov.uk/id/local-authority-district/22UN,Life Opportunities,8150 - Office Cleaning,4080 - Materials & Consumables,21/05/2013,1051991-1,616.14,2101624 - Bunzl,BUNZL
Tendring DC,http://statistics.data.gov.uk/id/local-authority-district/22UN,Life Opportunities,8150 - Office Cleaning,4080 - Materials & Consumables,21/05/2013,1051992-1,207.74,2101624 - Bunzl,BUNZL
Tendring DC,http://statistics.data.gov.uk/id/local-authority-district/22UN,Life Opportunities,5860 - Manningtree Sports Centre,2700 - Cleaning Materials,28/05/2013,1052327-1,12.28,2101624 - Bunzl,2 PACKS FLOOR MUSLINS
Tendring DC,http://statistics.data.gov.uk/id/local-authority-district/22UN,Life Opportunities,8150 - Office Cleaning,4080 - Materials & Consumables,14/05/2013,2108888-1,3.41,2101624 - Bunzl,Bunzl
Tendring DC,http://statistics.data.gov.uk/id/local-authority-district/22UN,Life Opportunities,8150 - Office Cleaning,4080 - Materials & Consumables,14/05/2013,2108889-1,17.77,2101624 - Bunzl,
Tendring DC,http://statistics.data.gov.uk/id/local-authority-district/22UN,Life Opportunities,5360 - HRA - Sheltered Units,2700 - Cleaning Materials,28/05/2013,2109095-1,57.96,REDACTED COMMERCIAL CONFIDENTIALITY,REDACTED COMMERCIAL CONFIDENTIALITY
Tendring DC,http://statistics.data.gov.uk/id/local-authority-district/22UN,Life Opportunities,8510 - Dovercourt Swimming Pool & All Weather Facilities,2700 - Cleaning Materials,28/05/2013,2109122-1,236.8,2101624 - Bunzl,Dovercourt Pool
Tendring DC,http://statistics.data.gov.uk/id/local-authority-district/22UN,Life Opportunities,8540 - Leisure Centre Clacton,2100 - Building Repairs,14/05/2013,1051745-1,105,2100240 - C & W Fencing Ltd,
Tendring DC,http://statistics.data.gov.uk/id/local-authority-district/22UN,Life Opportunities,1650 - Building Services Service Unit,4400 - Maintenance Under Service Agreements,21/05/2013,1052082-1,48.6,REDACTED COMMERCIAL CONFIDENTIALITY,REDACTED COMMERCIAL CONFIDENTIALITY
Tendring DC,http://statistics.data.gov.uk/id/local-authority-district/22UN,Life Opportunities,9900 - General Fund Balance Sheet,B869 - Cashiers Suspense Account,21/05/2013,1052140-1,1082.02,2113028 - Care Management,REFUND
Tendring DC,http://statistics.data.gov.uk/id/local-authority-district/22UN,Life Opportunities,5240 - HRA - Managing Tenancies,5242 - Tenant Relations,21/05/2013,1052158-1,10,REDACTED COMMERCIAL CONFIDENTIALITY,REDACTED COMMERCIAL CONFIDENTIALITY
Tendring DC,http://statistics.data.gov.uk/id/local-authority-district/22UN,Life Opportunities,"1580 - Benefits, Revenues and Customer Contact SU",3312 - Car Allowances - Car Hire,14/05/2013,1051772-1,22.5,2104746 - CC Hire,CAR HIRE COURT
Tendring DC,http://statistics.data.gov.uk/id/local-authority-district/22UN,Life Opportunities,1950 - Transport,3062 - Running Costs - Petrol,14/05/2013,1051772-2,5,2104746 - CC Hire,CAR HIRE COURT
Tendring DC,http://statistics.data.gov.uk/id/local-authority-district/22UN,Life Opportunities,"1580 - Benefits, Revenues and Customer Contact SU",3312 - Car Allowances - Car Hire,07/05/2013,2108954-1,15,2104746 - CC Hire,Car Hire for RH
Tendring DC,http://statistics.data.gov.uk/id/local-authority-district/22UN,Life Opportunities,H860 - Disabled Adaptations,C200 - Main Contractor,21/05/2013,1052035-1,2063,REDACTED PERSONAL DATA,REDACTED PERSONAL DATA
Tendring DC,http://statistics.data.gov.uk/id/local-authority-district/22UN,Life Opportunities,H860 - Disabled Adaptations,C200 - Main Contractor,21/05/2013,1052036-1,1785,REDACTED PERSONAL DATA,REDACTED PERSONAL DATA
Tendring DC,http://statistics.data.gov.uk/id/local-authority-district/22UN,Life Opportunities,1650 - Building Services Service Unit,1700 - Training - Courses,21/05/2013,1052093-1,1085,REDACTED COMMERCIAL CONFIDENTIALITY,REDACTED COMMERCIAL CONFIDENTIALITY
Tendring DC,http://statistics.data.gov.uk/id/local-authority-district/22UN,Life Opportunities,1880 - Office Accommodation Expenses,2100 - Building Repairs,28/05/2013,2109151-1,349.87,2100858 - Chelmer Electrical Ltd,Chelmer Electrical
Tendring DC,http://statistics.data.gov.uk/id/local-authority-district/22UN,Life Opportunities,5220 - HRA - Policy & Management,5253 - HRA Health & Safety Expenses,21/05/2013,1052084-1,44.5,REDACTED COMMERCIAL CONFIDENTIALITY,REDACTED COMMERCIAL CONFIDENTIALITY
Tendring DC,http://statistics.data.gov.uk/id/local-authority-district/22UN,Life Opportunities,8540 - Leisure Centre Clacton,4200 - Clothing & Uniforms,28/05/2013,1052335-1,41.4,2100205 - Chelmsford Safety Supplies Ltd,CHELMSFORD SAFETY SUPPLIES
Tendring DC,http://statistics.data.gov.uk/id/local-authority-district/22UN,Life Opportunities,5220 - HRA - Policy & Management,5253 - HRA Health & Safety Expenses,28/05/2013,2109077-1,45.22,REDACTED COMMERCIAL CONFIDENTIALITY,REDACTED COMMERCIAL CONFIDENTIALITY
Tendring DC,http://statistics.data.gov.uk/id/local-authority-district/22UN,Life Opportunities,5820 - Harwich Sports Centre,4040 - Equipment & Tools,21/05/2013,7700220-1,25.95,2100205 - Chelmsford Safety Supplies Ltd,FIRST AID KIT
Tendring DC,http://statistics.data.gov.uk/id/local-authority-district/22UN,Life Opportunities,6160 - Princes Theatre,5308 - Ice Cream,21/05/2013,1051964-1,217.93,REDACTED COMMERCIAL CONFIDENTIALITY,REDACTED COMMERCIAL CONFIDENTIALITY
Tendring DC,http://statistics.data.gov.uk/id/local-authority-district/22UN,Life Opportunities,6160 - Princes Theatre,5308 - Ice Cream,21/05/2013,1051965-1,234.22,REDACTED COMMERCIAL CONFIDENTIALITY,REDACTED COMMERCIAL CONFIDENTIALITY
Tendring DC,http://statistics.data.gov.uk/id/local-authority-district/22UN,Life Opportunities,6160 - Princes Theatre,5308 - Ice Cream,07/05/2013,2108878-1,129.28,REDACTED PERSONAL DATA,REDACTED PERSONAL DATA
Tendring DC,http://statistics.data.gov.uk/id/local-authority-district/22UN,Life Opportunities,5360 - HRA - Sheltered Units,4400 - Maintenance Under Service Agreements,21/05/2013,1051983-1,1200,2100237 - Cirrus Communication Systems Ltd,PLANNED MAINTENANCE RACK + SMOKE DETECTORS
Tendring DC,http://statistics.data.gov.uk/id/local-authority-district/22UN,Life Opportunities,5480 - HRA - Repair & Maintenance,2073 - Smoke Alarm Service/Testing,21/05/2013,1051983-2,2160,2100237 - Cirrus Communication Systems Ltd,PLANNED MAINTENANCE RACK + SMOKE DETECTORS
Tendring DC,http://statistics.data.gov.uk/id/local-authority-district/22UN,Life Opportunities,6740 - Careline,4400 - Maintenance Under Service Agreements,21/05/2013,1051984-1,9218,2100237 - Cirrus Communication Systems Ltd,MAINTENANCE SERVICE AGREEMENT
Tendring DC,http://statistics.data.gov.uk/id/local-authority-district/22UN,Life Opportunities,6160 - Princes Theatre,5500 - Miscellaneous Expenses,14/05/2013,1051844-1,185.6,REDACTED COMMERCIAL CONFIDENTIALITY,REDACTED COMMERCIAL CONFIDENTIALITY
Tendring DC,http://statistics.data.gov.uk/id/local-authority-district/22UN,Life Opportunities,6160 - Princes Theatre,4040 - Equipment & Tools,07/05/2013,2108873-1,170.4,REDACTED PERSONAL DATA,REDACTED PERSONAL DATA
Tendring DC,http://statistics.data.gov.uk/id/local-authority-district/22UN,Life Opportunities,6740 - Careline,5160 - Advertising,28/05/2013,1052293-1,112.5,2106287 - Click4 Ltd,HELIUM GAS FOR BALLOONS
Tendring DC,http://statistics.data.gov.uk/id/local-authority-district/22UN,Life Opportunities,"1580 - Benefits, Revenues and Customer Contact SU",4462 - Legal Fees incl. Bailiffs re debt recovery,01/05/2013,1052172-1,995,2100269 - Co operative Bank plc,HM COURT + AMAZON
Tendring DC,http://statistics.data.gov.uk/id/local-authority-district/22UN,Life Opportunities,"1580 - Benefits, Revenues and Customer Contact SU",4355 - Books & Periodicals,01/05/2013,1052172-2,-6.5,2100269 - Co operative Bank plc,HM COURT + AMAZON
Tendring DC,http://statistics.data.gov.uk/id/local-authority-district/22UN,Life Opportunities,5260 - HRA - Rent Collection And Accounting,4460 - Legal & Professional Expenses,01/05/2013,1052173-1,1240,2100269 - Co operative Bank plc,CREDIT CARD MAY 13
Tendring DC,http://statistics.data.gov.uk/id/local-authority-district/22UN,Life Opportunities,6620 - Corporate Management - General,5190 - Bank Commission Charges,01/05/2013,1052173-2,2,2100269 - Co operative Bank plc,CREDIT CARD MAY 13
Tendring DC,http://statistics.data.gov.uk/id/local-authority-district/22UN,Life Opportunities,1230 - Private Sector Housing Service Unit,1700 - Training - Courses,01/05/2013,1052173-3,530,2100269 - Co operative Bank plc,CREDIT CARD MAY 13
Tendring DC,http://statistics.data.gov.uk/id/local-authority-district/22UN,Life Opportunities,5880 - Management Of Sport & Leisure Facilities,5166 - Marketing and Promotion,28/05/2013,1052330-1,450,2111358 - Colchester United FC Ltd,COLCHESTER UNITED FC
Tendring DC,http://statistics.data.gov.uk/id/local-authority-district/22UN,Life Opportunities,"1580 - Benefits, Revenues and Customer Contact SU",4462 - Legal Fees incl. Bailiffs re debt recovery,14/05/2013,1051788-1,20.5,2100381 - Collect Services Ltd,"VAT ON FEES,LEVY FEE,WALKING POSSESSION CT"
Tendring DC,http://statistics.data.gov.uk/id/local-authority-district/22UN,Life Opportunities,"1580 - Benefits, Revenues and Customer Contact SU",4462 - Legal Fees incl. Bailiffs re debt recovery,14/05/2013,1051788-2,12,2100381 - Collect Services Ltd,"VAT ON FEES,LEVY FEE,WALKING POSSESSION CT"
Tendring DC,http://statistics.data.gov.uk/id/local-authority-district/22UN,Life Opportunities,"1580 - Benefits, Revenues and Customer Contact SU",4462 - Legal Fees incl. Bailiffs re debt recovery,14/05/2013,1051788-3,10,2100381 - Collect Services Ltd,"VAT ON FEES,LEVY FEE,WALKING POSSESSION CT"
Tendring DC,http://statistics.data.gov.uk/id/local-authority-district/22UN,Life Opportunities,"1580 - Benefits, Revenues and Customer Contact SU",4462 - Legal Fees incl. Bailiffs re debt recovery,14/05/2013,1051788-4,-10,2100381 - Collect Services Ltd,"VAT ON FEES,LEVY FEE,WALKING POSSESSION CT"
Tendring DC,http://statistics.data.gov.uk/id/local-authority-district/22UN,Life Opportunities,"1580 - Benefits, Revenues and Customer Contact SU",4462 - Legal Fees incl. Bailiffs re debt recovery,14/05/2013,1051788-5,35,2100381 - Collect Services Ltd,"VAT ON FEES,LEVY FEE,WALKING POSSESSION CT"
Tendring DC,http://statistics.data.gov.uk/id/local-authority-district/22UN,Life Opportunities,"1580 - Benefits, Revenues and Customer Contact SU",4462 - Legal Fees incl. Bailiffs re debt recovery,14/05/2013,1051788-6,-35,2100381 - Collect Services Ltd,"VAT ON FEES,LEVY FEE,WALKING POSSESSION CT"
Tendring DC,http://statistics.data.gov.uk/id/local-authority-district/22UN,Life Opportunities,"1580 - Benefits, Revenues and Customer Contact SU",4462 - Legal Fees incl. Bailiffs re debt recovery,14/05/2013,1051788-7,2451.84,2100381 - Collect Services Ltd,"VAT ON FEES,LEVY FEE,WALKING POSSESSION CT"
Tendring DC,http://statistics.data.gov.uk/id/local-authority-district/22UN,Life Opportunities,"1580 - Benefits, Revenues and Customer Contact SU",4462 - Legal Fees incl. Bailiffs re debt recovery,14/05/2013,1051788-8,-2451.84,2100381 - Collect Services Ltd,"VAT ON FEES,LEVY FEE,WALKING POSSESSION CT"
Tendring DC,http://statistics.data.gov.uk/id/local-authority-district/22UN,Life Opportunities,"1580 - Benefits, Revenues and Customer Contact SU",5189 - External Debt Recovery Commission,14/05/2013,1051789-1,449.83,2100381 - Collect Services Ltd,15% COMMISSION ON 2998.85 RECOVERED DEBTS
Tendring DC,http://statistics.data.gov.uk/id/local-authority-district/22UN,Life Opportunities,"1580 - Benefits, Revenues and Customer Contact SU",4462 - Legal Fees incl. Bailiffs re debt recovery,28/05/2013,1052304-1,833.7,2100381 - Collect Services Ltd,VAT ON FEES COLLECTED NNDR
Tendring DC,http://statistics.data.gov.uk/id/local-authority-district/22UN,Life Opportunities,"1580 - Benefits, Revenues and Customer Contact SU",4462 - Legal Fees incl. Bailiffs re debt recovery,28/05/2013,1052304-2,-833.7,2100381 - Collect Services Ltd,VAT ON FEES COLLECTED NNDR
Tendring DC,http://statistics.data.gov.uk/id/local-authority-district/22UN,Life Opportunities,"1580 - Benefits, Revenues and Customer Contact SU",4462 - Legal Fees incl. Bailiffs re debt recovery,28/05/2013,1052382-1,10,2100381 - Collect Services Ltd,VAT ON FEES COLLECTED
Tendring DC,http://statistics.data.gov.uk/id/local-authority-district/22UN,Life Opportunities,"1580 - Benefits, Revenues and Customer Contact SU",4462 - Legal Fees incl. Bailiffs re debt recovery,28/05/2013,1052382-2,-10,2100381 - Collect Services Ltd,VAT ON FEES COLLECTED
Tendring DC,http://statistics.data.gov.uk/id/local-authority-district/22UN,Life Opportunities,"1580 - Benefits, Revenues and Customer Contact SU",4462 - Legal Fees incl. Bailiffs re debt recovery,28/05/2013,1052382-3,-2.43,2100381 - Collect Services Ltd,VAT ON FEES COLLECTED
Tendring DC,http://statistics.data.gov.uk/id/local-authority-district/22UN,Life Opportunities,"1580 - Benefits, Revenues and Customer Contact SU",4462 - Legal Fees incl. Bailiffs re debt recovery,28/05/2013,1052382-4,2.43,2100381 - Collect Services Ltd,VAT ON FEES COLLECTED
Tendring DC,http://statistics.data.gov.uk/id/local-authority-district/22UN,Life Opportunities,"1580 - Benefits, Revenues and Customer Contact SU",4462 - Legal Fees incl. Bailiffs re debt recovery,28/05/2013,1052382-5,2675.07,2100381 - Collect Services Ltd,VAT ON FEES COLLECTED
Tendring DC,http://statistics.data.gov.uk/id/local-authority-district/22UN,Life Opportunities,"1580 - Benefits, Revenues and Customer Contact SU",4462 - Legal Fees incl. Bailiffs re debt recovery,28/05/2013,1052382-6,-2675.07,2100381 - Collect Services Ltd,VAT ON FEES COLLECTED
Tendring DC,http://statistics.data.gov.uk/id/local-authority-district/22UN,Life Opportunities,"1580 - Benefits, Revenues and Customer Contact SU",4462 - Legal Fees incl. Bailiffs re debt recovery,21/05/2013,7700251-1,75,2100381 - Collect Services Ltd,COLLECTED VAT ON FEES
Tendring DC,http://statistics.data.gov.uk/id/local-authority-district/22UN,Life Opportunities,"1580 - Benefits, Revenues and Customer Contact SU",4462 - Legal Fees incl. Bailiffs re debt recovery,21/05/2013,7700251-2,-75,2100381 - Collect Services Ltd,COLLECTED VAT ON FEES
Tendring DC,http://statistics.data.gov.uk/id/local-authority-district/22UN,Life Opportunities,"1580 - Benefits, Revenues and Customer Contact SU",4462 - Legal Fees incl. Bailiffs re debt recovery,21/05/2013,7700251-3,300.13,2100381 - Collect Services Ltd,COLLECTED VAT ON FEES
Tendring DC,http://statistics.data.gov.uk/id/local-authority-district/22UN,Life Opportunities,"1580 - Benefits, Revenues and Customer Contact SU",4462 - Legal Fees incl. Bailiffs re debt recovery,21/05/2013,7700251-4,-300.13,2100381 - Collect Services Ltd,COLLECTED VAT ON FEES
Tendring DC,http://statistics.data.gov.uk/id/local-authority-district/22UN,Life Opportunities,"1580 - Benefits, Revenues and Customer Contact SU",4462 - Legal Fees incl. Bailiffs re debt recovery,21/05/2013,7700251-5,3077.74,2100381 - Collect Services Ltd,COLLECTED VAT ON FEES
Tendring DC,http://statistics.data.gov.uk/id/local-authority-district/22UN,Life Opportunities,"1580 - Benefits, Revenues and Customer Contact SU",4462 - Legal Fees incl. Bailiffs re debt recovery,21/05/2013,7700251-6,-3077.74,2100381 - Collect Services Ltd,COLLECTED VAT ON FEES
Tendring DC,http://statistics.data.gov.uk/id/local-authority-district/22UN,Life Opportunities,9900 - General Fund Balance Sheet,B863 - Bailiff Payments Holding Account,07/05/2013,1051738-1,2595.26,2112596 - Collect Services Ltd Clients Account,
Tendring DC,http://statistics.data.gov.uk/id/local-authority-district/22UN,Life Opportunities,9900 - General Fund Balance Sheet,B863 - Bailiff Payments Holding Account,14/05/2013,1051928-1,1634.5,REDACTED COMMERCIAL CONFIDENTIALITY,REDACTED COMMERCIAL CONFIDENTIALITY
Tendring DC,http://statistics.data.gov.uk/id/local-authority-district/22UN,Life Opportunities,9900 - General Fund Balance Sheet,B863 - Bailiff Payments Holding Account,28/05/2013,1052420-1,4329.03,REDACTED COMMERCIAL CONFIDENTIALITY,REDACTED COMMERCIAL CONFIDENTIALITY
Tendring DC,http://statistics.data.gov.uk/id/local-authority-district/22UN,Life Opportunities,"1580 - Benefits, Revenues and Customer Contact SU",4462 - Legal Fees incl. Bailiffs re debt recovery,01/05/2013,1052437-1,4,2105795 - Companies House,COMPANIES HOUSE MAY 13
Tendring DC,http://statistics.data.gov.uk/id/local-authority-district/22UN,Life Opportunities,1880 - Office Accommodation Expenses,2100 - Building Repairs,07/05/2013,1051692-1,276.13,2100314 - Cooper & Brome (Plumbing & Heating) Ltd,COOPER & BROME
Tendring DC,http://statistics.data.gov.uk/id/local-authority-district/22UN,Life Opportunities,5820 - Harwich Sports Centre,4597 - Hired Services - Payments to Contractors,28/05/2013,1052246-1,66,2100314 - Cooper & Brome (Plumbing & Heating) Ltd,REAPIR TO LEAKY RADIATOR
Tendring DC,http://statistics.data.gov.uk/id/local-authority-district/22UN,Life Opportunities,6740 - Careline,2308 - Energy Costs - Gas (Including LPG),21/05/2013,1052165-1,-9.12,2104620 - Corona Energy Retail 4 Limited,CORONA ENERGY-OCT 10
Tendring DC,http://statistics.data.gov.uk/id/local-authority-district/22UN,Life Opportunities,5360 - HRA - Sheltered Units,2308 - Energy Costs - Gas (Including LPG),21/05/2013,1052167-1,-25.35,2104620 - Corona Energy Retail 4 Limited,GROOM DEC 12
Tendring DC,http://statistics.data.gov.uk/id/local-authority-district/22UN,Life Opportunities,5360 - HRA - Sheltered Units,2308 - Energy Costs - Gas (Including LPG),21/05/2013,1052168-1,-26.94,2104620 - Corona Energy Retail 4 Limited,GROOM JAN 13
Tendring DC,http://statistics.data.gov.uk/id/local-authority-district/22UN,Life Opportunities,5360 - HRA - Sheltered Units,2308 - Energy Costs - Gas (Including LPG),21/05/2013,1052169-1,-24.44,2104620 - Corona Energy Retail 4 Limited,GROOM FEB 13
Tendring DC,http://statistics.data.gov.uk/id/local-authority-district/22UN,Life Opportunities,8540 - Leisure Centre Clacton,2308 - Energy Costs - Gas (Including LPG),28/05/2013,1052237-1,-641.38,2104620 - Corona Energy Retail 4 Limited,PRICE ADJ
Tendring DC,http://statistics.data.gov.uk/id/local-authority-district/22UN,Life Opportunities,8540 - Leisure Centre Clacton,2308 - Energy Costs - Gas (Including LPG),28/05/2013,1052238-1,-730.96,2104620 - Corona Energy Retail 4 Limited,PRICE ADJ
Tendring DC,http://statistics.data.gov.uk/id/local-authority-district/22UN,Life Opportunities,8540 - Leisure Centre Clacton,2308 - Energy Costs - Gas (Including LPG),28/05/2013,1052239-1,-658.48,2104620 - Corona Energy Retail 4 Limited,PRICE ADJ
Tendring DC,http://statistics.data.gov.uk/id/local-authority-district/22UN,Life Opportunities,5340 - HRA - Communal Central Heating,2308 - Energy Costs - Gas (Including LPG),21/05/2013,2109010-1,7516.5,2104620 - Corona Energy Retail 4 Limited,April SHU
Tendring DC,http://statistics.data.gov.uk/id/local-authority-district/22UN,Life Opportunities,5360 - HRA - Sheltered Units,2308 - Energy Costs - Gas (Including LPG),21/05/2013,2109010-2,108.41,2104620 - Corona Energy Retail 4 Limited,April SHU
Tendring DC,http://statistics.data.gov.uk/id/local-authority-district/22UN,Life Opportunities,6740 - Careline,2308 - Energy Costs - Gas (Including LPG),21/05/2013,2109036-1,6.61,2104620 - Corona Energy Retail 4 Limited,Corona Energy - June 10
Tendring DC,http://statistics.data.gov.uk/id/local-authority-district/22UN,Life Opportunities,6740 - Careline,2308 - Energy Costs - Gas (Including LPG),21/05/2013,2109037-1,6.27,2104620 - Corona Energy Retail 4 Limited,Corona Energy - July 10
Tendring DC,http://statistics.data.gov.uk/id/local-authority-district/22UN,Life Opportunities,6740 - Careline,2308 - Energy Costs - Gas (Including LPG),21/05/2013,2109038-1,6.27,2104620 - Corona Energy Retail 4 Limited,Corona Energy - Aug 10
Tendring DC,http://statistics.data.gov.uk/id/local-authority-district/22UN,Life Opportunities,6740 - Careline,2308 - Energy Costs - Gas (Including LPG),21/05/2013,2109039-1,6.61,2104620 - Corona Energy Retail 4 Limited,Corona Energy - Sept 10
Tendring DC,http://statistics.data.gov.uk/id/local-authority-district/22UN,Life Opportunities,6740 - Careline,2308 - Energy Costs - Gas (Including LPG),21/05/2013,2109040-1,8.97,2104620 - Corona Energy Retail 4 Limited,Corona Energy - Oct 10
Tendring DC,http://statistics.data.gov.uk/id/local-authority-district/22UN,Life Opportunities,8510 - Dovercourt Swimming Pool & All Weather Facilities,2308 - Energy Costs - Gas (Including LPG),28/05/2013,2109186-1,3004.21,2104620 - Corona Energy Retail 4 Limited,Dovercourt Pool
Tendring DC,http://statistics.data.gov.uk/id/local-authority-district/22UN,Life Opportunities,8520 - Frinton & Walton Swimming Pool,2308 - Energy Costs - Gas (Including LPG),28/05/2013,2109187-1,3208.02,2104620 - Corona Energy Retail 4 Limited,Dovercourt Pool
Tendring DC,http://statistics.data.gov.uk/id/local-authority-district/22UN,Life Opportunities,8540 - Leisure Centre Clacton,2308 - Energy Costs - Gas (Including LPG),28/05/2013,2109202-1,745.22,2104620 - Corona Energy Retail 4 Limited,Price ADJ
Tendring DC,http://statistics.data.gov.uk/id/local-authority-district/22UN,Life Opportunities,8540 - Leisure Centre Clacton,2308 - Energy Costs - Gas (Including LPG),28/05/2013,2109203-1,722.94,2104620 - Corona Energy Retail 4 Limited,Price ADJ
Tendring DC,http://statistics.data.gov.uk/id/local-authority-district/22UN,Life Opportunities,8540 - Leisure Centre Clacton,2308 - Energy Costs - Gas (Including LPG),28/05/2013,2109204-1,817.29,2104620 - Corona Energy Retail 4 Limited,Price ADJ
Tendring DC,http://statistics.data.gov.uk/id/local-authority-district/22UN,Life Opportunities,6740 - Careline,2308 - Energy Costs - Gas (Including LPG),21/05/2013,7009284-1,11.3,2104620 - Corona Energy Retail 4 Limited,CORONA ENERGY MARCH 10
Tendring DC,http://statistics.data.gov.uk/id/local-authority-district/22UN,Life Opportunities,6740 - Careline,2308 - Energy Costs - Gas (Including LPG),21/05/2013,7009285-1,12.31,2104620 - Corona Energy Retail 4 Limited,CORONA ENERGY APRIL 10
Tendring DC,http://statistics.data.gov.uk/id/local-authority-district/22UN,Life Opportunities,6160 - Princes Theatre,4622 - Hired Services - Artistes and Production Companies,14/05/2013,1051852-1,2407.57,REDACTED COMMERCIAL CONFIDENTIALITY,REDACTED COMMERCIAL CONFIDENTIALITY
Tendring DC,http://statistics.data.gov.uk/id/local-authority-district/22UN,Life Opportunities,8530 - Brightlingsea Swimming Pool,2100 - Building Repairs,14/05/2013,1051865-1,86.85,2108167 - Crown Paints Ltd,
Tendring DC,http://statistics.data.gov.uk/id/local-authority-district/22UN,Life Opportunities,8530 - Brightlingsea Swimming Pool,2100 - Building Repairs,14/05/2013,1051866-1,22.55,2108167 - Crown Paints Ltd,
Tendring DC,http://statistics.data.gov.uk/id/local-authority-district/22UN,Life Opportunities,5480 - HRA - Repair & Maintenance,2088 - Disabled Adaptations,07/05/2013,1051686-1,200,REDACTED PERSONAL DATA,REDACTED PERSONAL DATA
Tendring DC,http://statistics.data.gov.uk/id/local-authority-district/22UN,Life Opportunities,5480 - HRA - Repair & Maintenance,2088 - Disabled Adaptations,07/05/2013,1051686-2,50,REDACTED PERSONAL DATA,REDACTED PERSONAL DATA
Tendring DC,http://statistics.data.gov.uk/id/local-authority-district/22UN,Life Opportunities,5360 - HRA - Sheltered Units,4710 - Telephones - Charges,28/05/2013,1052292-1,416.97,2106704 - Daisy Communications Ltd,DAISY BILL-APRIL 13
Tendring DC,http://statistics.data.gov.uk/id/local-authority-district/22UN,Life Opportunities,5800 - Brightlingsea Sports Centre,4080 - Materials & Consumables,14/05/2013,1051822-1,125.61,2112697 - Direct Global Solutions Ltd,GLOBAL SOLUTIONS LTD
Tendring DC,http://statistics.data.gov.uk/id/local-authority-district/22UN,Life Opportunities,8540 - Leisure Centre Clacton,5160 - Advertising,28/05/2013,2109195-1,420,2103510 - Direct Solutions,
Tendring DC,http://statistics.data.gov.uk/id/local-authority-district/22UN,Life Opportunities,5800 - Brightlingsea Sports Centre,2100 - Building Repairs,28/05/2013,1052333-1,101,2100490 - DORMA UK Ltd - Service Division,DORMA
Tendring DC,http://statistics.data.gov.uk/id/local-authority-district/22UN,Life Opportunities,H810 - Electrical Re-wiring,C200 - Main Contractor,28/05/2013,2109078-1,2767.94,REDACTED COMMERCIAL CONFIDENTIALITY,REDACTED COMMERCIAL CONFIDENTIALITY
Tendring DC,http://statistics.data.gov.uk/id/local-authority-district/22UN,Life Opportunities,H810 - Electrical Re-wiring,C200 - Main Contractor,28/05/2013,2109079-1,7981.39,REDACTED COMMERCIAL CONFIDENTIALITY,REDACTED COMMERCIAL CONFIDENTIALITY
Tendring DC,http://statistics.data.gov.uk/id/local-authority-district/22UN,Life Opportunities,8540 - Leisure Centre Clacton,1700 - Training - Courses,28/05/2013,2109196-1,150,2113110 - Easton & Otley College,
Tendring DC,http://statistics.data.gov.uk/id/local-authority-district/22UN,Life Opportunities,7520 - Tourism Publicity Marketing Promotion,5160 - Advertising,21/05/2013,1051967-1,80,REDACTED COMMERCIAL CONFIDENTIALITY,REDACTED COMMERCIAL CONFIDENTIALITY
Tendring DC,http://statistics.data.gov.uk/id/local-authority-district/22UN,Life Opportunities,7520 - Tourism Publicity Marketing Promotion,5160 - Advertising,21/05/2013,1051968-1,87.99,REDACTED COMMERCIAL CONFIDENTIALITY,REDACTED COMMERCIAL CONFIDENTIALITY
Tendring DC,http://statistics.data.gov.uk/id/local-authority-district/22UN,Life Opportunities,8540 - Leisure Centre Clacton,2304 - Energy Costs - Electricity,14/05/2013,1051872-1,6414.83,2105146 - EDF Energy 1 Ltd,APRIL
Tendring DC,http://statistics.data.gov.uk/id/local-authority-district/22UN,Life Opportunities,1880 - Office Accommodation Expenses,2308 - Energy Costs - Gas (Including LPG),14/05/2013,1051880-1,4265.49,2105146 - EDF Energy 1 Ltd,EDF
Tendring DC,http://statistics.data.gov.uk/id/local-authority-district/22UN,Life Opportunities,6160 - Princes Theatre,2308 - Energy Costs - Gas (Including LPG),14/05/2013,1051880-2,473.94,2105146 - EDF Energy 1 Ltd,EDF
Tendring DC,http://statistics.data.gov.uk/id/local-authority-district/22UN,Life Opportunities,8510 - Dovercourt Swimming Pool & All Weather Facilities,2304 - Energy Costs - Electricity,21/05/2013,7009268-1,2657.64,2105146 - EDF Energy 1 Ltd,DOVERCOURT POOL
Tendring DC,http://statistics.data.gov.uk/id/local-authority-district/22UN,Life Opportunities,H920 - DFGs,C400 - Grant payments,28/05/2013,1052228-1,1098,REDACTED PERSONAL DATA,REDACTED PERSONAL DATA
Tendring DC,http://statistics.data.gov.uk/id/local-authority-district/22UN,Life Opportunities,5360 - HRA - Sheltered Units,2304 - Energy Costs - Electricity,28/05/2013,1052325-1,27.81,2107644 - Eon,KD WARDEN FLAT
Tendring DC,http://statistics.data.gov.uk/id/local-authority-district/22UN,Life Opportunities,8530 - Brightlingsea Swimming Pool,2100 - Building Repairs,28/05/2013,1052331-1,3780,2112916 - ESE Direct Ltd,ESE DIRECT
Tendring DC,http://statistics.data.gov.uk/id/local-authority-district/22UN,Life Opportunities,5140 - Homelessness,4680 - Bed & Breakfast Accommodation,07/05/2013,2108959-1,420,REDACTED COMMERCIAL CONFIDENTIALITY,REDACTED COMMERCIAL CONFIDENTIALITY
Tendring DC,http://statistics.data.gov.uk/id/local-authority-district/22UN,Life Opportunities,5140 - Homelessness,4680 - Bed & Breakfast Accommodation,21/05/2013,7700228-1,141.67,REDACTED PERSONAL DATA,REDACTED PERSONAL DATA
Tendring DC,http://statistics.data.gov.uk/id/local-authority-district/22UN,Life Opportunities,5480 - HRA - Repair & Maintenance,2092 - Plumbing,28/05/2013,2109116-1,1574.83,REDACTED COMMERCIAL CONFIDENTIALITY,REDACTED COMMERCIAL CONFIDENTIALITY
Tendring DC,http://statistics.data.gov.uk/id/local-authority-district/22UN,Life Opportunities,5140 - Homelessness,4683 - Other Homelessness Expenses,07/05/2013,2108974-1,550,REDACTED PERSONAL DATA,REDACTED PERSONAL DATA
Tendring DC,http://statistics.data.gov.uk/id/local-authority-district/22UN,Life Opportunities,5260 - HRA - Rent Collection And Accounting,4757 - IT External Charges,28/05/2013,1052326-1,190,2100503 - Ferret Information Systems Ltd,FERRET RENOVATOR 13/14
Tendring DC,http://statistics.data.gov.uk/id/local-authority-district/22UN,Life Opportunities,5480 - HRA - Repair & Maintenance,2057 - Fire Alarms Servicing,14/05/2013,1051838-1,140,REDACTED PERSONAL DATA,REDACTED PERSONAL DATA
Tendring DC,http://statistics.data.gov.uk/id/local-authority-district/22UN,Life Opportunities,5480 - HRA - Repair & Maintenance,2058 - Fire Alarms Repairs,28/05/2013,2109082-1,105,REDACTED PERSONAL DATA,REDACTED PERSONAL DATA
Tendring DC,http://statistics.data.gov.uk/id/local-authority-district/22UN,Life Opportunities,5480 - HRA - Repair & Maintenance,2058 - Fire Alarms Repairs,21/05/2013,7700238-1,50,REDACTED PERSONAL DATA,REDACTED PERSONAL DATA
Tendring DC,http://statistics.data.gov.uk/id/local-authority-district/22UN,Life Opportunities,7600 - Tourist Information Centres,9356 - Commission Sales,14/05/2013,1051755-1,1697.85,REDACTED COMMERCIAL CONFIDENTIALITY,REDACTED COMMERCIAL CONFIDENTIALITY
Tendring DC,http://statistics.data.gov.uk/id/local-authority-district/22UN,Life Opportunities,7600 - Tourist Information Centres,9356 - Commission Sales,21/05/2013,1051963-1,146.7,REDACTED PERSONAL DATA,REDACTED PERSONAL DATA
Tendring DC,http://statistics.data.gov.uk/id/local-authority-district/22UN,Life Opportunities,5140 - Homelessness,4683 - Other Homelessness Expenses,21/05/2013,1052142-1,819,REDACTED PERSONAL DATA,REDACTED PERSONAL DATA
Tendring DC,http://statistics.data.gov.uk/id/local-authority-district/22UN,Life Opportunities,6355 - Community Activity Network,4597 - Hired Services - Payments to Contractors,14/05/2013,1051839-1,187.5,REDACTED COMMERCIAL CONFIDENTIALITY,REDACTED COMMERCIAL CONFIDENTIALITY
Tendring DC,http://statistics.data.gov.uk/id/local-authority-district/22UN,Life Opportunities,5360 - HRA - Sheltered Units,4040 - Equipment & Tools,28/05/2013,1052202-1,65.5,REDACTED COMMERCIAL CONFIDENTIALITY,REDACTED COMMERCIAL CONFIDENTIALITY
Tendring DC,http://statistics.data.gov.uk/id/local-authority-district/22UN,Life Opportunities,7000 - CCTV,4400 - Maintenance Under Service Agreements,21/05/2013,1051986-1,50,2100546 - GCS Alarms,HARWICH CAMERA 4
Tendring DC,http://statistics.data.gov.uk/id/local-authority-district/22UN,Life Opportunities,7000 - CCTV,4400 - Maintenance Under Service Agreements,21/05/2013,1051987-1,50,2100546 - GCS Alarms,ALL FRINTON CAMERAS
Tendring DC,http://statistics.data.gov.uk/id/local-authority-district/22UN,Life Opportunities,1880 - Office Accommodation Expenses,4632 - Security,21/05/2013,1051989-1,95,2100546 - GCS Alarms,GCS
Tendring DC,http://statistics.data.gov.uk/id/local-authority-district/22UN,Life Opportunities,1880 - Office Accommodation Expenses,4632 - Security,21/05/2013,1051990-1,60,2100546 - GCS Alarms,GCS
Tendring DC,http://statistics.data.gov.uk/id/local-authority-district/22UN,Life Opportunities,1880 - Office Accommodation Expenses,4632 - Security,07/05/2013,2108890-1,20,2100546 - GCS Alarms,GCS*
Tendring DC,http://statistics.data.gov.uk/id/local-authority-district/22UN,Life Opportunities,1880 - Office Accommodation Expenses,4632 - Security,07/05/2013,2108891-1,95,2100546 - GCS Alarms,GCS
Tendring DC,http://statistics.data.gov.uk/id/local-authority-district/22UN,Life Opportunities,8540 - Leisure Centre Clacton,2100 - Building Repairs,07/05/2013,2108899-1,78.75,2100546 - GCS Alarms,
Tendring DC,http://statistics.data.gov.uk/id/local-authority-district/22UN,Life Opportunities,8540 - Leisure Centre Clacton,2100 - Building Repairs,07/05/2013,2108900-1,75,2100546 - GCS Alarms,
Tendring DC,http://statistics.data.gov.uk/id/local-authority-district/22UN,Life Opportunities,1880 - Office Accommodation Expenses,4632 - Security,28/05/2013,2109148-1,92.5,2100546 - GCS Alarms,GCS
Tendring DC,http://statistics.data.gov.uk/id/local-authority-district/22UN,Life Opportunities,8540 - Leisure Centre Clacton,2100 - Building Repairs,28/05/2013,2109199-1,180,2100546 - GCS Alarms,
Tendring DC,http://statistics.data.gov.uk/id/local-authority-district/22UN,Life Opportunities,7000 - CCTV,4400 - Maintenance Under Service Agreements,21/05/2013,7009279-1,20,2100546 - GCS Alarms,REPLACE POE PSU GT CLACTON JAYWICK
Tendring DC,http://statistics.data.gov.uk/id/local-authority-district/22UN,Life Opportunities,7000 - CCTV,4400 - Maintenance Under Service Agreements,21/05/2013,7009279-2,20,2100546 - GCS Alarms,REPLACE POE PSU GT CLACTON JAYWICK
Tendring DC,http://statistics.data.gov.uk/id/local-authority-district/22UN,Life Opportunities,7000 - CCTV,4400 - Maintenance Under Service Agreements,21/05/2013,7009280-1,50,2100546 - GCS Alarms,REPAIR DOVERCOURT CAMS 1&2
Tendring DC,http://statistics.data.gov.uk/id/local-authority-district/22UN,Life Opportunities,7000 - CCTV,4400 - Maintenance Under Service Agreements,21/05/2013,7009281-1,25,2100546 - GCS Alarms,REPLACE PSU HARWICH CAM 4
Tendring DC,http://statistics.data.gov.uk/id/local-authority-district/22UN,Life Opportunities,8025 - Car Parks - Off St,4040 - Equipment & Tools,21/05/2013,7009282-1,50,2100546 - GCS Alarms,WELLESLEY RD CAR PARK
Tendring DC,http://statistics.data.gov.uk/id/local-authority-district/22UN,Life Opportunities,7000 - CCTV,4400 - Maintenance Under Service Agreements,21/05/2013,7009283-1,50,2100546 - GCS Alarms,LONDON RD & JAYWICK
Tendring DC,http://statistics.data.gov.uk/id/local-authority-district/22UN,Life Opportunities,5480 - HRA - Repair & Maintenance,2018 - Other Responsive Repairs,07/05/2013,2108865-1,81.9,REDACTED PERSONAL DATA,REDACTED PERSONAL DATA
Tendring DC,http://statistics.data.gov.uk/id/local-authority-district/22UN,Life Opportunities,5480 - HRA - Repair & Maintenance,2018 - Other Responsive Repairs,07/05/2013,2108866-1,80,REDACTED PERSONAL DATA,REDACTED PERSONAL DATA
Tendring DC,http://statistics.data.gov.uk/id/local-authority-district/22UN,Life Opportunities,5480 - HRA - Repair & Maintenance,2018 - Other Responsive Repairs,07/05/2013,2108867-1,80,REDACTED PERSONAL DATA,REDACTED PERSONAL DATA
Tendring DC,http://statistics.data.gov.uk/id/local-authority-district/22UN,Life Opportunities,5480 - HRA - Repair & Maintenance,2018 - Other Responsive Repairs,07/05/2013,2108870-1,140,REDACTED PERSONAL DATA,REDACTED PERSONAL DATA
Tendring DC,http://statistics.data.gov.uk/id/local-authority-district/22UN,Life Opportunities,5880 - Management Of Sport & Leisure Facilities,4597 - Hired Services - Payments to Contractors,28/05/2013,2109193-1,3519.5,2107273 - Gladstone MRM Limited,
Tendring DC,http://statistics.data.gov.uk/id/local-authority-district/22UN,Life Opportunities,5240 - HRA - Managing Tenancies,5242 - Tenant Relations,21/05/2013,1052156-1,10,REDACTED COMMERCIAL CONFIDENTIALITY,REDACTED COMMERCIAL CONFIDENTIALITY
Tendring DC,http://statistics.data.gov.uk/id/local-authority-district/22UN,Life Opportunities,6160 - Princes Theatre,4105 - Bar/Catering Expenses,21/05/2013,2108789-1,-91.9,REDACTED COMMERCIAL CONFIDENTIALITY,REDACTED COMMERCIAL CONFIDENTIALITY
Tendring DC,http://statistics.data.gov.uk/id/local-authority-district/22UN,Life Opportunities,6160 - Princes Theatre,4105 - Bar/Catering Expenses,21/05/2013,2108998-1,213.97,REDACTED COMMERCIAL CONFIDENTIALITY,REDACTED COMMERCIAL CONFIDENTIALITY
Tendring DC,http://statistics.data.gov.uk/id/local-authority-district/22UN,Life Opportunities,5240 - HRA - Managing Tenancies,5242 - Tenant Relations,21/05/2013,1052184-1,250,REDACTED COMMERCIAL CONFIDENTIALITY,REDACTED COMMERCIAL CONFIDENTIALITY
Tendring DC,http://statistics.data.gov.uk/id/local-authority-district/22UN,Life Opportunities,5480 - HRA - Repair & Maintenance,2017 - Mechanical Equipment /Extract Fans,21/05/2013,7700235-1,45.83,REDACTED PERSONAL DATA,REDACTED PERSONAL DATA
Tendring DC,http://statistics.data.gov.uk/id/local-authority-district/22UN,Life Opportunities,5140 - Homelessness,4680 - Bed & Breakfast Accommodation,21/05/2013,1052081-1,100,REDACTED PERSONAL DATA,REDACTED PERSONAL DATA
Tendring DC,http://statistics.data.gov.uk/id/local-authority-district/22UN,Life Opportunities,H710 - Selected Improvements,C200 - Main Contractor,21/05/2013,1052196-1,30933.08,2104745 - Hamcor Construction Services Limited,WORKS AS VALUATION REQUEST NO. 7
Tendring DC,http://statistics.data.gov.uk/id/local-authority-district/22UN,Life Opportunities,5820 - Harwich Sports Centre,2804 - Premises Insurance - General,14/05/2013,1051846-1,713.1,REDACTED COMMERCIAL CONFIDENTIALITY,REDACTED COMMERCIAL CONFIDENTIALITY
Tendring DC,http://statistics.data.gov.uk/id/local-authority-district/22UN,Life Opportunities,5820 - Harwich Sports Centre,2308 - Energy Costs - Gas (Including LPG),14/05/2013,1051846-2,4232.59,REDACTED COMMERCIAL CONFIDENTIALITY,REDACTED COMMERCIAL CONFIDENTIALITY
Tendring DC,http://statistics.data.gov.uk/id/local-authority-district/22UN,Life Opportunities,5820 - Harwich Sports Centre,2510 - Water Services - Unmetered,14/05/2013,1051846-3,400.68,REDACTED COMMERCIAL CONFIDENTIALITY,REDACTED COMMERCIAL CONFIDENTIALITY
Tendring DC,http://statistics.data.gov.uk/id/local-authority-district/22UN,Life Opportunities,5820 - Harwich Sports Centre,2410 - National Non Domestic Rates,14/05/2013,1051846-4,1032,REDACTED COMMERCIAL CONFIDENTIALITY,REDACTED COMMERCIAL CONFIDENTIALITY
Tendring DC,http://statistics.data.gov.uk/id/local-authority-district/22UN,Life Opportunities,5240 - HRA - Managing Tenancies,5242 - Tenant Relations,28/05/2013,2109117-1,44,REDACTED COMMERCIAL CONFIDENTIALITY,REDACTED COMMERCIAL CONFIDENTIALITY
Tendring DC,http://statistics.data.gov.uk/id/local-authority-district/22UN,Life Opportunities,8530 - Brightlingsea Swimming Pool,2100 - Building Repairs,14/05/2013,1051864-1,419.42,2100615 - Healey Tool Hire & Sales Limited,
Tendring DC,http://statistics.data.gov.uk/id/local-authority-district/22UN,Life Opportunities,1880 - Office Accommodation Expenses,2100 - Building Repairs,21/05/2013,1051988-1,1183.2,2112468 - Henry Ashe Projects Ltd,HENRY ASHE
Tendring DC,http://statistics.data.gov.uk/id/local-authority-district/22UN,Life Opportunities,8540 - Leisure Centre Clacton,5160 - Advertising,10/05/2013,1052438-1,52,2111275 - hibu (UK) Ltd,YELL 10/5/13 DD ADVERT
Tendring DC,http://statistics.data.gov.uk/id/local-authority-district/22UN,Life Opportunities,5240 - HRA - Managing Tenancies,5249 - Housing ASB Expenses,21/05/2013,1052009-1,175,REDACTED COMMERCIAL CONFIDENTIALITY,REDACTED COMMERCIAL CONFIDENTIALITY
Tendring DC,http://statistics.data.gov.uk/id/local-authority-district/22UN,Life Opportunities,5240 - HRA - Managing Tenancies,5249 - Housing ASB Expenses,21/05/2013,1052155-1,175,REDACTED COMMERCIAL CONFIDENTIALITY,REDACTED COMMERCIAL CONFIDENTIALITY
Tendring DC,http://statistics.data.gov.uk/id/local-authority-district/22UN,Life Opportunities,8510 - Dovercourt Swimming Pool & All Weather Facilities,2100 - Building Repairs,14/05/2013,1051855-1,51,2111080 - Homecraft Contracts Electrical Ltd,DOVERCOURT POOL
Tendring DC,http://statistics.data.gov.uk/id/local-authority-district/22UN,Life Opportunities,8520 - Frinton & Walton Swimming Pool,2100 - Building Repairs,28/05/2013,2109190-1,30,2111080 - Homecraft Contracts Electrical Ltd,Frinton & Walton Pool
Tendring DC,http://statistics.data.gov.uk/id/local-authority-district/22UN,Life Opportunities,8520 - Frinton & Walton Swimming Pool,2100 - Building Repairs,28/05/2013,2109191-1,30,2111080 - Homecraft Contracts Electrical Ltd,Frinton & Walton Pool
Tendring DC,http://statistics.data.gov.uk/id/local-authority-district/22UN,Life Opportunities,H920 - DFGs,C400 - Grant payments,14/05/2013,1051752-1,10245.25,REDACTED PERSONAL DATA,REDACTED PERSONAL DATA
Tendring DC,http://statistics.data.gov.uk/id/local-authority-district/22UN,Life Opportunities,8520 - Frinton & Walton Swimming Pool,2100 - Building Repairs,28/05/2013,2109189-1,226,2101848 - Homecraft Contracts Ltd,Frinton & Walton Pool
Tendring DC,http://statistics.data.gov.uk/id/local-authority-district/22UN,Life Opportunities,5240 - HRA - Managing Tenancies,4460 - Legal & Professional Expenses,21/05/2013,1052086-1,4799,REDACTED COMMERCIAL CONFIDENTIALITY,REDACTED COMMERCIAL CONFIDENTIALITY
Tendring DC,http://statistics.data.gov.uk/id/local-authority-district/22UN,Life Opportunities,5480 - HRA - Repair & Maintenance,2014 - Decoration Allowances,21/05/2013,1052088-1,141.16,REDACTED PERSONAL DATA,REDACTED PERSONAL DATA
Tendring DC,http://statistics.data.gov.uk/id/local-authority-district/22UN,Life Opportunities,5480 - HRA - Repair & Maintenance,2014 - Decoration Allowances,21/05/2013,7700237-1,270.36,REDACTED PERSONAL DATA,REDACTED PERSONAL DATA
Tendring DC,http://statistics.data.gov.uk/id/local-authority-district/22UN,Life Opportunities,1880 - Office Accommodation Expenses,4632 - Security,28/05/2013,2109152-1,367,2100750 - ID Management Systems,ID management
Tendring DC,http://statistics.data.gov.uk/id/local-authority-district/22UN,Life Opportunities,1880 - Office Accommodation Expenses,4632 - Security,28/05/2013,2109153-1,27,2100750 - ID Management Systems,ID Management
Tendring DC,http://statistics.data.gov.uk/id/local-authority-district/22UN,Life Opportunities,6355 - Community Activity Network,4597 - Hired Services - Payments to Contractors,21/05/2013,1052095-1,200,REDACTED COMMERCIAL CONFIDENTIALITY,REDACTED COMMERCIAL CONFIDENTIALITY
Tendring DC,http://statistics.data.gov.uk/id/local-authority-district/22UN,Life Opportunities,5880 - Management Of Sport & Leisure Facilities,4597 - Hired Services - Payments to Contractors,21/05/2013,1052032-1,4900,REDACTED COMMERCIAL CONFIDENTIALITY,REDACTED COMMERCIAL CONFIDENTIALITY
Tendring DC,http://statistics.data.gov.uk/id/local-authority-district/22UN,Life Opportunities,1880 - Office Accommodation Expenses,4666 - Hygiene Services,21/05/2013,1051999-1,15,2104976 - Initial Washroom Solutions,INITIAL
Tendring DC,http://statistics.data.gov.uk/id/local-authority-district/22UN,Life Opportunities,1860 - Depots General,4666 - Hygiene Services,21/05/2013,1051999-2,7.5,2104976 - Initial Washroom Solutions,INITIAL
Tendring DC,http://statistics.data.gov.uk/id/local-authority-district/22UN,Life Opportunities,1880 - Office Accommodation Expenses,4666 - Hygiene Services,21/05/2013,1051999-3,15,2104976 - Initial Washroom Solutions,INITIAL
Tendring DC,http://statistics.data.gov.uk/id/local-authority-district/22UN,Life Opportunities,1880 - Office Accommodation Expenses,4666 - Hygiene Services,21/05/2013,1051999-4,83.75,2104976 - Initial Washroom Solutions,INITIAL
Tendring DC,http://statistics.data.gov.uk/id/local-authority-district/22UN,Life Opportunities,1880 - Office Accommodation Expenses,4666 - Hygiene Services,21/05/2013,1051999-5,48.75,2104976 - Initial Washroom Solutions,INITIAL
Tendring DC,http://statistics.data.gov.uk/id/local-authority-district/22UN,Life Opportunities,1880 - Office Accommodation Expenses,4666 - Hygiene Services,21/05/2013,1051999-6,7.5,2104976 - Initial Washroom Solutions,INITIAL
Tendring DC,http://statistics.data.gov.uk/id/local-authority-district/22UN,Life Opportunities,1880 - Office Accommodation Expenses,4448 - Confidential Waste,21/05/2013,1051993-1,68.15,2110936 - IPPlus (UK) Ltd,ANCORA
Tendring DC,http://statistics.data.gov.uk/id/local-authority-district/22UN,Life Opportunities,"1580 - Benefits, Revenues and Customer Contact SU",4448 - Confidential Waste,21/05/2013,7700253-1,51.7,2110936 - IPPlus (UK) Ltd,
Tendring DC,http://statistics.data.gov.uk/id/local-authority-district/22UN,Life Opportunities,8520 - Frinton & Walton Swimming Pool,4300 - Printing & Stationery,14/05/2013,1051818-1,464.3,2100724 - IQL UK Ltd,FRINTON POOL
Tendring DC,http://statistics.data.gov.uk/id/local-authority-district/22UN,Life Opportunities,8520 - Frinton & Walton Swimming Pool,5300 - Resaleable Items,14/05/2013,1051816-1,277.16,2100755 - J P Lennard Ltd,FRINTON WALTON POOL
Tendring DC,http://statistics.data.gov.uk/id/local-authority-district/22UN,Life Opportunities,8520 - Frinton & Walton Swimming Pool,4000 - Furniture,14/05/2013,1051817-1,54.95,2100755 - J P Lennard Ltd,FRINTON WALTON POOL
Tendring DC,http://statistics.data.gov.uk/id/local-authority-district/22UN,Life Opportunities,8510 - Dovercourt Swimming Pool & All Weather Facilities,5300 - Resaleable Items,14/05/2013,1051854-1,76.2,2100755 - J P Lennard Ltd,DOVERCOURT POOL
Tendring DC,http://statistics.data.gov.uk/id/local-authority-district/22UN,Life Opportunities,8510 - Dovercourt Swimming Pool & All Weather Facilities,4000 - Furniture,28/05/2013,2109119-1,40.8,2100755 - J P Lennard Ltd,Dovercourt Pool
Tendring DC,http://statistics.data.gov.uk/id/local-authority-district/22UN,Life Opportunities,8510 - Dovercourt Swimming Pool & All Weather Facilities,4081 - Chemicals,28/05/2013,2109119-2,147.8,2100755 - J P Lennard Ltd,Dovercourt Pool
Tendring DC,http://statistics.data.gov.uk/id/local-authority-district/22UN,Life Opportunities,8540 - Leisure Centre Clacton,4597 - Hired Services - Payments to Contractors,14/05/2013,1051867-1,255,REDACTED PERSONAL DATA,REDACTED PERSONAL DATA
Tendring DC,http://statistics.data.gov.uk/id/local-authority-district/22UN,Life Opportunities,8540 - Leisure Centre Clacton,4597 - Hired Services - Payments to Contractors,07/05/2013,2108901-1,200,REDACTED PERSONAL DATA,REDACTED PERSONAL DATA
Tendring DC,http://statistics.data.gov.uk/id/local-authority-district/22UN,Life Opportunities,"1580 - Benefits, Revenues and Customer Contact SU",3311 - Travelling Career Track,21/05/2013,1052189-1,13.5,REDACTED PERSONAL DATA,REDACTED PERSONAL DATA
Tendring DC,http://statistics.data.gov.uk/id/local-authority-district/22UN,Life Opportunities,"1580 - Benefits, Revenues and Customer Contact SU",3311 - Travelling Career Track,07/05/2013,2108946-1,13.5,REDACTED PERSONAL DATA,REDACTED PERSONAL DATA
Tendring DC,http://statistics.data.gov.uk/id/local-authority-district/22UN,Life Opportunities,1240 - Housing Services Service Unit,3302 - Car Allowances - Officers,28/05/2013,1052234-1,48.4,REDACTED PERSONAL DATA,REDACTED PERSONAL DATA
Tendring DC,http://statistics.data.gov.uk/id/local-authority-district/22UN,Life Opportunities,1240 - Housing Services Service Unit,3302 - Car Allowances - Officers,07/05/2013,2108945-1,66,REDACTED PERSONAL DATA,REDACTED PERSONAL DATA
Tendring DC,http://statistics.data.gov.uk/id/local-authority-district/22UN,Life Opportunities,8510 - Dovercourt Swimming Pool & All Weather Facilities,5311 - General Provisions - Vending,14/05/2013,1051833-1,139.4,2109088 - JC Vending Services,DOVERCOURT POOL
Tendring DC,http://statistics.data.gov.uk/id/local-authority-district/22UN,Life Opportunities,5240 - HRA - Managing Tenancies,5242 - Tenant Relations,21/05/2013,1052160-1,10,REDACTED COMMERCIAL CONFIDENTIALITY,REDACTED COMMERCIAL CONFIDENTIALITY
Tendring DC,http://statistics.data.gov.uk/id/local-authority-district/22UN,Life Opportunities,8510 - Dovercourt Swimming Pool & All Weather Facilities,1700 - Training - Courses,14/05/2013,1051871-1,610.8,2113017 - Johnson Training,
Tendring DC,http://statistics.data.gov.uk/id/local-authority-district/22UN,Life Opportunities,8520 - Frinton & Walton Swimming Pool,1700 - Training - Courses,14/05/2013,1051871-2,785.6,2113017 - Johnson Training,
Tendring DC,http://statistics.data.gov.uk/id/local-authority-district/22UN,Life Opportunities,8530 - Brightlingsea Swimming Pool,1700 - Training - Courses,14/05/2013,1051871-3,786,2113017 - Johnson Training,
Tendring DC,http://statistics.data.gov.uk/id/local-authority-district/22UN,Life Opportunities,8540 - Leisure Centre Clacton,1700 - Training - Courses,14/05/2013,1051871-4,347.6,2113017 - Johnson Training,
Tendring DC,http://statistics.data.gov.uk/id/local-authority-district/22UN,Life Opportunities,6160 - Princes Theatre,2100 - Building Repairs,07/05/2013,1051689-1,150,2111266 - JW Plumbing and Heating,REPLACE WASH BASIN
Tendring DC,http://statistics.data.gov.uk/id/local-authority-district/22UN,Life Opportunities,6160 - Princes Theatre,2100 - Building Repairs,07/05/2013,1051689-2,165,2111266 - JW Plumbing and Heating,REPLACE WASH BASIN
Tendring DC,http://statistics.data.gov.uk/id/local-authority-district/22UN,Life Opportunities,H860 - Disabled Adaptations,C200 - Main Contractor,28/05/2013,1052243-1,1989,REDACTED PERSONAL DATA,REDACTED PERSONAL DATA
Tendring DC,http://statistics.data.gov.uk/id/local-authority-district/22UN,Life Opportunities,H860 - Disabled Adaptations,C200 - Main Contractor,28/05/2013,1052243-2,996,REDACTED PERSONAL DATA,REDACTED PERSONAL DATA
Tendring DC,http://statistics.data.gov.uk/id/local-authority-district/22UN,Life Opportunities,1880 - Office Accommodation Expenses,2100 - Building Repairs,21/05/2013,2109029-1,355,REDACTED PERSONAL DATA,REDACTED PERSONAL DATA
Tendring DC,http://statistics.data.gov.uk/id/local-authority-district/22UN,Life Opportunities,5140 - Homelessness,4683 - Other Homelessness Expenses,28/05/2013,1052219-1,474,REDACTED PERSONAL DATA,REDACTED PERSONAL DATA
Tendring DC,http://statistics.data.gov.uk/id/local-authority-district/22UN,Life Opportunities,5140 - Homelessness,4683 - Other Homelessness Expenses,07/05/2013,2108979-1,435,REDACTED PERSONAL DATA,REDACTED PERSONAL DATA
Tendring DC,http://statistics.data.gov.uk/id/local-authority-district/22UN,Life Opportunities,1565 - Careline / CCTV Service Unit,3302 - Car Allowances - Officers,21/05/2013,1052186-1,6,REDACTED PERSONAL DATA,REDACTED PERSONAL DATA
Tendring DC,http://statistics.data.gov.uk/id/local-authority-district/22UN,Life Opportunities,5240 - HRA - Managing Tenancies,4312 - Tenancy Stationery,21/05/2013,1052039-1,392.95,REDACTED COMMERCIAL CONFIDENTIALITY,REDACTED COMMERCIAL CONFIDENTIALITY
Tendring DC,http://statistics.data.gov.uk/id/local-authority-district/22UN,Life Opportunities,8530 - Brightlingsea Swimming Pool,2000 - Responsive Maintenance - Miscellaneous,21/05/2013,7700226-1,243.48,2100820 - Kent Blaxill & Co Ltd,KENT BLAXILL
Tendring DC,http://statistics.data.gov.uk/id/local-authority-district/22UN,Life Opportunities,5860 - Manningtree Sports Centre,4601 - Hired services - Cleaning,28/05/2013,1052236-1,-12.75,2100851 - KO-SHEEN Contract Cleaning Ltd,Credit for 11/2 hrs overcharge
Tendring DC,http://statistics.data.gov.uk/id/local-authority-district/22UN,Life Opportunities,5360 - HRA - Sheltered Units,4601 - Hired services - Cleaning,28/05/2013,2109073-1,357,REDACTED PERSONAL DATA,REDACTED PERSONAL DATA
Tendring DC,http://statistics.data.gov.uk/id/local-authority-district/22UN,Life Opportunities,5360 - HRA - Sheltered Units,4601 - Hired services - Cleaning,28/05/2013,2109074-1,450.5,REDACTED PERSONAL DATA,REDACTED PERSONAL DATA
Tendring DC,http://statistics.data.gov.uk/id/local-authority-district/22UN,Life Opportunities,4360 - Development Control - Chargeable Account,4601 - Hired services - Cleaning,28/05/2013,2109075-1,588.88,REDACTED PERSONAL DATA,REDACTED PERSONAL DATA
Tendring DC,http://statistics.data.gov.uk/id/local-authority-district/22UN,Life Opportunities,5860 - Manningtree Sports Centre,4601 - Hired services - Cleaning,28/05/2013,2109110-1,199.75,2100851 - KO-SHEEN Contract Cleaning Ltd,Contract Cleaning Apr 13
Tendring DC,http://statistics.data.gov.uk/id/local-authority-district/22UN,Life Opportunities,5860 - Manningtree Sports Centre,4601 - Hired services - Cleaning,28/05/2013,2109111-1,242.25,2100851 - KO-SHEEN Contract Cleaning Ltd,Contract Cleaning March 13
Tendring DC,http://statistics.data.gov.uk/id/local-authority-district/22UN,Life Opportunities,8540 - Leisure Centre Clacton,4597 - Hired Services - Payments to Contractors,28/05/2013,2109197-1,475,2100851 - KO-SHEEN Contract Cleaning Ltd,
Tendring DC,http://statistics.data.gov.uk/id/local-authority-district/22UN,Life Opportunities,5800 - Brightlingsea Sports Centre,4000 - Furniture,28/05/2013,1052225-1,75.82,REDACTED PERSONAL DATA,REDACTED PERSONAL DATA
Tendring DC,http://statistics.data.gov.uk/id/local-authority-district/22UN,Life Opportunities,5800 - Brightlingsea Sports Centre,4000 - Furniture,28/05/2013,1052226-1,7.48,REDACTED PERSONAL DATA,REDACTED PERSONAL DATA
Tendring DC,http://statistics.data.gov.uk/id/local-authority-district/22UN,Life Opportunities,8530 - Brightlingsea Swimming Pool,2100 - Building Repairs,28/05/2013,1052226-2,33.3,REDACTED PERSONAL DATA,REDACTED PERSONAL DATA
Tendring DC,http://statistics.data.gov.uk/id/local-authority-district/22UN,Life Opportunities,5800 - Brightlingsea Sports Centre,4000 - Furniture,28/05/2013,1052227-1,79.98,REDACTED PERSONAL DATA,REDACTED PERSONAL DATA
Tendring DC,http://statistics.data.gov.uk/id/local-authority-district/22UN,Life Opportunities,8530 - Brightlingsea Swimming Pool,2100 - Building Repairs,07/05/2013,2108944-1,220.79,2110135 - L Anderson,Kent Blaxhill
Tendring DC,http://statistics.data.gov.uk/id/local-authority-district/22UN,Life Opportunities,"1580 - Benefits, Revenues and Customer Contact SU",4466 - Legal & Professional Expenses - Land Registry,28/05/2013,1052303-1,234,2113091 - Land Registry Commercial Services,OWNSHIP CHANGE IND
Tendring DC,http://statistics.data.gov.uk/id/local-authority-district/22UN,Life Opportunities,7680 - Tour De Tendring,5500 - Miscellaneous Expenses,28/05/2013,2109101-1,1350,REDACTED COMMERCIAL CONFIDENTIALITY,REDACTED COMMERCIAL CONFIDENTIALITY
Tendring DC,http://statistics.data.gov.uk/id/local-authority-district/22UN,Life Opportunities,"1580 - Benefits, Revenues and Customer Contact SU",4462 - Legal Fees incl. Bailiffs re debt recovery,21/05/2013,7009266-1,314,2111904 - Lester Aldridge LLP,CHARGES DISBURSEMENTS
Tendring DC,http://statistics.data.gov.uk/id/local-authority-district/22UN,Life Opportunities,"1580 - Benefits, Revenues and Customer Contact SU",4462 - Legal Fees incl. Bailiffs re debt recovery,21/05/2013,7009266-2,140,2111904 - Lester Aldridge LLP,CHARGES DISBURSEMENTS
Tendring DC,http://statistics.data.gov.uk/id/local-authority-district/22UN,Life Opportunities,"1580 - Benefits, Revenues and Customer Contact SU",4462 - Legal Fees incl. Bailiffs re debt recovery,21/05/2013,7009266-3,90,2111904 - Lester Aldridge LLP,CHARGES DISBURSEMENTS
Tendring DC,http://statistics.data.gov.uk/id/local-authority-district/22UN,Life Opportunities,5800 - Brightlingsea Sports Centre,4000 - Furniture,14/05/2013,1051821-1,151.48,2100805 - Life Fitness (UK) Ltd,LIFE FITNESS
Tendring DC,http://statistics.data.gov.uk/id/local-authority-district/22UN,Life Opportunities,5240 - HRA - Managing Tenancies,5242 - Tenant Relations,21/05/2013,1052005-1,10,REDACTED COMMERCIAL CONFIDENTIALITY,REDACTED COMMERCIAL CONFIDENTIALITY
Tendring DC,http://statistics.data.gov.uk/id/local-authority-district/22UN,Life Opportunities,6355 - Community Activity Network,4597 - Hired Services - Payments to Contractors,07/05/2013,2108991-1,100,REDACTED COMMERCIAL CONFIDENTIALITY,REDACTED COMMERCIAL CONFIDENTIALITY
Tendring DC,http://statistics.data.gov.uk/id/local-authority-district/22UN,Life Opportunities,5480 - HRA - Repair & Maintenance,4044 - Building & Safety Equipment,21/05/2013,1052029-1,400,2100658 - M3 Housing Limited,SOR LICENCE 13/14
Tendring DC,http://statistics.data.gov.uk/id/local-authority-district/22UN,Life Opportunities,5860 - Manningtree Sports Centre,2308 - Energy Costs - Gas (Including LPG),28/05/2013,2109071-1,2675.4,2105903 - Manningtree High School,MHS Re-charge 01/9/12 - 28/2/13
Tendring DC,http://statistics.data.gov.uk/id/local-authority-district/22UN,Life Opportunities,5860 - Manningtree Sports Centre,2510 - Water Services - Unmetered,28/05/2013,2109071-2,593.51,2105903 - Manningtree High School,MHS Re-charge 01/9/12 - 28/2/13
Tendring DC,http://statistics.data.gov.uk/id/local-authority-district/22UN,Life Opportunities,5860 - Manningtree Sports Centre,2804 - Premises Insurance - General,28/05/2013,2109071-3,1154.1,2105903 - Manningtree High School,MHS Re-charge 01/9/12 - 28/2/13
Tendring DC,http://statistics.data.gov.uk/id/local-authority-district/22UN,Life Opportunities,5860 - Manningtree Sports Centre,2410 - National Non Domestic Rates,28/05/2013,2109071-4,1972,2105903 - Manningtree High School,MHS Re-charge 01/9/12 - 28/2/13
Tendring DC,http://statistics.data.gov.uk/id/local-authority-district/22UN,Life Opportunities,5860 - Manningtree Sports Centre,4400 - Maintenance Under Service Agreements,28/05/2013,2109071-5,254.54,2105903 - Manningtree High School,MHS Re-charge 01/9/12 - 28/2/13
Tendring DC,http://statistics.data.gov.uk/id/local-authority-district/22UN,Life Opportunities,H815 - Re-roofing,C200 - Main Contractor,14/05/2013,1051919-1,1036,REDACTED PERSONAL DATA,REDACTED PERSONAL DATA
Tendring DC,http://statistics.data.gov.uk/id/local-authority-district/22UN,Life Opportunities,H815 - Re-roofing,C200 - Main Contractor,14/05/2013,1051920-1,82,REDACTED PERSONAL DATA,REDACTED PERSONAL DATA
Tendring DC,http://statistics.data.gov.uk/id/local-authority-district/22UN,Life Opportunities,H815 - Re-roofing,C200 - Main Contractor,14/05/2013,1051921-1,556,REDACTED PERSONAL DATA,REDACTED PERSONAL DATA
Tendring DC,http://statistics.data.gov.uk/id/local-authority-district/22UN,Life Opportunities,H815 - Re-roofing,C200 - Main Contractor,14/05/2013,1051922-1,1416,REDACTED PERSONAL DATA,REDACTED PERSONAL DATA
Tendring DC,http://statistics.data.gov.uk/id/local-authority-district/22UN,Life Opportunities,H815 - Re-roofing,C200 - Main Contractor,14/05/2013,1051923-1,1416,REDACTED PERSONAL DATA,REDACTED PERSONAL DATA
Tendring DC,http://statistics.data.gov.uk/id/local-authority-district/22UN,Life Opportunities,5140 - Homelessness,4680 - Bed & Breakfast Accommodation,14/05/2013,1051763-1,300,REDACTED PERSONAL DATA,REDACTED PERSONAL DATA
Tendring DC,http://statistics.data.gov.uk/id/local-authority-district/22UN,Life Opportunities,5140 - Homelessness,9032 - Homelessness Accommodation Charges,14/05/2013,1051763-2,-11.75,REDACTED PERSONAL DATA,REDACTED PERSONAL DATA
Tendring DC,http://statistics.data.gov.uk/id/local-authority-district/22UN,Life Opportunities,5140 - Homelessness,4680 - Bed & Breakfast Accommodation,07/05/2013,2108956-1,60,REDACTED PERSONAL DATA,REDACTED PERSONAL DATA
Tendring DC,http://statistics.data.gov.uk/id/local-authority-district/22UN,Life Opportunities,5140 - Homelessness,9032 - Homelessness Accommodation Charges,07/05/2013,2108956-2,-7.05,REDACTED PERSONAL DATA,REDACTED PERSONAL DATA
Tendring DC,http://statistics.data.gov.uk/id/local-authority-district/22UN,Life Opportunities,5140 - Homelessness,4680 - Bed & Breakfast Accommodation,07/05/2013,2108957-1,140,REDACTED PERSONAL DATA,REDACTED PERSONAL DATA
Tendring DC,http://statistics.data.gov.uk/id/local-authority-district/22UN,Life Opportunities,5140 - Homelessness,9032 - Homelessness Accommodation Charges,07/05/2013,2108957-2,-16.45,REDACTED PERSONAL DATA,REDACTED PERSONAL DATA
Tendring DC,http://statistics.data.gov.uk/id/local-authority-district/22UN,Life Opportunities,6160 - Princes Theatre,4622 - Hired Services - Artistes and Production Companies,07/05/2013,2108872-1,1125,REDACTED PERSONAL DATA,REDACTED PERSONAL DATA
Tendring DC,http://statistics.data.gov.uk/id/local-authority-district/22UN,Life Opportunities,5140 - Homelessness,4683 - Other Homelessness Expenses,07/05/2013,2108971-1,430,2105499 - Mark Turney,Deposit Guarantee
Tendring DC,http://statistics.data.gov.uk/id/local-authority-district/22UN,Life Opportunities,5240 - HRA - Managing Tenancies,5242 - Tenant Relations,21/05/2013,1052157-1,10,REDACTED COMMERCIAL CONFIDENTIALITY,REDACTED COMMERCIAL CONFIDENTIALITY
Tendring DC,http://statistics.data.gov.uk/id/local-authority-district/22UN,Life Opportunities,1090 - Chief Executive and Support Service Unit,4300 - Printing & Stationery,14/05/2013,1051765-1,68.75,2112734 - Matt's Carousel,NEWSPAPERS-APRIL 2013
Tendring DC,http://statistics.data.gov.uk/id/local-authority-district/22UN,Life Opportunities,1100 - Head of Corporate Services and Admin Service Unit,4355 - Books & Periodicals,14/05/2013,1051765-2,45.15,2112734 - Matt's Carousel,NEWSPAPERS-APRIL 2013
Tendring DC,http://statistics.data.gov.uk/id/local-authority-district/22UN,Life Opportunities,1040 - Regeneration Service Unit,4355 - Books & Periodicals,14/05/2013,1051765-3,19.1,2112734 - Matt's Carousel,NEWSPAPERS-APRIL 2013
Tendring DC,http://statistics.data.gov.uk/id/local-authority-district/22UN,Life Opportunities,"1580 - Benefits, Revenues and Customer Contact SU",4355 - Books & Periodicals,14/05/2013,1051765-4,19.1,2112734 - Matt's Carousel,NEWSPAPERS-APRIL 2013
Tendring DC,http://statistics.data.gov.uk/id/local-authority-district/22UN,Life Opportunities,1880 - Office Accommodation Expenses,2100 - Building Repairs,14/05/2013,1051877-1,103.45,2101791 - Medlock Electrical,MEDLOCK
Tendring DC,http://statistics.data.gov.uk/id/local-authority-district/22UN,Life Opportunities,6740 - Careline,4040 - Equipment & Tools,07/05/2013,2108895-1,178.5,2101791 - Medlock Electrical,Ext Leads for group schemes
Tendring DC,http://statistics.data.gov.uk/id/local-authority-district/22UN,Life Opportunities,8540 - Leisure Centre Clacton,5160 - Advertising,28/05/2013,2109194-1,350,2102946 - Mellow 1557 Ltd,
Tendring DC,http://statistics.data.gov.uk/id/local-authority-district/22UN,Life Opportunities,7520 - Tourism Publicity Marketing Promotion,5160 - Advertising,21/05/2013,1051961-1,250,REDACTED PERSONAL DATA,REDACTED PERSONAL DATA
Tendring DC,http://statistics.data.gov.uk/id/local-authority-district/22UN,Life Opportunities,5140 - Homelessness,4683 - Other Homelessness Expenses,07/05/2013,1051736-1,469.35,REDACTED PERSONAL DATA,REDACTED PERSONAL DATA
Tendring DC,http://statistics.data.gov.uk/id/local-authority-district/22UN,Life Opportunities,8520 - Frinton & Walton Swimming Pool,9228 - Swimming Lessons,28/05/2013,1052341-1,40,REDACTED PERSONAL DATA,REDACTED PERSONAL DATA
Tendring DC,http://statistics.data.gov.uk/id/local-authority-district/22UN,Life Opportunities,9920 - HRA Balance Sheet,B860 - Housing Rents - Cash,28/05/2013,1052351-1,56.8,REDACTED PERSONAL DATA,REDACTED PERSONAL DATA
Tendring DC,http://statistics.data.gov.uk/id/local-authority-district/22UN,Life Opportunities,9920 - HRA Balance Sheet,B860 - Housing Rents - Cash,28/05/2013,1052353-1,56.8,REDACTED PERSONAL DATA,REDACTED PERSONAL DATA
Tendring DC,http://statistics.data.gov.uk/id/local-authority-district/22UN,Life Opportunities,9920 - HRA Balance Sheet,B860 - Housing Rents - Cash,28/05/2013,1052343-1,225.97,REDACTED PERSONAL DATA,REDACTED PERSONAL DATA
Tendring DC,http://statistics.data.gov.uk/id/local-authority-district/22UN,Life Opportunities,9920 - HRA Balance Sheet,B860 - Housing Rents - Cash,28/05/2013,1052346-1,13.97,REDACTED PERSONAL DATA,REDACTED PERSONAL DATA
Tendring DC,http://statistics.data.gov.uk/id/local-authority-district/22UN,Life Opportunities,9920 - HRA Balance Sheet,B860 - Housing Rents - Cash,07/05/2013,2108985-1,40.72,REDACTED PERSONAL DATA,REDACTED PERSONAL DATA
Tendring DC,http://statistics.data.gov.uk/id/local-authority-district/22UN,Life Opportunities,9920 - HRA Balance Sheet,B860 - Housing Rents - Cash,07/05/2013,2108943-1,137.32,REDACTED PERSONAL DATA,REDACTED PERSONAL DATA
Tendring DC,http://statistics.data.gov.uk/id/local-authority-district/22UN,Life Opportunities,9920 - HRA Balance Sheet,B860 - Housing Rents - Cash,28/05/2013,1052349-1,74.74,REDACTED PERSONAL DATA,REDACTED PERSONAL DATA
Tendring DC,http://statistics.data.gov.uk/id/local-authority-district/22UN,Life Opportunities,5140 - Homelessness,4683 - Other Homelessness Expenses,07/05/2013,2108975-1,950,REDACTED PERSONAL DATA,REDACTED PERSONAL DATA
Tendring DC,http://statistics.data.gov.uk/id/local-authority-district/22UN,Life Opportunities,9920 - HRA Balance Sheet,B860 - Housing Rents - Cash,07/05/2013,2108987-1,156.3,REDACTED PERSONAL DATA,REDACTED PERSONAL DATA
Tendring DC,http://statistics.data.gov.uk/id/local-authority-district/22UN,Life Opportunities,5480 - HRA - Repair & Maintenance,2014 - Decoration Allowances,14/05/2013,1051824-1,465.3,REDACTED COMMERCIAL CONFIDENTIALITY,REDACTED COMMERCIAL CONFIDENTIALITY
Tendring DC,http://statistics.data.gov.uk/id/local-authority-district/22UN,Life Opportunities,5480 - HRA - Repair & Maintenance,2014 - Decoration Allowances,21/05/2013,1052091-1,550.05,REDACTED PERSONAL DATA,REDACTED PERSONAL DATA
Tendring DC,http://statistics.data.gov.uk/id/local-authority-district/22UN,Life Opportunities,5140 - Homelessness,4683 - Other Homelessness Expenses,28/05/2013,1052221-1,500,REDACTED PERSONAL DATA,REDACTED PERSONAL DATA
Tendring DC,http://statistics.data.gov.uk/id/local-authority-district/22UN,Life Opportunities,5240 - HRA - Managing Tenancies,5242 - Tenant Relations,21/05/2013,1052003-1,10,REDACTED COMMERCIAL CONFIDENTIALITY,REDACTED COMMERCIAL CONFIDENTIALITY
Tendring DC,http://statistics.data.gov.uk/id/local-authority-district/22UN,Life Opportunities,5240 - HRA - Managing Tenancies,5242 - Tenant Relations,21/05/2013,1052004-1,10,REDACTED COMMERCIAL CONFIDENTIALITY,REDACTED COMMERCIAL CONFIDENTIALITY
Tendring DC,http://statistics.data.gov.uk/id/local-authority-district/22UN,Life Opportunities,9920 - HRA Balance Sheet,B860 - Housing Rents - Cash,28/05/2013,1052347-1,132.96,REDACTED PERSONAL DATA,REDACTED PERSONAL DATA
Tendring DC,http://statistics.data.gov.uk/id/local-authority-district/22UN,Life Opportunities,9920 - HRA Balance Sheet,B860 - Housing Rents - Cash,07/05/2013,2108988-1,263.13,REDACTED PERSONAL DATA,REDACTED PERSONAL DATA
Tendring DC,http://statistics.data.gov.uk/id/local-authority-district/22UN,Life Opportunities,9920 - HRA Balance Sheet,B860 - Housing Rents - Cash,28/05/2013,1052345-1,13.36,REDACTED PERSONAL DATA,REDACTED PERSONAL DATA
Tendring DC,http://statistics.data.gov.uk/id/local-authority-district/22UN,Life Opportunities,5240 - HRA - Managing Tenancies,5242 - Tenant Relations,21/05/2013,1052149-1,10,REDACTED COMMERCIAL CONFIDENTIALITY,REDACTED COMMERCIAL CONFIDENTIALITY
Tendring DC,http://statistics.data.gov.uk/id/local-authority-district/22UN,Life Opportunities,9920 - HRA Balance Sheet,B860 - Housing Rents - Cash,07/05/2013,2108986-1,108.3,REDACTED PERSONAL DATA,REDACTED PERSONAL DATA
Tendring DC,http://statistics.data.gov.uk/id/local-authority-district/22UN,Life Opportunities,5240 - HRA - Managing Tenancies,5242 - Tenant Relations,21/05/2013,1052147-1,10,REDACTED COMMERCIAL CONFIDENTIALITY,REDACTED COMMERCIAL CONFIDENTIALITY
Tendring DC,http://statistics.data.gov.uk/id/local-authority-district/22UN,Life Opportunities,5240 - HRA - Managing Tenancies,5242 - Tenant Relations,21/05/2013,1052151-1,10,REDACTED COMMERCIAL CONFIDENTIALITY,REDACTED COMMERCIAL CONFIDENTIALITY
Tendring DC,http://statistics.data.gov.uk/id/local-authority-district/22UN,Life Opportunities,9920 - HRA Balance Sheet,B860 - Housing Rents - Cash,21/05/2013,1052015-1,74.68,REDACTED PERSONAL DATA,REDACTED PERSONAL DATA
Tendring DC,http://statistics.data.gov.uk/id/local-authority-district/22UN,Life Opportunities,9920 - HRA Balance Sheet,B860 - Housing Rents - Cash,21/05/2013,1052020-1,84.4,REDACTED PERSONAL DATA,REDACTED PERSONAL DATA
Tendring DC,http://statistics.data.gov.uk/id/local-authority-district/22UN,Life Opportunities,9920 - HRA Balance Sheet,B860 - Housing Rents - Cash,21/05/2013,1052017-1,18.62,REDACTED PERSONAL DATA,REDACTED PERSONAL DATA
Tendring DC,http://statistics.data.gov.uk/id/local-authority-district/22UN,Life Opportunities,5140 - Homelessness,4689 - Special Homelessness Projects Expenses,28/05/2013,1052339-1,318.64,REDACTED PERSONAL DATA,REDACTED PERSONAL DATA
Tendring DC,http://statistics.data.gov.uk/id/local-authority-district/22UN,Life Opportunities,9920 - HRA Balance Sheet,B860 - Housing Rents - Cash,21/05/2013,1052011-1,340.89,REDACTED PERSONAL DATA,REDACTED PERSONAL DATA
Tendring DC,http://statistics.data.gov.uk/id/local-authority-district/22UN,Life Opportunities,9920 - HRA Balance Sheet,B860 - Housing Rents - Cash,28/05/2013,1052355-1,313.32,REDACTED PERSONAL DATA,REDACTED PERSONAL DATA
Tendring DC,http://statistics.data.gov.uk/id/local-authority-district/22UN,Life Opportunities,9920 - HRA Balance Sheet,B860 - Housing Rents - Cash,28/05/2013,1052344-1,128.88,REDACTED PERSONAL DATA,REDACTED PERSONAL DATA
Tendring DC,http://statistics.data.gov.uk/id/local-authority-district/22UN,Life Opportunities,9920 - HRA Balance Sheet,B860 - Housing Rents - Cash,21/05/2013,1052021-1,29.98,REDACTED PERSONAL DATA,REDACTED PERSONAL DATA
Tendring DC,http://statistics.data.gov.uk/id/local-authority-district/22UN,Life Opportunities,9920 - HRA Balance Sheet,B860 - Housing Rents - Cash,21/05/2013,1052019-1,97.21,REDACTED PERSONAL DATA,REDACTED PERSONAL DATA
Tendring DC,http://statistics.data.gov.uk/id/local-authority-district/22UN,Life Opportunities,5140 - Homelessness,4683 - Other Homelessness Expenses,28/05/2013,1052223-1,425,REDACTED PERSONAL DATA,REDACTED PERSONAL DATA
Tendring DC,http://statistics.data.gov.uk/id/local-authority-district/22UN,Life Opportunities,5240 - HRA - Managing Tenancies,5242 - Tenant Relations,21/05/2013,1052007-1,10,REDACTED COMMERCIAL CONFIDENTIALITY,REDACTED COMMERCIAL CONFIDENTIALITY
Tendring DC,http://statistics.data.gov.uk/id/local-authority-district/22UN,Life Opportunities,9920 - HRA Balance Sheet,B860 - Housing Rents - Cash,07/05/2013,2108989-1,360.46,REDACTED PERSONAL DATA,REDACTED PERSONAL DATA
Tendring DC,http://statistics.data.gov.uk/id/local-authority-district/22UN,Life Opportunities,9920 - HRA Balance Sheet,B860 - Housing Rents - Cash,21/05/2013,1052013-1,194.84,REDACTED PERSONAL DATA,REDACTED PERSONAL DATA
Tendring DC,http://statistics.data.gov.uk/id/local-authority-district/22UN,Life Opportunities,5480 - HRA - Repair & Maintenance,2071 - Electric Installation Testing,21/05/2013,1052033-1,325.38,REDACTED PERSONAL DATA,REDACTED PERSONAL DATA
Tendring DC,http://statistics.data.gov.uk/id/local-authority-district/22UN,Life Opportunities,5480 - HRA - Repair & Maintenance,2071 - Electric Installation Testing,21/05/2013,1052034-1,901.49,REDACTED PERSONAL DATA,REDACTED PERSONAL DATA
Tendring DC,http://statistics.data.gov.uk/id/local-authority-district/22UN,Life Opportunities,5140 - Homelessness,4683 - Other Homelessness Expenses,07/05/2013,2108977-1,550,REDACTED PERSONAL DATA,REDACTED PERSONAL DATA
Tendring DC,http://statistics.data.gov.uk/id/local-authority-district/22UN,Life Opportunities,5240 - HRA - Managing Tenancies,5242 - Tenant Relations,21/05/2013,1052152-1,10,REDACTED COMMERCIAL CONFIDENTIALITY,REDACTED COMMERCIAL CONFIDENTIALITY
Tendring DC,http://statistics.data.gov.uk/id/local-authority-district/22UN,Life Opportunities,9920 - HRA Balance Sheet,B860 - Housing Rents - Cash,07/05/2013,2108990-1,273.85,REDACTED PERSONAL DATA,REDACTED PERSONAL DATA
Tendring DC,http://statistics.data.gov.uk/id/local-authority-district/22UN,Life Opportunities,9920 - HRA Balance Sheet,B860 - Housing Rents - Cash,28/05/2013,1052380-1,570.88,REDACTED PERSONAL DATA,REDACTED PERSONAL DATA
Tendring DC,http://statistics.data.gov.uk/id/local-authority-district/22UN,Life Opportunities,9920 - HRA Balance Sheet,B860 - Housing Rents - Cash,28/05/2013,1052350-1,158.64,REDACTED PERSONAL DATA,REDACTED PERSONAL DATA
Tendring DC,http://statistics.data.gov.uk/id/local-authority-district/22UN,Life Opportunities,H920 - DFGs,C400 - Grant payments,14/05/2013,1051753-1,42,REDACTED PERSONAL DATA,REDACTED PERSONAL DATA
Tendring DC,http://statistics.data.gov.uk/id/local-authority-district/22UN,Life Opportunities,9920 - HRA Balance Sheet,B860 - Housing Rents - Cash,28/05/2013,1052352-1,56.8,REDACTED PERSONAL DATA,REDACTED PERSONAL DATA
Tendring DC,http://statistics.data.gov.uk/id/local-authority-district/22UN,Life Opportunities,5240 - HRA - Managing Tenancies,5242 - Tenant Relations,21/05/2013,1052145-1,10,REDACTED COMMERCIAL CONFIDENTIALITY,REDACTED COMMERCIAL CONFIDENTIALITY
Tendring DC,http://statistics.data.gov.uk/id/local-authority-district/22UN,Life Opportunities,5240 - HRA - Managing Tenancies,5242 - Tenant Relations,21/05/2013,1052146-1,10,REDACTED COMMERCIAL CONFIDENTIALITY,REDACTED COMMERCIAL CONFIDENTIALITY
Tendring DC,http://statistics.data.gov.uk/id/local-authority-district/22UN,Life Opportunities,9920 - HRA Balance Sheet,B860 - Housing Rents - Cash,28/05/2013,1052348-1,162.11,REDACTED PERSONAL DATA,REDACTED PERSONAL DATA
Tendring DC,http://statistics.data.gov.uk/id/local-authority-district/22UN,Life Opportunities,5240 - HRA - Managing Tenancies,5242 - Tenant Relations,21/05/2013,1052150-1,10,REDACTED COMMERCIAL CONFIDENTIALITY,REDACTED COMMERCIAL CONFIDENTIALITY
Tendring DC,http://statistics.data.gov.uk/id/local-authority-district/22UN,Life Opportunities,9920 - HRA Balance Sheet,B860 - Housing Rents - Cash,21/05/2013,1052012-1,521.37,REDACTED PERSONAL DATA,REDACTED PERSONAL DATA
Tendring DC,http://statistics.data.gov.uk/id/local-authority-district/22UN,Life Opportunities,9920 - HRA Balance Sheet,B860 - Housing Rents - Cash,21/05/2013,1052010-1,51.44,REDACTED PERSONAL DATA,REDACTED PERSONAL DATA
Tendring DC,http://statistics.data.gov.uk/id/local-authority-district/22UN,Life Opportunities,9920 - HRA Balance Sheet,B860 - Housing Rents - Cash,21/05/2013,1052016-1,30.56,REDACTED PERSONAL DATA,REDACTED PERSONAL DATA
Tendring DC,http://statistics.data.gov.uk/id/local-authority-district/22UN,Life Opportunities,9920 - HRA Balance Sheet,B860 - Housing Rents - Cash,21/05/2013,1052014-1,29.56,REDACTED PERSONAL DATA,REDACTED PERSONAL DATA
Tendring DC,http://statistics.data.gov.uk/id/local-authority-district/22UN,Life Opportunities,9920 - HRA Balance Sheet,B860 - Housing Rents - Cash,28/05/2013,1052354-1,51.58,REDACTED PERSONAL DATA,REDACTED PERSONAL DATA
Tendring DC,http://statistics.data.gov.uk/id/local-authority-district/22UN,Life Opportunities,9920 - HRA Balance Sheet,B860 - Housing Rents - Cash,21/05/2013,1052018-1,340.24,REDACTED PERSONAL DATA,REDACTED PERSONAL DATA
Tendring DC,http://statistics.data.gov.uk/id/local-authority-district/22UN,Life Opportunities,5820 - Harwich Sports Centre,4597 - Hired Services - Payments to Contractors,14/05/2013,1051829-1,60,2112299 - My Time Fitness Ltd,FITNESS CLASSES
Tendring DC,http://statistics.data.gov.uk/id/local-authority-district/22UN,Life Opportunities,1880 - Office Accommodation Expenses,2100 - Building Repairs,07/05/2013,2108893-1,592,2100967 - N Rudelhoff,N R Electrical
Tendring DC,http://statistics.data.gov.uk/id/local-authority-district/22UN,Life Opportunities,1880 - Office Accommodation Expenses,2100 - Building Repairs,07/05/2013,2108893-2,28,2100967 - N Rudelhoff,N R Electrical
Tendring DC,http://statistics.data.gov.uk/id/local-authority-district/22UN,Life Opportunities,1880 - Office Accommodation Expenses,2100 - Building Repairs,07/05/2013,2108893-3,120,2100967 - N Rudelhoff,N R Electrical
Tendring DC,http://statistics.data.gov.uk/id/local-authority-district/22UN,Life Opportunities,7600 - Tourist Information Centres,9356 - Commission Sales,14/05/2013,1051764-1,1034.39,REDACTED COMMERCIAL CONFIDENTIALITY,REDACTED COMMERCIAL CONFIDENTIALITY
Tendring DC,http://statistics.data.gov.uk/id/local-authority-district/22UN,Life Opportunities,6160 - Princes Theatre,4105 - Bar/Catering Expenses,28/05/2013,2109090-1,455,REDACTED COMMERCIAL CONFIDENTIALITY,REDACTED COMMERCIAL CONFIDENTIALITY
Tendring DC,http://statistics.data.gov.uk/id/local-authority-district/22UN,Life Opportunities,6160 - Princes Theatre,5160 - Advertising,21/05/2013,1051962-1,53.4,REDACTED COMMERCIAL CONFIDENTIALITY,REDACTED COMMERCIAL CONFIDENTIALITY
Tendring DC,http://statistics.data.gov.uk/id/local-authority-district/22UN,Life Opportunities,6160 - Princes Theatre,5160 - Advertising,21/05/2013,1051966-1,53.4,REDACTED COMMERCIAL CONFIDENTIALITY,REDACTED COMMERCIAL CONFIDENTIALITY
Tendring DC,http://statistics.data.gov.uk/id/local-authority-district/22UN,Life Opportunities,6160 - Princes Theatre,5160 - Advertising,07/05/2013,2108876-1,164.5,REDACTED PERSONAL DATA,REDACTED PERSONAL DATA
Tendring DC,http://statistics.data.gov.uk/id/local-authority-district/22UN,Life Opportunities,6160 - Princes Theatre,5160 - Advertising,07/05/2013,2108877-1,112.6,REDACTED PERSONAL DATA,REDACTED PERSONAL DATA
Tendring DC,http://statistics.data.gov.uk/id/local-authority-district/22UN,Life Opportunities,8540 - Leisure Centre Clacton,5160 - Advertising,07/05/2013,2108928-1,460.9,2100989 - Newsquest (London) Ltd,
Tendring DC,http://statistics.data.gov.uk/id/local-authority-district/22UN,Life Opportunities,H875 - Compulsary Purchase and Refurbishment,C200 - Main Contractor,07/05/2013,2108929-1,3177.79,2100989 - Newsquest (London) Ltd,Public Notice 18/4/13
Tendring DC,http://statistics.data.gov.uk/id/local-authority-district/22UN,Life Opportunities,6160 - Princes Theatre,5160 - Advertising,28/05/2013,2109087-1,112.6,REDACTED COMMERCIAL CONFIDENTIALITY,REDACTED COMMERCIAL CONFIDENTIALITY
Tendring DC,http://statistics.data.gov.uk/id/local-authority-district/22UN,Life Opportunities,5860 - Manningtree Sports Centre,4597 - Hired Services - Payments to Contractors,14/05/2013,1051830-1,125,2112824 - Nick Boucher,PILATES COACHING APRIL
Tendring DC,http://statistics.data.gov.uk/id/local-authority-district/22UN,Life Opportunities,5820 - Harwich Sports Centre,4597 - Hired Services - Payments to Contractors,07/05/2013,2108881-1,100,REDACTED PERSONAL DATA,REDACTED PERSONAL DATA
Tendring DC,http://statistics.data.gov.uk/id/local-authority-district/22UN,Life Opportunities,5820 - Harwich Sports Centre,4597 - Hired Services - Payments to Contractors,14/05/2013,1051832-1,836.3,2112920 - Nigel Bruce Electrical Services,EMERGENCY LIGHTING WORK
Tendring DC,http://statistics.data.gov.uk/id/local-authority-district/22UN,Life Opportunities,8540 - Leisure Centre Clacton,9252 - Active Option Card,28/05/2013,1052232-1,45.83,REDACTED PERSONAL DATA,REDACTED PERSONAL DATA
Tendring DC,http://statistics.data.gov.uk/id/local-authority-district/22UN,Life Opportunities,5140 - Homelessness,4683 - Other Homelessness Expenses,07/05/2013,2108978-1,760,REDACTED PERSONAL DATA,REDACTED PERSONAL DATA
Tendring DC,http://statistics.data.gov.uk/id/local-authority-district/22UN,Life Opportunities,5240 - HRA - Managing Tenancies,5242 - Tenant Relations,21/05/2013,1052153-1,10,REDACTED COMMERCIAL CONFIDENTIALITY,REDACTED COMMERCIAL CONFIDENTIALITY
Tendring DC,http://statistics.data.gov.uk/id/local-authority-district/22UN,Life Opportunities,5260 - HRA - Rent Collection And Accounting,4757 - IT External Charges,14/05/2013,1051843-1,15000,2101204 - Northgate Information Solutions UK Ltd,GOLD RDBA SERVICE
Tendring DC,http://statistics.data.gov.uk/id/local-authority-district/22UN,Life Opportunities,"1580 - Benefits, Revenues and Customer Contact SU",4753 - Computer - Application Software,14/05/2013,1051843-2,24000,2101204 - Northgate Information Solutions UK Ltd,GOLD RDBA SERVICE
Tendring DC,http://statistics.data.gov.uk/id/local-authority-district/22UN,Life Opportunities,5140 - Homelessness,4683 - Other Homelessness Expenses,21/05/2013,1052087-1,135,REDACTED COMMERCIAL CONFIDENTIALITY,REDACTED COMMERCIAL CONFIDENTIALITY
Tendring DC,http://statistics.data.gov.uk/id/local-authority-district/22UN,Life Opportunities,5140 - Homelessness,4683 - Other Homelessness Expenses,07/05/2013,2108973-1,425,REDACTED PERSONAL DATA,REDACTED PERSONAL DATA
Tendring DC,http://statistics.data.gov.uk/id/local-authority-district/22UN,Life Opportunities,6160 - Princes Theatre,4080 - Materials & Consumables,14/05/2013,1051847-1,48.54,REDACTED COMMERCIAL CONFIDENTIALITY,REDACTED COMMERCIAL CONFIDENTIALITY
Tendring DC,http://statistics.data.gov.uk/id/local-authority-district/22UN,Life Opportunities,6160 - Princes Theatre,2100 - Building Repairs,14/05/2013,1051848-1,16.66,REDACTED COMMERCIAL CONFIDENTIALITY,REDACTED COMMERCIAL CONFIDENTIALITY
Tendring DC,http://statistics.data.gov.uk/id/local-authority-district/22UN,Life Opportunities,6160 - Princes Theatre,2100 - Building Repairs,14/05/2013,1051849-1,54.06,REDACTED COMMERCIAL CONFIDENTIALITY,REDACTED COMMERCIAL CONFIDENTIALITY
Tendring DC,http://statistics.data.gov.uk/id/local-authority-district/22UN,Life Opportunities,6160 - Princes Theatre,4040 - Equipment & Tools,14/05/2013,1051850-1,5.94,REDACTED COMMERCIAL CONFIDENTIALITY,REDACTED COMMERCIAL CONFIDENTIALITY
Tendring DC,http://statistics.data.gov.uk/id/local-authority-district/22UN,Life Opportunities,6160 - Princes Theatre,4080 - Materials & Consumables,14/05/2013,1051851-1,20,REDACTED COMMERCIAL CONFIDENTIALITY,REDACTED COMMERCIAL CONFIDENTIALITY
Tendring DC,http://statistics.data.gov.uk/id/local-authority-district/22UN,Life Opportunities,5140 - Homelessness,4683 - Other Homelessness Expenses,28/05/2013,1052218-1,53.79,REDACTED PERSONAL DATA,REDACTED PERSONAL DATA
Tendring DC,http://statistics.data.gov.uk/id/local-authority-district/22UN,Life Opportunities,5140 - Homelessness,4683 - Other Homelessness Expenses,07/05/2013,2108980-1,550,REDACTED PERSONAL DATA,REDACTED PERSONAL DATA
Tendring DC,http://statistics.data.gov.uk/id/local-authority-district/22UN,Life Opportunities,5140 - Homelessness,4683 - Other Homelessness Expenses,07/05/2013,2108981-1,510,REDACTED PERSONAL DATA,REDACTED PERSONAL DATA
Tendring DC,http://statistics.data.gov.uk/id/local-authority-district/22UN,Life Opportunities,H920 - DFGs,C400 - Grant payments,21/05/2013,1052144-1,2014,REDACTED PERSONAL DATA,REDACTED PERSONAL DATA
Tendring DC,http://statistics.data.gov.uk/id/local-authority-district/22UN,Life Opportunities,8510 - Dovercourt Swimming Pool & All Weather Facilities,5311 - General Provisions - Vending,14/05/2013,1051748-1,-10,2101083 - Osgood Smith,DOVERCOURT POOL
Tendring DC,http://statistics.data.gov.uk/id/local-authority-district/22UN,Life Opportunities,5800 - Brightlingsea Sports Centre,5316 - General Provisions,14/05/2013,1051813-1,110.65,2101083 - Osgood Smith,OSGOOD SMITH
Tendring DC,http://statistics.data.gov.uk/id/local-authority-district/22UN,Life Opportunities,5860 - Manningtree Sports Centre,5311 - General Provisions - Vending,14/05/2013,1051814-1,276.72,2101083 - Osgood Smith,VENDING SUPPLIES
Tendring DC,http://statistics.data.gov.uk/id/local-authority-district/22UN,Life Opportunities,5820 - Harwich Sports Centre,5311 - General Provisions - Vending,14/05/2013,1051834-1,52.46,2101083 - Osgood Smith,CANTEEN GOODS
Tendring DC,http://statistics.data.gov.uk/id/local-authority-district/22UN,Life Opportunities,8510 - Dovercourt Swimming Pool & All Weather Facilities,5311 - General Provisions - Vending,14/05/2013,1051835-1,215.14,2101083 - Osgood Smith,DOVERCOURT POOL
Tendring DC,http://statistics.data.gov.uk/id/local-authority-district/22UN,Life Opportunities,8560 - Happy Valley Recreation Ground Pitch & Putt,4040 - Equipment & Tools,14/05/2013,1051863-1,69.49,2101083 - Osgood Smith,
Tendring DC,http://statistics.data.gov.uk/id/local-authority-district/22UN,Life Opportunities,5860 - Manningtree Sports Centre,5311 - General Provisions - Vending,14/05/2013,1051873-1,201.17,2101083 - Osgood Smith,VENDING SUPPLIES
Tendring DC,http://statistics.data.gov.uk/id/local-authority-district/22UN,Life Opportunities,5820 - Harwich Sports Centre,5311 - General Provisions - Vending,21/05/2013,1052030-1,31.55,2101083 - Osgood Smith,CANTEEN SUPPLIES
Tendring DC,http://statistics.data.gov.uk/id/local-authority-district/22UN,Life Opportunities,8510 - Dovercourt Swimming Pool & All Weather Facilities,5311 - General Provisions - Vending,28/05/2013,1052321-1,32.93,2101083 - Osgood Smith,DOVERCOURT POOL
Tendring DC,http://statistics.data.gov.uk/id/local-authority-district/22UN,Life Opportunities,8510 - Dovercourt Swimming Pool & All Weather Facilities,5311 - General Provisions - Vending,28/05/2013,1052322-1,233.11,2101083 - Osgood Smith,DOVERCOURT POOL
Tendring DC,http://statistics.data.gov.uk/id/local-authority-district/22UN,Life Opportunities,5860 - Manningtree Sports Centre,5311 - General Provisions - Vending,28/05/2013,1052323-1,226.25,2101083 - Osgood Smith,VENDING SUPPLIES
Tendring DC,http://statistics.data.gov.uk/id/local-authority-district/22UN,Life Opportunities,8520 - Frinton & Walton Swimming Pool,5311 - General Provisions - Vending,28/05/2013,1052324-1,159.95,2101083 - Osgood Smith,FRINTON WALTON POOL
Tendring DC,http://statistics.data.gov.uk/id/local-authority-district/22UN,Life Opportunities,6160 - Princes Theatre,5306 - Confectionary,07/05/2013,2108875-1,73.43,REDACTED PERSONAL DATA,REDACTED PERSONAL DATA
Tendring DC,http://statistics.data.gov.uk/id/local-authority-district/22UN,Life Opportunities,5860 - Manningtree Sports Centre,5311 - General Provisions - Vending,28/05/2013,2109086-1,44.98,2101083 - Osgood Smith,Vending Supplies
Tendring DC,http://statistics.data.gov.uk/id/local-authority-district/22UN,Life Opportunities,5860 - Manningtree Sports Centre,5311 - General Provisions - Vending,28/05/2013,2109086-2,9.19,2101083 - Osgood Smith,Vending Supplies
Tendring DC,http://statistics.data.gov.uk/id/local-authority-district/22UN,Life Opportunities,5820 - Harwich Sports Centre,5311 - General Provisions - Vending,28/05/2013,2109113-1,35.62,2101083 - Osgood Smith,Canteen Goods
Tendring DC,http://statistics.data.gov.uk/id/local-authority-district/22UN,Life Opportunities,5820 - Harwich Sports Centre,5311 - General Provisions - Vending,28/05/2013,2109115-1,96.8,2101083 - Osgood Smith,Canteen Supplies
Tendring DC,http://statistics.data.gov.uk/id/local-authority-district/22UN,Life Opportunities,8520 - Frinton & Walton Swimming Pool,5311 - General Provisions - Vending,28/05/2013,2109185-1,66.4,2101083 - Osgood Smith,Frinton & Walton Pool
Tendring DC,http://statistics.data.gov.uk/id/local-authority-district/22UN,Life Opportunities,8520 - Frinton & Walton Swimming Pool,5311 - General Provisions - Vending,21/05/2013,7700227-1,97.97,2101083 - Osgood Smith,FRINTON & WALTON POOL
Tendring DC,http://statistics.data.gov.uk/id/local-authority-district/22UN,Life Opportunities,5240 - HRA - Managing Tenancies,5242 - Tenant Relations,21/05/2013,1052002-1,10,REDACTED COMMERCIAL CONFIDENTIALITY,REDACTED COMMERCIAL CONFIDENTIALITY
Tendring DC,http://statistics.data.gov.uk/id/local-authority-district/22UN,Life Opportunities,5480 - HRA - Repair & Maintenance,2017 - Mechanical Equipment /Extract Fans,07/05/2013,1051684-1,440,REDACTED PERSONAL DATA,REDACTED PERSONAL DATA
Tendring DC,http://statistics.data.gov.uk/id/local-authority-district/22UN,Life Opportunities,5480 - HRA - Repair & Maintenance,2017 - Mechanical Equipment /Extract Fans,07/05/2013,1051684-2,306.6,REDACTED PERSONAL DATA,REDACTED PERSONAL DATA
Tendring DC,http://statistics.data.gov.uk/id/local-authority-district/22UN,Life Opportunities,5480 - HRA - Repair & Maintenance,2017 - Mechanical Equipment /Extract Fans,07/05/2013,1051685-1,110,REDACTED PERSONAL DATA,REDACTED PERSONAL DATA
Tendring DC,http://statistics.data.gov.uk/id/local-authority-district/22UN,Life Opportunities,5480 - HRA - Repair & Maintenance,2017 - Mechanical Equipment /Extract Fans,07/05/2013,1051685-2,109,REDACTED PERSONAL DATA,REDACTED PERSONAL DATA
Tendring DC,http://statistics.data.gov.uk/id/local-authority-district/22UN,Life Opportunities,8540 - Leisure Centre Clacton,5160 - Advertising,07/05/2013,2108897-1,250,2101097 - Peter Lockyer Advertising Ltd,
Tendring DC,http://statistics.data.gov.uk/id/local-authority-district/22UN,Life Opportunities,8530 - Brightlingsea Swimming Pool,5160 - Advertising,07/05/2013,2108898-1,150,2101097 - Peter Lockyer Advertising Ltd,
Tendring DC,http://statistics.data.gov.uk/id/local-authority-district/22UN,Life Opportunities,6355 - Community Activity Network,4597 - Hired Services - Payments to Contractors,28/05/2013,2109112-1,960,2112933 - Phoenix Archery Club,Archery Equipment
Tendring DC,http://statistics.data.gov.uk/id/local-authority-district/22UN,Life Opportunities,8540 - Leisure Centre Clacton,4000 - Furniture,07/05/2013,2108927-1,39.95,2101068 - Physical Company,
Tendring DC,http://statistics.data.gov.uk/id/local-authority-district/22UN,Life Opportunities,1880 - Office Accommodation Expenses,2100 - Building Repairs,07/05/2013,2108892-1,257.8,2101088 - Piggotts Co Ltd,Piggots
Tendring DC,http://statistics.data.gov.uk/id/local-authority-district/22UN,Life Opportunities,5420 - HRA - Communal Cleaning,2706 - Communal Areas Cleaning Expenses,07/05/2013,2108868-1,3521.58,REDACTED COMMERCIAL CONFIDENTIALITY,REDACTED COMMERCIAL CONFIDENTIALITY
Tendring DC,http://statistics.data.gov.uk/id/local-authority-district/22UN,Life Opportunities,5420 - HRA - Communal Cleaning,2706 - Communal Areas Cleaning Expenses,28/05/2013,2109102-1,3521.58,REDACTED COMMERCIAL CONFIDENTIALITY,REDACTED COMMERCIAL CONFIDENTIALITY
Tendring DC,http://statistics.data.gov.uk/id/local-authority-district/22UN,Life Opportunities,7680 - Tour De Tendring,5500 - Miscellaneous Expenses,28/05/2013,2109088-1,250,REDACTED COMMERCIAL CONFIDENTIALITY,REDACTED COMMERCIAL CONFIDENTIALITY
Tendring DC,http://statistics.data.gov.uk/id/local-authority-district/22UN,Life Opportunities,7680 - Tour De Tendring,5500 - Miscellaneous Expenses,28/05/2013,2109072-1,575,REDACTED COMMERCIAL CONFIDENTIALITY,REDACTED COMMERCIAL CONFIDENTIALITY
Tendring DC,http://statistics.data.gov.uk/id/local-authority-district/22UN,Life Opportunities,5480 - HRA - Repair & Maintenance,2090 - Fencing,07/05/2013,1051674-1,1097.7,REDACTED PERSONAL DATA,REDACTED PERSONAL DATA
Tendring DC,http://statistics.data.gov.uk/id/local-authority-district/22UN,Life Opportunities,5140 - Homelessness,4689 - Special Homelessness Projects Expenses,07/05/2013,1051675-1,175,REDACTED PERSONAL DATA,REDACTED PERSONAL DATA
Tendring DC,http://statistics.data.gov.uk/id/local-authority-district/22UN,Life Opportunities,5480 - HRA - Repair & Maintenance,2090 - Fencing,07/05/2013,1051676-1,468,REDACTED PERSONAL DATA,REDACTED PERSONAL DATA
Tendring DC,http://statistics.data.gov.uk/id/local-authority-district/22UN,Life Opportunities,5480 - HRA - Repair & Maintenance,2001 - Responsive Maintenance - Concrete And Other Extern,14/05/2013,1051826-1,937.5,REDACTED PERSONAL DATA,REDACTED PERSONAL DATA
Tendring DC,http://statistics.data.gov.uk/id/local-authority-district/22UN,Life Opportunities,5480 - HRA - Repair & Maintenance,2001 - Responsive Maintenance - Concrete And Other Extern,21/05/2013,1052092-1,507,REDACTED PERSONAL DATA,REDACTED PERSONAL DATA
Tendring DC,http://statistics.data.gov.uk/id/local-authority-district/22UN,Life Opportunities,5480 - HRA - Repair & Maintenance,2090 - Fencing,07/05/2013,2108869-1,68,REDACTED PERSONAL DATA,REDACTED PERSONAL DATA
Tendring DC,http://statistics.data.gov.uk/id/local-authority-district/22UN,Life Opportunities,5480 - HRA - Repair & Maintenance,2090 - Fencing,28/05/2013,2109100-1,161.35,REDACTED PERSONAL DATA,REDACTED PERSONAL DATA
Tendring DC,http://statistics.data.gov.uk/id/local-authority-district/22UN,Life Opportunities,5480 - HRA - Repair & Maintenance,2012 - Responsive Maintenance - Clearance And Cleaning,21/05/2013,7700230-1,250,REDACTED PERSONAL DATA,REDACTED PERSONAL DATA
Tendring DC,http://statistics.data.gov.uk/id/local-authority-district/22UN,Life Opportunities,5480 - HRA - Repair & Maintenance,2090 - Fencing,21/05/2013,7700230-2,745.2,REDACTED PERSONAL DATA,REDACTED PERSONAL DATA
Tendring DC,http://statistics.data.gov.uk/id/local-authority-district/22UN,Life Opportunities,5480 - HRA - Repair & Maintenance,2090 - Fencing,21/05/2013,7700231-1,312.8,REDACTED PERSONAL DATA,REDACTED PERSONAL DATA
Tendring DC,http://statistics.data.gov.uk/id/local-authority-district/22UN,Life Opportunities,5480 - HRA - Repair & Maintenance,2001 - Responsive Maintenance - Concrete And Other Extern,21/05/2013,7700231-2,120,REDACTED PERSONAL DATA,REDACTED PERSONAL DATA
Tendring DC,http://statistics.data.gov.uk/id/local-authority-district/22UN,Life Opportunities,5480 - HRA - Repair & Maintenance,2090 - Fencing,21/05/2013,7700232-1,390.3,REDACTED PERSONAL DATA,REDACTED PERSONAL DATA
Tendring DC,http://statistics.data.gov.uk/id/local-authority-district/22UN,Life Opportunities,5480 - HRA - Repair & Maintenance,2001 - Responsive Maintenance - Concrete And Other Extern,21/05/2013,7700239-1,635,REDACTED PERSONAL DATA,REDACTED PERSONAL DATA
Tendring DC,http://statistics.data.gov.uk/id/local-authority-district/22UN,Life Opportunities,7520 - Tourism Publicity Marketing Promotion,5160 - Advertising,28/05/2013,2109089-1,2205,REDACTED COMMERCIAL CONFIDENTIALITY,REDACTED COMMERCIAL CONFIDENTIALITY
Tendring DC,http://statistics.data.gov.uk/id/local-authority-district/22UN,Life Opportunities,5480 - HRA - Repair & Maintenance,2012 - Responsive Maintenance - Clearance And Cleaning,21/05/2013,1052023-1,115,REDACTED PERSONAL DATA,REDACTED PERSONAL DATA
Tendring DC,http://statistics.data.gov.uk/id/local-authority-district/22UN,Life Opportunities,5480 - HRA - Repair & Maintenance,2012 - Responsive Maintenance - Clearance And Cleaning,21/05/2013,1052024-1,50,REDACTED PERSONAL DATA,REDACTED PERSONAL DATA
Tendring DC,http://statistics.data.gov.uk/id/local-authority-district/22UN,Life Opportunities,5480 - HRA - Repair & Maintenance,2012 - Responsive Maintenance - Clearance And Cleaning,21/05/2013,1052025-1,60,REDACTED PERSONAL DATA,REDACTED PERSONAL DATA
Tendring DC,http://statistics.data.gov.uk/id/local-authority-district/22UN,Life Opportunities,5480 - HRA - Repair & Maintenance,2012 - Responsive Maintenance - Clearance And Cleaning,21/05/2013,1052026-1,20,REDACTED PERSONAL DATA,REDACTED PERSONAL DATA
Tendring DC,http://statistics.data.gov.uk/id/local-authority-district/22UN,Life Opportunities,5480 - HRA - Repair & Maintenance,2012 - Responsive Maintenance - Clearance And Cleaning,21/05/2013,1052027-1,60,REDACTED PERSONAL DATA,REDACTED PERSONAL DATA
Tendring DC,http://statistics.data.gov.uk/id/local-authority-district/22UN,Life Opportunities,5480 - HRA - Repair & Maintenance,2012 - Responsive Maintenance - Clearance And Cleaning,21/05/2013,1052028-1,100,REDACTED PERSONAL DATA,REDACTED PERSONAL DATA
Tendring DC,http://statistics.data.gov.uk/id/local-authority-district/22UN,Life Opportunities,5140 - Homelessness,4683 - Other Homelessness Expenses,28/05/2013,1052224-1,550,REDACTED PERSONAL DATA,REDACTED PERSONAL DATA
Tendring DC,http://statistics.data.gov.uk/id/local-authority-district/22UN,Life Opportunities,6160 - Princes Theatre,5160 - Advertising,28/05/2013,2109091-1,135,REDACTED COMMERCIAL CONFIDENTIALITY,REDACTED COMMERCIAL CONFIDENTIALITY
Tendring DC,http://statistics.data.gov.uk/id/local-authority-district/22UN,Life Opportunities,6160 - Princes Theatre,2900 - Premises Licensing - Public Entertainment,07/05/2013,2108879-1,428.27,REDACTED PERSONAL DATA,REDACTED PERSONAL DATA
Tendring DC,http://statistics.data.gov.uk/id/local-authority-district/22UN,Life Opportunities,"1580 - Benefits, Revenues and Customer Contact SU",4810 - Conference Bookings,14/05/2013,1051806-1,300,2111766 - publicservice.co.uk Ltd,LEAN GOVERNMENT
Tendring DC,http://statistics.data.gov.uk/id/local-authority-district/22UN,Life Opportunities,5860 - Manningtree Sports Centre,4400 - Maintenance Under Service Agreements,28/05/2013,2109085-1,1913.47,REDACTED COMMERCIAL CONFIDENTIALITY,REDACTED COMMERCIAL CONFIDENTIALITY
Tendring DC,http://statistics.data.gov.uk/id/local-authority-district/22UN,Life Opportunities,1930 - Asset Management Service Unit,4460 - Legal & Professional Expenses,28/05/2013,2109103-1,860,REDACTED PERSONAL DATA,REDACTED PERSONAL DATA
Tendring DC,http://statistics.data.gov.uk/id/local-authority-district/22UN,Life Opportunities,H710 - Selected Improvements,C200 - Main Contractor,28/05/2013,2109104-1,4100,REDACTED PERSONAL DATA,REDACTED PERSONAL DATA
Tendring DC,http://statistics.data.gov.uk/id/local-authority-district/22UN,Life Opportunities,H880 - New Build Initiatives and Acquisitions,C200 - Main Contractor,21/05/2013,7700229-1,150,REDACTED PERSONAL DATA,REDACTED PERSONAL DATA
Tendring DC,http://statistics.data.gov.uk/id/local-authority-district/22UN,Life Opportunities,8520 - Frinton & Walton Swimming Pool,2100 - Building Repairs,28/05/2013,2109188-1,210.92,2112906 - RBJ Betson,Frinton & Walton Pool
Tendring DC,http://statistics.data.gov.uk/id/local-authority-district/22UN,Life Opportunities,5140 - Homelessness,4683 - Other Homelessness Expenses,07/05/2013,2108976-1,495,REDACTED PERSONAL DATA,REDACTED PERSONAL DATA
Tendring DC,http://statistics.data.gov.uk/id/local-authority-district/22UN,Life Opportunities,5240 - HRA - Managing Tenancies,5242 - Tenant Relations,21/05/2013,1052148-1,10,REDACTED COMMERCIAL CONFIDENTIALITY,REDACTED COMMERCIAL CONFIDENTIALITY
Tendring DC,http://statistics.data.gov.uk/id/local-authority-district/22UN,Life Opportunities,1650 - Building Services Service Unit,4880 - Subscriptions Paid,07/05/2013,2108938-1,440,2101774 - Riba Enterprises Ltd,NBS Subscription 13/14
Tendring DC,http://statistics.data.gov.uk/id/local-authority-district/22UN,Life Opportunities,1650 - Building Services Service Unit,4880 - Subscriptions Paid,07/05/2013,2108938-2,490,2101774 - Riba Enterprises Ltd,NBS Subscription 13/14
Tendring DC,http://statistics.data.gov.uk/id/local-authority-district/22UN,Life Opportunities,8520 - Frinton & Walton Swimming Pool,4400 - Maintenance Under Service Agreements,14/05/2013,1051860-1,32.06,2101090 - Ricoh UK Ltd,FRINTON WALTON POOL
Tendring DC,http://statistics.data.gov.uk/id/local-authority-district/22UN,Life Opportunities,8520 - Frinton & Walton Swimming Pool,4400 - Maintenance Under Service Agreements,14/05/2013,1051861-1,85.61,2101090 - Ricoh UK Ltd,FRINTON WALTON POOL
Tendring DC,http://statistics.data.gov.uk/id/local-authority-district/22UN,Life Opportunities,8520 - Frinton & Walton Swimming Pool,5300 - Resaleable Items,28/05/2013,1052320-1,19.95,2101127 - RLSS UK Enterprises Ltd,FRINTON WALTON POOL
Tendring DC,http://statistics.data.gov.uk/id/local-authority-district/22UN,Life Opportunities,5480 - HRA - Repair & Maintenance,2088 - Disabled Adaptations,07/05/2013,1051690-1,62.28,REDACTED PERSONAL DATA,REDACTED PERSONAL DATA
Tendring DC,http://statistics.data.gov.uk/id/local-authority-district/22UN,Life Opportunities,H706 - Kitchen & Bathroom Replacement,C200 - Main Contractor,07/05/2013,1051691-1,3897.81,REDACTED PERSONAL DATA,REDACTED PERSONAL DATA
Tendring DC,http://statistics.data.gov.uk/id/local-authority-district/22UN,Life Opportunities,H706 - Kitchen & Bathroom Replacement,C200 - Main Contractor,14/05/2013,1051743-1,3292.43,REDACTED PERSONAL DATA,REDACTED PERSONAL DATA
Tendring DC,http://statistics.data.gov.uk/id/local-authority-district/22UN,Life Opportunities,9900 - General Fund Balance Sheet,B382 - Rechargeable Works - Other,14/05/2013,1051744-1,78.6,REDACTED PERSONAL DATA,REDACTED PERSONAL DATA
Tendring DC,http://statistics.data.gov.uk/id/local-authority-district/22UN,Life Opportunities,5480 - HRA - Repair & Maintenance,2000 - Responsive Maintenance - Miscellaneous,14/05/2013,1051931-1,118742.2,2101187 - Roalco Limited,ROALCO
Tendring DC,http://statistics.data.gov.uk/id/local-authority-district/22UN,Life Opportunities,5480 - HRA - Repair & Maintenance,2079 - External Decoration,21/05/2013,1052191-1,10115.07,2101187 - Roalco Limited,
Tendring DC,http://statistics.data.gov.uk/id/local-authority-district/22UN,Life Opportunities,5480 - HRA - Repair & Maintenance,2080 - Pre Painting Repairs,21/05/2013,1052191-2,12897,2101187 - Roalco Limited,
Tendring DC,http://statistics.data.gov.uk/id/local-authority-district/22UN,Life Opportunities,1880 - Office Accommodation Expenses,2100 - Building Repairs,28/05/2013,1052245-1,13165.5,2101187 - Roalco Limited,ROALCO
Tendring DC,http://statistics.data.gov.uk/id/local-authority-district/22UN,Life Opportunities,H705 - Window/Door Replacement,C200 - Main Contractor,21/05/2013,2109022-1,133.04,REDACTED PERSONAL DATA,REDACTED PERSONAL DATA
Tendring DC,http://statistics.data.gov.uk/id/local-authority-district/22UN,Life Opportunities,5480 - HRA - Repair & Maintenance,2088 - Disabled Adaptations,21/05/2013,2109023-1,62.28,REDACTED PERSONAL DATA,REDACTED PERSONAL DATA
Tendring DC,http://statistics.data.gov.uk/id/local-authority-district/22UN,Life Opportunities,5480 - HRA - Repair & Maintenance,2088 - Disabled Adaptations,21/05/2013,2109024-1,78.6,REDACTED PERSONAL DATA,REDACTED PERSONAL DATA
Tendring DC,http://statistics.data.gov.uk/id/local-authority-district/22UN,Life Opportunities,5480 - HRA - Repair & Maintenance,2088 - Disabled Adaptations,21/05/2013,2109025-1,78.6,REDACTED PERSONAL DATA,REDACTED PERSONAL DATA
Tendring DC,http://statistics.data.gov.uk/id/local-authority-district/22UN,Life Opportunities,5480 - HRA - Repair & Maintenance,2088 - Disabled Adaptations,21/05/2013,2109026-1,159.6,REDACTED PERSONAL DATA,REDACTED PERSONAL DATA
Tendring DC,http://statistics.data.gov.uk/id/local-authority-district/22UN,Life Opportunities,5480 - HRA - Repair & Maintenance,2088 - Disabled Adaptations,21/05/2013,2109027-1,139.24,REDACTED PERSONAL DATA,REDACTED PERSONAL DATA
Tendring DC,http://statistics.data.gov.uk/id/local-authority-district/22UN,Life Opportunities,5480 - HRA - Repair & Maintenance,2088 - Disabled Adaptations,21/05/2013,2109028-1,205.64,REDACTED PERSONAL DATA,REDACTED PERSONAL DATA
Tendring DC,http://statistics.data.gov.uk/id/local-authority-district/22UN,Life Opportunities,H710 - Selected Improvements,C200 - Main Contractor,14/05/2013,1051746-1,23750,REDACTED PERSONAL DATA,REDACTED PERSONAL DATA
Tendring DC,http://statistics.data.gov.uk/id/local-authority-district/22UN,Life Opportunities,9900 - General Fund Balance Sheet,B382 - Rechargeable Works - Other,14/05/2013,1051924-1,882.7,2101893 - Rose Builders Ltd,TEMPORARY SECURITY FENCE
Tendring DC,http://statistics.data.gov.uk/id/local-authority-district/22UN,Life Opportunities,9900 - General Fund Balance Sheet,B332 - Other Public Corporations Debtors/Prepayments,14/05/2013,1051932-1,4465.62,2101893 - Rose Builders Ltd,32 WEST ST HARWICH-FINE REBUILD
Tendring DC,http://statistics.data.gov.uk/id/local-authority-district/22UN,Life Opportunities,H800 - Structural Repairs,C200 - Main Contractor,21/05/2013,2109031-1,19000,REDACTED PERSONAL DATA,REDACTED PERSONAL DATA
Tendring DC,http://statistics.data.gov.uk/id/local-authority-district/22UN,Life Opportunities,5240 - HRA - Managing Tenancies,5242 - Tenant Relations,21/05/2013,1052008-1,10,REDACTED COMMERCIAL CONFIDENTIALITY,REDACTED COMMERCIAL CONFIDENTIALITY
Tendring DC,http://statistics.data.gov.uk/id/local-authority-district/22UN,Life Opportunities,5240 - HRA - Managing Tenancies,5242 - Tenant Relations,21/05/2013,1052006-1,10,REDACTED COMMERCIAL CONFIDENTIALITY,REDACTED COMMERCIAL CONFIDENTIALITY
Tendring DC,http://statistics.data.gov.uk/id/local-authority-district/22UN,Life Opportunities,5240 - HRA - Managing Tenancies,5242 - Tenant Relations,07/05/2013,1051672-1,70,2101139 - Royal Mail,633665007
Tendring DC,http://statistics.data.gov.uk/id/local-authority-district/22UN,Life Opportunities,5260 - HRA - Rent Collection And Accounting,4700 - Postage,07/05/2013,1051673-1,35,REDACTED COMMERCIAL CONFIDENTIALITY,REDACTED COMMERCIAL CONFIDENTIALITY
Tendring DC,http://statistics.data.gov.uk/id/local-authority-district/22UN,Life Opportunities,"1580 - Benefits, Revenues and Customer Contact SU",4700 - Postage,14/05/2013,1051807-1,1048.95,2101139 - Royal Mail,OUTGOING POST + LEISURE POST
Tendring DC,http://statistics.data.gov.uk/id/local-authority-district/22UN,Life Opportunities,1661 - Other Apportionable Overheads - Corporate Support,4700 - Postage,14/05/2013,1051807-2,1273.8,2101139 - Royal Mail,OUTGOING POST + LEISURE POST
Tendring DC,http://statistics.data.gov.uk/id/local-authority-district/22UN,Life Opportunities,"1580 - Benefits, Revenues and Customer Contact SU",4700 - Postage,14/05/2013,1051808-1,52.13,2101139 - Royal Mail,RESPONSE PLUS MAR/APR13
Tendring DC,http://statistics.data.gov.uk/id/local-authority-district/22UN,Life Opportunities,5240 - HRA - Managing Tenancies,5242 - Tenant Relations,14/05/2013,1051842-1,2.81,REDACTED COMMERCIAL CONFIDENTIALITY,REDACTED COMMERCIAL CONFIDENTIALITY
Tendring DC,http://statistics.data.gov.uk/id/local-authority-district/22UN,Life Opportunities,6740 - Careline,4700 - Postage,21/05/2013,1051985-1,7.87,2101139 - Royal Mail,POSTAGE APRIL 2013
Tendring DC,http://statistics.data.gov.uk/id/local-authority-district/22UN,Life Opportunities,"1580 - Benefits, Revenues and Customer Contact SU",4700 - Postage,28/05/2013,1052409-1,616.79,2101139 - Royal Mail,OUTGOING POST MAY 13
Tendring DC,http://statistics.data.gov.uk/id/local-authority-district/22UN,Life Opportunities,1661 - Other Apportionable Overheads - Corporate Support,4700 - Postage,28/05/2013,1052409-2,1340.82,2101139 - Royal Mail,OUTGOING POST MAY 13
Tendring DC,http://statistics.data.gov.uk/id/local-authority-district/22UN,Life Opportunities,"1580 - Benefits, Revenues and Customer Contact SU",4700 - Postage,07/05/2013,2108939-1,2060.37,2101139 - Royal Mail,Outgoing Post April 13
Tendring DC,http://statistics.data.gov.uk/id/local-authority-district/22UN,Life Opportunities,5240 - HRA - Managing Tenancies,5242 - Tenant Relations,28/05/2013,2109084-1,70,REDACTED COMMERCIAL CONFIDENTIALITY,REDACTED COMMERCIAL CONFIDENTIALITY
Tendring DC,http://statistics.data.gov.uk/id/local-authority-district/22UN,Life Opportunities,"1580 - Benefits, Revenues and Customer Contact SU",4700 - Postage,21/05/2013,7700250-1,1409.37,2101139 - Royal Mail,
Tendring DC,http://statistics.data.gov.uk/id/local-authority-district/22UN,Life Opportunities,1661 - Other Apportionable Overheads - Corporate Support,4700 - Postage,21/05/2013,7700250-2,204.35,2101139 - Royal Mail,
Tendring DC,http://statistics.data.gov.uk/id/local-authority-district/22UN,Life Opportunities,5140 - Homelessness,4683 - Other Homelessness Expenses,28/05/2013,1052222-1,575,REDACTED PERSONAL DATA,REDACTED PERSONAL DATA
Tendring DC,http://statistics.data.gov.uk/id/local-authority-district/22UN,Life Opportunities,8540 - Leisure Centre Clacton,4400 - Maintenance Under Service Agreements,28/05/2013,1052383-1,240.12,2109169 - S J Leisure Contractors Ltd,
Tendring DC,http://statistics.data.gov.uk/id/local-authority-district/22UN,Life Opportunities,5480 - HRA - Repair & Maintenance,2088 - Disabled Adaptations,21/05/2013,2109015-1,220,REDACTED PERSONAL DATA,REDACTED PERSONAL DATA
Tendring DC,http://statistics.data.gov.uk/id/local-authority-district/22UN,Life Opportunities,5480 - HRA - Repair & Maintenance,2088 - Disabled Adaptations,21/05/2013,2109015-2,48.33,REDACTED PERSONAL DATA,REDACTED PERSONAL DATA
Tendring DC,http://statistics.data.gov.uk/id/local-authority-district/22UN,Life Opportunities,H860 - Disabled Adaptations,C200 - Main Contractor,21/05/2013,2109016-1,528,REDACTED PERSONAL DATA,REDACTED PERSONAL DATA
Tendring DC,http://statistics.data.gov.uk/id/local-authority-district/22UN,Life Opportunities,H860 - Disabled Adaptations,C200 - Main Contractor,21/05/2013,2109016-2,159.2,REDACTED PERSONAL DATA,REDACTED PERSONAL DATA
Tendring DC,http://statistics.data.gov.uk/id/local-authority-district/22UN,Life Opportunities,9900 - General Fund Balance Sheet,B382 - Rechargeable Works - Other,28/05/2013,7700221-1,120,2111962 - Scaffold Solutions,SITE INSPECTIONS X 4
Tendring DC,http://statistics.data.gov.uk/id/local-authority-district/22UN,Life Opportunities,9900 - General Fund Balance Sheet,B382 - Rechargeable Works - Other,28/05/2013,7700222-1,120,2111962 - Scaffold Solutions,SITE INSPECTIONS X 4
Tendring DC,http://statistics.data.gov.uk/id/local-authority-district/22UN,Life Opportunities,9900 - General Fund Balance Sheet,B382 - Rechargeable Works - Other,28/05/2013,7700223-1,120,2111962 - Scaffold Solutions,SITE INSPECTIONS X 4
Tendring DC,http://statistics.data.gov.uk/id/local-authority-district/22UN,Life Opportunities,5480 - HRA - Repair & Maintenance,2096 - Asbestos testing/removal,14/05/2013,1051742-1,100,REDACTED PERSONAL DATA,REDACTED PERSONAL DATA
Tendring DC,http://statistics.data.gov.uk/id/local-authority-district/22UN,Life Opportunities,5480 - HRA - Repair & Maintenance,2096 - Asbestos testing/removal,14/05/2013,1051742-2,100,REDACTED PERSONAL DATA,REDACTED PERSONAL DATA
Tendring DC,http://statistics.data.gov.uk/id/local-authority-district/22UN,Life Opportunities,H920 - DFGs,C400 - Grant payments,14/05/2013,1051751-1,930,REDACTED PERSONAL DATA,REDACTED PERSONAL DATA
Tendring DC,http://statistics.data.gov.uk/id/local-authority-district/22UN,Life Opportunities,H920 - DFGs,C400 - Grant payments,14/05/2013,1051754-1,2000,REDACTED PERSONAL DATA,REDACTED PERSONAL DATA
Tendring DC,http://statistics.data.gov.uk/id/local-authority-district/22UN,Life Opportunities,1880 - Office Accommodation Expenses,2100 - Building Repairs,28/05/2013,2109149-1,188.75,2101214 - Seton Ltd,Seton
Tendring DC,http://statistics.data.gov.uk/id/local-authority-district/22UN,Life Opportunities,1880 - Office Accommodation Expenses,2100 - Building Repairs,28/05/2013,2109150-1,36.8,2101214 - Seton Ltd,Seton
Tendring DC,http://statistics.data.gov.uk/id/local-authority-district/22UN,Life Opportunities,8540 - Leisure Centre Clacton,9275 - Lifestyles Plus - DD,28/05/2013,1052230-1,37.5,REDACTED PERSONAL DATA,REDACTED PERSONAL DATA
Tendring DC,http://statistics.data.gov.uk/id/local-authority-district/22UN,Life Opportunities,5140 - Homelessness,4683 - Other Homelessness Expenses,28/05/2013,1052338-1,1500,2105528 - Sheens Lettings,PREVENTION FUND
Tendring DC,http://statistics.data.gov.uk/id/local-authority-district/22UN,Life Opportunities,5240 - HRA - Managing Tenancies,5242 - Tenant Relations,21/05/2013,1052154-1,10,REDACTED COMMERCIAL CONFIDENTIALITY,REDACTED COMMERCIAL CONFIDENTIALITY
Tendring DC,http://statistics.data.gov.uk/id/local-authority-district/22UN,Life Opportunities,8560 - Happy Valley Recreation Ground Pitch & Putt,4040 - Equipment & Tools,14/05/2013,1051862-1,96.36,2100032 - Signs Made Easy,
Tendring DC,http://statistics.data.gov.uk/id/local-authority-district/22UN,Life Opportunities,8540 - Leisure Centre Clacton,2100 - Building Repairs,28/05/2013,1052334-1,30.3,2100032 - Signs Made Easy,SIGNS MADE EASY
Tendring DC,http://statistics.data.gov.uk/id/local-authority-district/22UN,Life Opportunities,5800 - Brightlingsea Sports Centre,2100 - Building Repairs,28/05/2013,2109124-1,669.6,2100032 - Signs Made Easy,Signs Made Easy
Tendring DC,http://statistics.data.gov.uk/id/local-authority-district/22UN,Life Opportunities,8530 - Brightlingsea Swimming Pool,2100 - Building Repairs,28/05/2013,2109125-1,67,2100032 - Signs Made Easy,Signs Made Easy
Tendring DC,http://statistics.data.gov.uk/id/local-authority-district/22UN,Life Opportunities,5240 - HRA - Managing Tenancies,5248 - Estate Management Expenses,21/05/2013,7700236-1,58.06,REDACTED COMMERCIAL CONFIDENTIALITY,REDACTED COMMERCIAL CONFIDENTIALITY
Tendring DC,http://statistics.data.gov.uk/id/local-authority-district/22UN,Life Opportunities,5800 - Brightlingsea Sports Centre,2100 - Building Repairs,28/05/2013,1052332-1,69,2103454 - Simad Publications,LOOK MAGAZINE
Tendring DC,http://statistics.data.gov.uk/id/local-authority-district/22UN,Life Opportunities,5800 - Brightlingsea Sports Centre,5160 - Advertising,21/05/2013,7700224-1,90,2101266 - Smile Publishing Ltd,SMILE PUBLICATION
Tendring DC,http://statistics.data.gov.uk/id/local-authority-district/22UN,Life Opportunities,6160 - Princes Theatre,9356 - Commission Sales,14/05/2013,1051845-1,37.6,REDACTED COMMERCIAL CONFIDENTIALITY,REDACTED COMMERCIAL CONFIDENTIALITY
Tendring DC,http://statistics.data.gov.uk/id/local-authority-district/22UN,Life Opportunities,H705 - Window/Door Replacement,C200 - Main Contractor,14/05/2013,1051933-1,14126.17,2112888 - Solar Windows Ltd,EXTERNAL DOOR CONTRACT
Tendring DC,http://statistics.data.gov.uk/id/local-authority-district/22UN,Life Opportunities,5480 - HRA - Repair & Maintenance,2062 - Communal TV Aerials Repairs,28/05/2013,2109083-1,66.67,REDACTED PERSONAL DATA,REDACTED PERSONAL DATA
Tendring DC,http://statistics.data.gov.uk/id/local-authority-district/22UN,Life Opportunities,7000 - CCTV,4718 - Fixed Communication Lines,21/05/2013,1051982-1,63.9,2108907 - Southern Communications Ltd,SOUTHERN COMMS APRIL
Tendring DC,http://statistics.data.gov.uk/id/local-authority-district/22UN,Life Opportunities,5360 - HRA - Sheltered Units,4710 - Telephones - Charges,21/05/2013,1051982-2,84.81,2108907 - Southern Communications Ltd,SOUTHERN COMMS APRIL
Tendring DC,http://statistics.data.gov.uk/id/local-authority-district/22UN,Life Opportunities,5360 - HRA - Sheltered Units,4710 - Telephones - Charges,21/05/2013,1051982-3,89.6,2108907 - Southern Communications Ltd,SOUTHERN COMMS APRIL
Tendring DC,http://statistics.data.gov.uk/id/local-authority-district/22UN,Life Opportunities,5360 - HRA - Sheltered Units,4710 - Telephones - Charges,21/05/2013,1051982-4,84.39,2108907 - Southern Communications Ltd,SOUTHERN COMMS APRIL
Tendring DC,http://statistics.data.gov.uk/id/local-authority-district/22UN,Life Opportunities,5360 - HRA - Sheltered Units,4710 - Telephones - Charges,21/05/2013,1051982-5,57.2,2108907 - Southern Communications Ltd,SOUTHERN COMMS APRIL
Tendring DC,http://statistics.data.gov.uk/id/local-authority-district/22UN,Life Opportunities,5360 - HRA - Sheltered Units,4710 - Telephones - Charges,21/05/2013,1051982-6,83.54,2108907 - Southern Communications Ltd,SOUTHERN COMMS APRIL
Tendring DC,http://statistics.data.gov.uk/id/local-authority-district/22UN,Life Opportunities,5360 - HRA - Sheltered Units,4710 - Telephones - Charges,21/05/2013,1051982-7,58.95,2108907 - Southern Communications Ltd,SOUTHERN COMMS APRIL
Tendring DC,http://statistics.data.gov.uk/id/local-authority-district/22UN,Life Opportunities,5360 - HRA - Sheltered Units,4710 - Telephones - Charges,21/05/2013,1051982-8,81.43,2108907 - Southern Communications Ltd,SOUTHERN COMMS APRIL
Tendring DC,http://statistics.data.gov.uk/id/local-authority-district/22UN,Life Opportunities,H705 - Window/Door Replacement,C200 - Main Contractor,21/05/2013,1052031-1,160,REDACTED PERSONAL DATA,REDACTED PERSONAL DATA
Tendring DC,http://statistics.data.gov.uk/id/local-authority-district/22UN,Life Opportunities,H705 - Window/Door Replacement,C200 - Main Contractor,28/05/2013,1052423-1,5668.42,2112379 - Sovereign Group Ltd,WINDOW DOOR REPLACEMENT LHC REF-35533
Tendring DC,http://statistics.data.gov.uk/id/local-authority-district/22UN,Life Opportunities,H860 - Disabled Adaptations,C200 - Main Contractor,07/05/2013,2108936-1,291.44,REDACTED COMMERCIAL CONFIDENTIALITY,REDACTED COMMERCIAL CONFIDENTIALITY
Tendring DC,http://statistics.data.gov.uk/id/local-authority-district/22UN,Life Opportunities,H860 - Disabled Adaptations,C200 - Main Contractor,07/05/2013,2108937-1,94.98,REDACTED COMMERCIAL CONFIDENTIALITY,REDACTED COMMERCIAL CONFIDENTIALITY
Tendring DC,http://statistics.data.gov.uk/id/local-authority-district/22UN,Life Opportunities,5480 - HRA - Repair & Maintenance,2019 - Repair & Maintenance - Keys,17/05/2013,7700271-1,-43.75,REDACTED PERSONAL DATA,REDACTED PERSONAL DATA
Tendring DC,http://statistics.data.gov.uk/id/local-authority-district/22UN,Life Opportunities,5220 - HRA - Policy & Management,5253 - HRA Health & Safety Expenses,21/05/2013,1052085-1,26.23,REDACTED COMMERCIAL CONFIDENTIALITY,REDACTED COMMERCIAL CONFIDENTIALITY
Tendring DC,http://statistics.data.gov.uk/id/local-authority-district/22UN,Life Opportunities,5220 - HRA - Policy & Management,5253 - HRA Health & Safety Expenses,21/05/2013,1052099-1,22.33,REDACTED COMMERCIAL CONFIDENTIALITY,REDACTED COMMERCIAL CONFIDENTIALITY
Tendring DC,http://statistics.data.gov.uk/id/local-authority-district/22UN,Life Opportunities,6160 - Princes Theatre,4622 - Hired Services - Artistes and Production Companies,14/05/2013,1051853-1,475.5,REDACTED PERSONAL DATA,REDACTED PERSONAL DATA
Tendring DC,http://statistics.data.gov.uk/id/local-authority-district/22UN,Life Opportunities,5480 - HRA - Repair & Maintenance,2069 - Lift/Stairlift Servicing,21/05/2013,1052193-1,1406.69,2101360 - Stannah Lift Services Limited,LIFT SERVICE & REPAIR
Tendring DC,http://statistics.data.gov.uk/id/local-authority-district/22UN,Life Opportunities,5480 - HRA - Repair & Maintenance,2070 - Lift/Stairlift Repairs,21/05/2013,1052193-2,383.81,2101360 - Stannah Lift Services Limited,LIFT SERVICE & REPAIR
Tendring DC,http://statistics.data.gov.uk/id/local-authority-district/22UN,Life Opportunities,H860 - Disabled Adaptations,C200 - Main Contractor,21/05/2013,2109032-1,2295,REDACTED PERSONAL DATA,REDACTED PERSONAL DATA
Tendring DC,http://statistics.data.gov.uk/id/local-authority-district/22UN,Life Opportunities,1880 - Office Accommodation Expenses,2100 - Building Repairs,07/05/2013,2108940-1,11.08,2101370 - Stannah Lift Services Ltd,Stannah
Tendring DC,http://statistics.data.gov.uk/id/local-authority-district/22UN,Life Opportunities,1880 - Office Accommodation Expenses,2100 - Building Repairs,07/05/2013,2108940-2,11.08,2101370 - Stannah Lift Services Ltd,Stannah
Tendring DC,http://statistics.data.gov.uk/id/local-authority-district/22UN,Life Opportunities,H920 - DFGs,C400 - Grant payments,07/05/2013,2108942-1,378.23,2111405 - Swan Housing Association Ltd,27 Meadow Close
Tendring DC,http://statistics.data.gov.uk/id/local-authority-district/22UN,Life Opportunities,H860 - Disabled Adaptations,C200 - Main Contractor,21/05/2013,1052037-1,220,REDACTED PERSONAL DATA,REDACTED PERSONAL DATA
Tendring DC,http://statistics.data.gov.uk/id/local-authority-district/22UN,Life Opportunities,H860 - Disabled Adaptations,C200 - Main Contractor,21/05/2013,1052038-1,220,REDACTED PERSONAL DATA,REDACTED PERSONAL DATA
Tendring DC,http://statistics.data.gov.uk/id/local-authority-district/22UN,Life Opportunities,H810 - Electrical Re-wiring,C200 - Main Contractor,28/05/2013,2109080-1,4386.37,REDACTED PERSONAL DATA,REDACTED PERSONAL DATA
Tendring DC,http://statistics.data.gov.uk/id/local-authority-district/22UN,Life Opportunities,H810 - Electrical Re-wiring,C200 - Main Contractor,28/05/2013,2109081-1,1224,REDACTED COMMERCIAL CONFIDENTIALITY,REDACTED COMMERCIAL CONFIDENTIALITY
Tendring DC,http://statistics.data.gov.uk/id/local-authority-district/22UN,Life Opportunities,8510 - Dovercourt Swimming Pool & All Weather Facilities,2904 - Premises Licensing - Other,21/05/2013,1052190-1,145.5,2101314 - T V Licensing,CHQ REQ
Tendring DC,http://statistics.data.gov.uk/id/local-authority-district/22UN,Life Opportunities,8540 - Leisure Centre Clacton,4650 - TV Licensing,28/05/2013,1052357-1,145.5,2101314 - T V Licensing,
Tendring DC,http://statistics.data.gov.uk/id/local-authority-district/22UN,Life Opportunities,7520 - Tourism Publicity Marketing Promotion,5160 - Advertising,21/05/2013,7700233-1,1043,REDACTED COMMERCIAL CONFIDENTIALITY,REDACTED COMMERCIAL CONFIDENTIALITY
Tendring DC,http://statistics.data.gov.uk/id/local-authority-district/22UN,Life Opportunities,7520 - Tourism Publicity Marketing Promotion,5160 - Advertising,21/05/2013,7700234-1,1000,REDACTED COMMERCIAL CONFIDENTIALITY,REDACTED COMMERCIAL CONFIDENTIALITY
Tendring DC,http://statistics.data.gov.uk/id/local-authority-district/22UN,Life Opportunities,8540 - Leisure Centre Clacton,4000 - Furniture,14/05/2013,1051868-1,90.5,2106188 - Technogym UK Ltd,
Tendring DC,http://statistics.data.gov.uk/id/local-authority-district/22UN,Life Opportunities,8540 - Leisure Centre Clacton,2100 - Building Repairs,14/05/2013,1051869-1,1172.68,2106188 - Technogym UK Ltd,
Tendring DC,http://statistics.data.gov.uk/id/local-authority-district/22UN,Life Opportunities,5860 - Manningtree Sports Centre,4300 - Printing & Stationery,14/05/2013,1051757-1,2.5,2101357 - Tendring District Council,PETTY CASH MANNINGTREE SPORTS CENTRE
Tendring DC,http://statistics.data.gov.uk/id/local-authority-district/22UN,Life Opportunities,5860 - Manningtree Sports Centre,4040 - Equipment & Tools,14/05/2013,1051757-2,9.99,2101357 - Tendring District Council,PETTY CASH MANNINGTREE SPORTS CENTRE
Tendring DC,http://statistics.data.gov.uk/id/local-authority-district/22UN,Life Opportunities,5860 - Manningtree Sports Centre,2100 - Building Repairs,14/05/2013,1051757-3,67.5,2101357 - Tendring District Council,PETTY CASH MANNINGTREE SPORTS CENTRE
Tendring DC,http://statistics.data.gov.uk/id/local-authority-district/22UN,Life Opportunities,5860 - Manningtree Sports Centre,2100 - Building Repairs,14/05/2013,1051757-4,86.21,2101357 - Tendring District Council,PETTY CASH MANNINGTREE SPORTS CENTRE
Tendring DC,http://statistics.data.gov.uk/id/local-authority-district/22UN,Life Opportunities,5860 - Manningtree Sports Centre,2700 - Cleaning Materials,14/05/2013,1051757-5,14.67,2101357 - Tendring District Council,PETTY CASH MANNINGTREE SPORTS CENTRE
Tendring DC,http://statistics.data.gov.uk/id/local-authority-district/22UN,Life Opportunities,6160 - Princes Theatre,4080 - Materials & Consumables,28/05/2013,1052235-1,1.38,2101357 - Tendring District Council,PETTY CASH
Tendring DC,http://statistics.data.gov.uk/id/local-authority-district/22UN,Life Opportunities,5360 - HRA - Sheltered Units,4040 - Equipment & Tools,28/05/2013,1052235-10,1.65,2101357 - Tendring District Council,PETTY CASH
Tendring DC,http://statistics.data.gov.uk/id/local-authority-district/22UN,Life Opportunities,7680 - Tour De Tendring,6500 - Rent Allowances Payments,28/05/2013,1052235-11,38.18,2101357 - Tendring District Council,PETTY CASH
Tendring DC,http://statistics.data.gov.uk/id/local-authority-district/22UN,Life Opportunities,7680 - Tour De Tendring,5500 - Miscellaneous Expenses,28/05/2013,1052235-12,15.79,2101357 - Tendring District Council,PETTY CASH
Tendring DC,http://statistics.data.gov.uk/id/local-authority-district/22UN,Life Opportunities,1800 - Qualification and Other Training,2100 - Building Repairs,28/05/2013,1052235-13,22.37,2101357 - Tendring District Council,PETTY CASH
Tendring DC,http://statistics.data.gov.uk/id/local-authority-district/22UN,Life Opportunities,6160 - Princes Theatre,4040 - Equipment & Tools,28/05/2013,1052235-14,6.29,2101357 - Tendring District Council,PETTY CASH
Tendring DC,http://statistics.data.gov.uk/id/local-authority-district/22UN,Life Opportunities,6160 - Princes Theatre,8550 - Bar / Catering,28/05/2013,1052235-2,1.2,2101357 - Tendring District Council,PETTY CASH
Tendring DC,http://statistics.data.gov.uk/id/local-authority-district/22UN,Life Opportunities,7620 - Air Show,5500 - Miscellaneous Expenses,28/05/2013,1052235-3,0.89,2101357 - Tendring District Council,PETTY CASH
Tendring DC,http://statistics.data.gov.uk/id/local-authority-district/22UN,Life Opportunities,5360 - HRA - Sheltered Units,4040 - Equipment & Tools,28/05/2013,1052235-4,6.6,2101357 - Tendring District Council,PETTY CASH
Tendring DC,http://statistics.data.gov.uk/id/local-authority-district/22UN,Life Opportunities,5360 - HRA - Sheltered Units,4040 - Equipment & Tools,28/05/2013,1052235-5,19.12,2101357 - Tendring District Council,PETTY CASH
Tendring DC,http://statistics.data.gov.uk/id/local-authority-district/22UN,Life Opportunities,6160 - Princes Theatre,4105 - Bar/Catering Expenses,28/05/2013,1052235-6,6.38,2101357 - Tendring District Council,PETTY CASH
Tendring DC,http://statistics.data.gov.uk/id/local-authority-district/22UN,Life Opportunities,6160 - Princes Theatre,4105 - Bar/Catering Expenses,28/05/2013,1052235-7,1.05,2101357 - Tendring District Council,PETTY CASH
Tendring DC,http://statistics.data.gov.uk/id/local-authority-district/22UN,Life Opportunities,5360 - HRA - Sheltered Units,4040 - Equipment & Tools,28/05/2013,1052235-8,3.13,2101357 - Tendring District Council,PETTY CASH
Tendring DC,http://statistics.data.gov.uk/id/local-authority-district/22UN,Life Opportunities,5480 - HRA - Repair & Maintenance,4044 - Building & Safety Equipment,28/05/2013,1052235-9,2.37,2101357 - Tendring District Council,PETTY CASH
Tendring DC,http://statistics.data.gov.uk/id/local-authority-district/22UN,Life Opportunities,5800 - Brightlingsea Sports Centre,4000 - Furniture,28/05/2013,1052358-1,22.03,2101357 - Tendring District Council,PETTY CASH BRIGHTLINGSEA SPORTS CENTRE
Tendring DC,http://statistics.data.gov.uk/id/local-authority-district/22UN,Life Opportunities,5800 - Brightlingsea Sports Centre,4300 - Printing & Stationery,28/05/2013,1052358-2,5.42,2101357 - Tendring District Council,PETTY CASH BRIGHTLINGSEA SPORTS CENTRE
Tendring DC,http://statistics.data.gov.uk/id/local-authority-district/22UN,Life Opportunities,8530 - Brightlingsea Swimming Pool,2100 - Building Repairs,28/05/2013,1052358-3,31.49,2101357 - Tendring District Council,PETTY CASH BRIGHTLINGSEA SPORTS CENTRE
Tendring DC,http://statistics.data.gov.uk/id/local-authority-district/22UN,Life Opportunities,8530 - Brightlingsea Swimming Pool,4000 - Furniture,28/05/2013,1052358-4,16.58,2101357 - Tendring District Council,PETTY CASH BRIGHTLINGSEA SPORTS CENTRE
Tendring DC,http://statistics.data.gov.uk/id/local-authority-district/22UN,Life Opportunities,5800 - Brightlingsea Sports Centre,4080 - Materials & Consumables,28/05/2013,1052358-5,6.66,2101357 - Tendring District Council,PETTY CASH BRIGHTLINGSEA SPORTS CENTRE
Tendring DC,http://statistics.data.gov.uk/id/local-authority-district/22UN,Life Opportunities,7600 - Tourist Information Centres,9356 - Commission Sales,07/05/2013,2108941-1,250,2101377 - Tendring District Council,TIC Refund Float
Tendring DC,http://statistics.data.gov.uk/id/local-authority-district/22UN,Life Opportunities,7600 - Tourist Information Centres,9356 - Commission Sales,07/05/2013,2108941-2,40,2101377 - Tendring District Council,TIC Refund Float
Tendring DC,http://statistics.data.gov.uk/id/local-authority-district/22UN,Life Opportunities,6160 - Princes Theatre,9352 - Opportunity Bookings,07/05/2013,2108941-3,20,2101377 - Tendring District Council,TIC Refund Float
Tendring DC,http://statistics.data.gov.uk/id/local-authority-district/22UN,Life Opportunities,5140 - Homelessness,4683 - Other Homelessness Expenses,28/05/2013,1052220-1,550,REDACTED PERSONAL DATA,REDACTED PERSONAL DATA
Tendring DC,http://statistics.data.gov.uk/id/local-authority-district/22UN,Life Opportunities,5140 - Homelessness,4683 - Other Homelessness Expenses,07/05/2013,2108972-1,128,REDACTED PERSONAL DATA,REDACTED PERSONAL DATA
Tendring DC,http://statistics.data.gov.uk/id/local-authority-district/22UN,Life Opportunities,1880 - Office Accommodation Expenses,4632 - Security,14/05/2013,1051878-1,32,2112597 - The Security Centre,SECURITY CENTRE
Tendring DC,http://statistics.data.gov.uk/id/local-authority-district/22UN,Life Opportunities,7600 - Tourist Information Centres,2100 - Building Repairs,21/05/2013,1052089-1,50,REDACTED COMMERCIAL CONFIDENTIALITY,REDACTED COMMERCIAL CONFIDENTIALITY
Tendring DC,http://statistics.data.gov.uk/id/local-authority-district/22UN,Life Opportunities,5480 - HRA - Repair & Maintenance,2019 - Repair & Maintenance - Keys,21/05/2013,1052090-1,105.6,REDACTED PERSONAL DATA,REDACTED PERSONAL DATA
Tendring DC,http://statistics.data.gov.uk/id/local-authority-district/22UN,Life Opportunities,5480 - HRA - Repair & Maintenance,2019 - Repair & Maintenance - Keys,21/05/2013,7700219-1,20,REDACTED COMMERCIAL CONFIDENTIALITY,REDACTED COMMERCIAL CONFIDENTIALITY
Tendring DC,http://statistics.data.gov.uk/id/local-authority-district/22UN,Life Opportunities,5860 - Manningtree Sports Centre,4400 - Maintenance Under Service Agreements,14/05/2013,1051749-1,-10.4,2105048 - The Sunlight Service Group Ltd,OVERCHARGE FOR ROLLER TOWELS
Tendring DC,http://statistics.data.gov.uk/id/local-authority-district/22UN,Life Opportunities,5860 - Manningtree Sports Centre,4400 - Maintenance Under Service Agreements,14/05/2013,1051819-1,120.25,2105048 - The Sunlight Service Group Ltd,QUARTERLY ROLLER TOWEL CHANGE
Tendring DC,http://statistics.data.gov.uk/id/local-authority-district/22UN,Life Opportunities,5820 - Harwich Sports Centre,4597 - Hired Services - Payments to Contractors,14/05/2013,1051828-1,37.83,2105048 - The Sunlight Service Group Ltd,ROLLER TOWEL RENTAL
Tendring DC,http://statistics.data.gov.uk/id/local-authority-district/22UN,Life Opportunities,5860 - Manningtree Sports Centre,4400 - Maintenance Under Service Agreements,28/05/2013,1052329-1,124.28,2105048 - The Sunlight Service Group Ltd,4 X ROLLER TOWEL CABINETS
Tendring DC,http://statistics.data.gov.uk/id/local-authority-district/22UN,Life Opportunities,5480 - HRA - Repair & Maintenance,2016 - PVCu Window And Door Repairs,07/05/2013,1051694-1,78.44,REDACTED PERSONAL DATA,REDACTED PERSONAL DATA
Tendring DC,http://statistics.data.gov.uk/id/local-authority-district/22UN,Life Opportunities,5480 - HRA - Repair & Maintenance,2016 - PVCu Window And Door Repairs,07/05/2013,1051695-1,26.26,REDACTED PERSONAL DATA,REDACTED PERSONAL DATA
Tendring DC,http://statistics.data.gov.uk/id/local-authority-district/22UN,Life Opportunities,5480 - HRA - Repair & Maintenance,2016 - PVCu Window And Door Repairs,07/05/2013,1051696-1,28.5,REDACTED PERSONAL DATA,REDACTED PERSONAL DATA
Tendring DC,http://statistics.data.gov.uk/id/local-authority-district/22UN,Life Opportunities,5480 - HRA - Repair & Maintenance,2016 - PVCu Window And Door Repairs,07/05/2013,1051697-1,10.63,REDACTED PERSONAL DATA,REDACTED PERSONAL DATA
Tendring DC,http://statistics.data.gov.uk/id/local-authority-district/22UN,Life Opportunities,5480 - HRA - Repair & Maintenance,2016 - PVCu Window And Door Repairs,07/05/2013,1051698-1,116.03,REDACTED PERSONAL DATA,REDACTED PERSONAL DATA
Tendring DC,http://statistics.data.gov.uk/id/local-authority-district/22UN,Life Opportunities,5480 - HRA - Repair & Maintenance,2016 - PVCu Window And Door Repairs,07/05/2013,1051699-1,58.76,REDACTED PERSONAL DATA,REDACTED PERSONAL DATA
Tendring DC,http://statistics.data.gov.uk/id/local-authority-district/22UN,Life Opportunities,5480 - HRA - Repair & Maintenance,2016 - PVCu Window And Door Repairs,07/05/2013,1051700-1,28.5,REDACTED PERSONAL DATA,REDACTED PERSONAL DATA
Tendring DC,http://statistics.data.gov.uk/id/local-authority-district/22UN,Life Opportunities,5480 - HRA - Repair & Maintenance,2016 - PVCu Window And Door Repairs,07/05/2013,1051701-1,28.5,REDACTED PERSONAL DATA,REDACTED PERSONAL DATA
Tendring DC,http://statistics.data.gov.uk/id/local-authority-district/22UN,Life Opportunities,5480 - HRA - Repair & Maintenance,2016 - PVCu Window And Door Repairs,07/05/2013,1051702-1,30.26,REDACTED PERSONAL DATA,REDACTED PERSONAL DATA
Tendring DC,http://statistics.data.gov.uk/id/local-authority-district/22UN,Life Opportunities,5480 - HRA - Repair & Maintenance,2016 - PVCu Window And Door Repairs,07/05/2013,1051703-1,55.27,REDACTED PERSONAL DATA,REDACTED PERSONAL DATA
Tendring DC,http://statistics.data.gov.uk/id/local-authority-district/22UN,Life Opportunities,5480 - HRA - Repair & Maintenance,2016 - PVCu Window And Door Repairs,07/05/2013,1051704-1,146.09,REDACTED PERSONAL DATA,REDACTED PERSONAL DATA
Tendring DC,http://statistics.data.gov.uk/id/local-authority-district/22UN,Life Opportunities,5480 - HRA - Repair & Maintenance,2016 - PVCu Window And Door Repairs,07/05/2013,1051705-1,25,REDACTED PERSONAL DATA,REDACTED PERSONAL DATA
Tendring DC,http://statistics.data.gov.uk/id/local-authority-district/22UN,Life Opportunities,5480 - HRA - Repair & Maintenance,2016 - PVCu Window And Door Repairs,07/05/2013,1051706-1,29.75,REDACTED PERSONAL DATA,REDACTED PERSONAL DATA
Tendring DC,http://statistics.data.gov.uk/id/local-authority-district/22UN,Life Opportunities,5480 - HRA - Repair & Maintenance,2016 - PVCu Window And Door Repairs,07/05/2013,1051707-1,48.27,REDACTED PERSONAL DATA,REDACTED PERSONAL DATA
Tendring DC,http://statistics.data.gov.uk/id/local-authority-district/22UN,Life Opportunities,5480 - HRA - Repair & Maintenance,2016 - PVCu Window And Door Repairs,07/05/2013,1051708-1,69.57,REDACTED PERSONAL DATA,REDACTED PERSONAL DATA
Tendring DC,http://statistics.data.gov.uk/id/local-authority-district/22UN,Life Opportunities,5480 - HRA - Repair & Maintenance,2016 - PVCu Window And Door Repairs,07/05/2013,1051709-1,29.75,REDACTED PERSONAL DATA,REDACTED PERSONAL DATA
Tendring DC,http://statistics.data.gov.uk/id/local-authority-district/22UN,Life Opportunities,5480 - HRA - Repair & Maintenance,2016 - PVCu Window And Door Repairs,07/05/2013,1051710-1,25.5,REDACTED PERSONAL DATA,REDACTED PERSONAL DATA
Tendring DC,http://statistics.data.gov.uk/id/local-authority-district/22UN,Life Opportunities,5480 - HRA - Repair & Maintenance,2016 - PVCu Window And Door Repairs,07/05/2013,1051711-1,25,REDACTED PERSONAL DATA,REDACTED PERSONAL DATA
Tendring DC,http://statistics.data.gov.uk/id/local-authority-district/22UN,Life Opportunities,5480 - HRA - Repair & Maintenance,2016 - PVCu Window And Door Repairs,07/05/2013,1051712-1,25,REDACTED PERSONAL DATA,REDACTED PERSONAL DATA
Tendring DC,http://statistics.data.gov.uk/id/local-authority-district/22UN,Life Opportunities,5480 - HRA - Repair & Maintenance,2016 - PVCu Window And Door Repairs,07/05/2013,1051713-1,55.76,REDACTED PERSONAL DATA,REDACTED PERSONAL DATA
Tendring DC,http://statistics.data.gov.uk/id/local-authority-district/22UN,Life Opportunities,5480 - HRA - Repair & Maintenance,2016 - PVCu Window And Door Repairs,07/05/2013,1051714-1,25,REDACTED PERSONAL DATA,REDACTED PERSONAL DATA
Tendring DC,http://statistics.data.gov.uk/id/local-authority-district/22UN,Life Opportunities,5480 - HRA - Repair & Maintenance,2016 - PVCu Window And Door Repairs,14/05/2013,1051909-1,10.63,REDACTED PERSONAL DATA,REDACTED PERSONAL DATA
Tendring DC,http://statistics.data.gov.uk/id/local-authority-district/22UN,Life Opportunities,5480 - HRA - Repair & Maintenance,2016 - PVCu Window And Door Repairs,14/05/2013,1051910-1,10.63,REDACTED PERSONAL DATA,REDACTED PERSONAL DATA
Tendring DC,http://statistics.data.gov.uk/id/local-authority-district/22UN,Life Opportunities,5480 - HRA - Repair & Maintenance,2016 - PVCu Window And Door Repairs,14/05/2013,1051911-1,39.22,REDACTED PERSONAL DATA,REDACTED PERSONAL DATA
Tendring DC,http://statistics.data.gov.uk/id/local-authority-district/22UN,Life Opportunities,5480 - HRA - Repair & Maintenance,2016 - PVCu Window And Door Repairs,14/05/2013,1051912-1,43.47,REDACTED PERSONAL DATA,REDACTED PERSONAL DATA
Tendring DC,http://statistics.data.gov.uk/id/local-authority-district/22UN,Life Opportunities,5480 - HRA - Repair & Maintenance,2016 - PVCu Window And Door Repairs,14/05/2013,1051913-1,63.4,REDACTED PERSONAL DATA,REDACTED PERSONAL DATA
Tendring DC,http://statistics.data.gov.uk/id/local-authority-district/22UN,Life Opportunities,5480 - HRA - Repair & Maintenance,2016 - PVCu Window And Door Repairs,14/05/2013,1051914-1,78.44,REDACTED PERSONAL DATA,REDACTED PERSONAL DATA
Tendring DC,http://statistics.data.gov.uk/id/local-authority-district/22UN,Life Opportunities,5480 - HRA - Repair & Maintenance,2016 - PVCu Window And Door Repairs,14/05/2013,1051915-1,35,REDACTED PERSONAL DATA,REDACTED PERSONAL DATA
Tendring DC,http://statistics.data.gov.uk/id/local-authority-district/22UN,Life Opportunities,5480 - HRA - Repair & Maintenance,2005 - Responsive Maintenance - Carpentry And Joinery,14/05/2013,1051915-2,20.27,REDACTED PERSONAL DATA,REDACTED PERSONAL DATA
Tendring DC,http://statistics.data.gov.uk/id/local-authority-district/22UN,Life Opportunities,5480 - HRA - Repair & Maintenance,2016 - PVCu Window And Door Repairs,14/05/2013,1051916-1,28.43,REDACTED PERSONAL DATA,REDACTED PERSONAL DATA
Tendring DC,http://statistics.data.gov.uk/id/local-authority-district/22UN,Life Opportunities,5480 - HRA - Repair & Maintenance,2016 - PVCu Window And Door Repairs,14/05/2013,1051917-1,43.47,REDACTED PERSONAL DATA,REDACTED PERSONAL DATA
Tendring DC,http://statistics.data.gov.uk/id/local-authority-district/22UN,Life Opportunities,5480 - HRA - Repair & Maintenance,2016 - PVCu Window And Door Repairs,14/05/2013,1051918-1,53.05,REDACTED PERSONAL DATA,REDACTED PERSONAL DATA
Tendring DC,http://statistics.data.gov.uk/id/local-authority-district/22UN,Life Opportunities,5480 - HRA - Repair & Maintenance,2016 - PVCu Window And Door Repairs,21/05/2013,1052100-1,28.5,REDACTED PERSONAL DATA,REDACTED PERSONAL DATA
Tendring DC,http://statistics.data.gov.uk/id/local-authority-district/22UN,Life Opportunities,5480 - HRA - Repair & Maintenance,2016 - PVCu Window And Door Repairs,21/05/2013,1052101-1,112.91,REDACTED PERSONAL DATA,REDACTED PERSONAL DATA
Tendring DC,http://statistics.data.gov.uk/id/local-authority-district/22UN,Life Opportunities,5480 - HRA - Repair & Maintenance,2016 - PVCu Window And Door Repairs,21/05/2013,1052102-1,10.63,REDACTED PERSONAL DATA,REDACTED PERSONAL DATA
Tendring DC,http://statistics.data.gov.uk/id/local-authority-district/22UN,Life Opportunities,5480 - HRA - Repair & Maintenance,2016 - PVCu Window And Door Repairs,21/05/2013,1052103-1,10.13,REDACTED PERSONAL DATA,REDACTED PERSONAL DATA
Tendring DC,http://statistics.data.gov.uk/id/local-authority-district/22UN,Life Opportunities,5480 - HRA - Repair & Maintenance,2016 - PVCu Window And Door Repairs,21/05/2013,1052104-1,102.86,REDACTED PERSONAL DATA,REDACTED PERSONAL DATA
Tendring DC,http://statistics.data.gov.uk/id/local-authority-district/22UN,Life Opportunities,5480 - HRA - Repair & Maintenance,2016 - PVCu Window And Door Repairs,21/05/2013,1052105-1,25,REDACTED PERSONAL DATA,REDACTED PERSONAL DATA
Tendring DC,http://statistics.data.gov.uk/id/local-authority-district/22UN,Life Opportunities,5480 - HRA - Repair & Maintenance,2016 - PVCu Window And Door Repairs,21/05/2013,1052106-1,25,REDACTED PERSONAL DATA,REDACTED PERSONAL DATA
Tendring DC,http://statistics.data.gov.uk/id/local-authority-district/22UN,Life Opportunities,5480 - HRA - Repair & Maintenance,2016 - PVCu Window And Door Repairs,21/05/2013,1052107-1,54.58,REDACTED PERSONAL DATA,REDACTED PERSONAL DATA
Tendring DC,http://statistics.data.gov.uk/id/local-authority-district/22UN,Life Opportunities,5480 - HRA - Repair & Maintenance,2016 - PVCu Window And Door Repairs,21/05/2013,1052108-1,85.91,REDACTED PERSONAL DATA,REDACTED PERSONAL DATA
Tendring DC,http://statistics.data.gov.uk/id/local-authority-district/22UN,Life Opportunities,5480 - HRA - Repair & Maintenance,2016 - PVCu Window And Door Repairs,21/05/2013,1052109-1,99,REDACTED PERSONAL DATA,REDACTED PERSONAL DATA
Tendring DC,http://statistics.data.gov.uk/id/local-authority-district/22UN,Life Opportunities,5480 - HRA - Repair & Maintenance,2016 - PVCu Window And Door Repairs,21/05/2013,1052110-1,88.74,REDACTED PERSONAL DATA,REDACTED PERSONAL DATA
Tendring DC,http://statistics.data.gov.uk/id/local-authority-district/22UN,Life Opportunities,5480 - HRA - Repair & Maintenance,2016 - PVCu Window And Door Repairs,21/05/2013,1052111-1,151.89,REDACTED PERSONAL DATA,REDACTED PERSONAL DATA
Tendring DC,http://statistics.data.gov.uk/id/local-authority-district/22UN,Life Opportunities,5480 - HRA - Repair & Maintenance,2016 - PVCu Window And Door Repairs,21/05/2013,1052112-1,70.96,REDACTED PERSONAL DATA,REDACTED PERSONAL DATA
Tendring DC,http://statistics.data.gov.uk/id/local-authority-district/22UN,Life Opportunities,5480 - HRA - Repair & Maintenance,2016 - PVCu Window And Door Repairs,21/05/2013,1052113-1,38.48,REDACTED PERSONAL DATA,REDACTED PERSONAL DATA
Tendring DC,http://statistics.data.gov.uk/id/local-authority-district/22UN,Life Opportunities,5480 - HRA - Repair & Maintenance,2016 - PVCu Window And Door Repairs,21/05/2013,1052114-1,112.71,REDACTED PERSONAL DATA,REDACTED PERSONAL DATA
Tendring DC,http://statistics.data.gov.uk/id/local-authority-district/22UN,Life Opportunities,5480 - HRA - Repair & Maintenance,2016 - PVCu Window And Door Repairs,21/05/2013,1052115-1,34.51,REDACTED PERSONAL DATA,REDACTED PERSONAL DATA
Tendring DC,http://statistics.data.gov.uk/id/local-authority-district/22UN,Life Opportunities,5480 - HRA - Repair & Maintenance,2016 - PVCu Window And Door Repairs,21/05/2013,1052116-1,25.5,REDACTED PERSONAL DATA,REDACTED PERSONAL DATA
Tendring DC,http://statistics.data.gov.uk/id/local-authority-district/22UN,Life Opportunities,5480 - HRA - Repair & Maintenance,2016 - PVCu Window And Door Repairs,21/05/2013,1052117-1,49.85,REDACTED PERSONAL DATA,REDACTED PERSONAL DATA
